Body,Body Name,Date,TransNo,Amount � (Excl VAT),Supplier name,Supplier ID,Expense Area,Expense Type,Expense Code
http://opendatacommunities.org/id/london-borough-council/sutton,London Borough of Sutton,04/01/2019,6943177,"1,020.00 ",A Froley & B Ghoorbin,25732,Chief Executive's Directorate,Provider Contract Payments,F470
http://opendatacommunities.org/id/london-borough-council/sutton,London Borough of Sutton,21/01/2019,1265786,"2,063.56 ",ABC Pre-School Beddington LLP,28675,Peoples Services Directorate,Non-Maintained Childrens' Nurseries - 2 Year Olds,G404
http://opendatacommunities.org/id/london-borough-council/sutton,London Borough of Sutton,21/01/2019,1265787,"2,727.25 ",ABC Pre-School Beddington LLP,28675,Peoples Services Directorate,Non-Maintained Childrens' Nurseries - 3 & 4 yr olds,G405
http://opendatacommunities.org/id/london-borough-council/sutton,London Borough of Sutton,21/01/2019,1265788,979.51 ,ABC Pre-School Beddington LLP,28675,Peoples Services Directorate,Non-Maintained Childrens' Nurseries - 3 & 4 yr olds,G405
http://opendatacommunities.org/id/london-borough-council/sutton,London Borough of Sutton,15/12/2018,40264492,"3,368.70 ",Abiding Ltd,33363,Peoples Services Directorate,Approved Lodgings,H323
http://opendatacommunities.org/id/london-borough-council/sutton,London Borough of Sutton,15/12/2018,40264506,"3,933.85 ",Abiding Ltd,33363,Peoples Services Directorate,Approved Lodgings,H323
http://opendatacommunities.org/id/london-borough-council/sutton,London Borough of Sutton,10/01/2019,40268245,"9,866.18 ",Abiding Ltd,33363,Peoples Services Directorate,Approved Lodgings,H323
http://opendatacommunities.org/id/london-borough-council/sutton,London Borough of Sutton,10/01/2019,40268246,524.51 ,Abiding Ltd,33363,Peoples Services Directorate,Approved Lodgings,H323
http://opendatacommunities.org/id/london-borough-council/sutton,London Borough of Sutton,03/12/2018,6941625,"5,070.19 ",Absolute Care Services Ltd,10021,Peoples Services Directorate,Homecare Core Services,G336
http://opendatacommunities.org/id/london-borough-council/sutton,London Borough of Sutton,10/12/2018,6941921,"5,070.19 ",Absolute Care Services Ltd,10021,Peoples Services Directorate,Homecare Core Services,G336
http://opendatacommunities.org/id/london-borough-council/sutton,London Borough of Sutton,17/12/2018,6942420,"5,070.19 ",Absolute Care Services Ltd,10021,Peoples Services Directorate,Homecare Core Services,G336
http://opendatacommunities.org/id/london-borough-council/sutton,London Borough of Sutton,07/01/2019,6943112,921.69 ,Absolute Care Services Ltd,10021,Peoples Services Directorate,Homecare Core Services,G336
http://opendatacommunities.org/id/london-borough-council/sutton,London Borough of Sutton,07/01/2019,6943115,"5,766.81 ",Absolute Care Services Ltd,10021,Peoples Services Directorate,Homecare Core Services,G336
http://opendatacommunities.org/id/london-borough-council/sutton,London Borough of Sutton,07/01/2019,6943140,"4,851.00 ",Absolute Care Services Ltd,10021,Peoples Services Directorate,Homecare Core Services,G336
http://opendatacommunities.org/id/london-borough-council/sutton,London Borough of Sutton,07/01/2019,6943145,"5,070.19 ",Absolute Care Services Ltd,10021,Peoples Services Directorate,Homecare Core Services,G336
http://opendatacommunities.org/id/london-borough-council/sutton,London Borough of Sutton,16/12/2018,40262185,478.16 ,Absolute Care Services Ltd,10021,Peoples Services Directorate,Home Care,G334
http://opendatacommunities.org/id/london-borough-council/sutton,London Borough of Sutton,16/12/2018,40262313,634.57 ,Absolute Care Services Ltd,10021,Peoples Services Directorate,Home Care,G334
http://opendatacommunities.org/id/london-borough-council/sutton,London Borough of Sutton,23/12/2018,40263930,478.16 ,Absolute Care Services Ltd,10021,Peoples Services Directorate,Home Care,G334
http://opendatacommunities.org/id/london-borough-council/sutton,London Borough of Sutton,09/12/2018,40264980,672.00 ,Absolute Care Services Ltd,10021,Peoples Services Directorate,Home Care,G334
http://opendatacommunities.org/id/london-borough-council/sutton,London Borough of Sutton,16/12/2018,40264981,680.00 ,Absolute Care Services Ltd,10021,Peoples Services Directorate,Home Care,G334
http://opendatacommunities.org/id/london-borough-council/sutton,London Borough of Sutton,09/12/2018,40264982,672.00 ,Absolute Care Services Ltd,10021,Peoples Services Directorate,Home Care,G334
http://opendatacommunities.org/id/london-borough-council/sutton,London Borough of Sutton,16/12/2018,40264983,656.73 ,Absolute Care Services Ltd,10021,Peoples Services Directorate,Home Care,G334
http://opendatacommunities.org/id/london-borough-council/sutton,London Borough of Sutton,09/12/2018,40265094,490.19 ,Absolute Care Services Ltd,10021,Peoples Services Directorate,Home Care,G334
http://opendatacommunities.org/id/london-borough-council/sutton,London Borough of Sutton,16/12/2018,40265095,448.77 ,Absolute Care Services Ltd,10021,Peoples Services Directorate,Home Care,G334
http://opendatacommunities.org/id/london-borough-council/sutton,London Borough of Sutton,09/12/2018,40265112,521.33 ,Absolute Care Services Ltd,10021,Peoples Services Directorate,Home Care,G334
http://opendatacommunities.org/id/london-borough-council/sutton,London Borough of Sutton,16/12/2018,40265113,513.05 ,Absolute Care Services Ltd,10021,Peoples Services Directorate,Home Care,G334
http://opendatacommunities.org/id/london-borough-council/sutton,London Borough of Sutton,09/12/2018,40265114,504.00 ,Absolute Care Services Ltd,10021,Peoples Services Directorate,Home Care,G334
http://opendatacommunities.org/id/london-borough-council/sutton,London Borough of Sutton,16/12/2018,40265115,504.00 ,Absolute Care Services Ltd,10021,Peoples Services Directorate,Home Care,G334
http://opendatacommunities.org/id/london-borough-council/sutton,London Borough of Sutton,09/12/2018,40265116,504.00 ,Absolute Care Services Ltd,10021,Peoples Services Directorate,Home Care,G334
http://opendatacommunities.org/id/london-borough-council/sutton,London Borough of Sutton,16/12/2018,40265117,488.00 ,Absolute Care Services Ltd,10021,Peoples Services Directorate,Home Care,G334
http://opendatacommunities.org/id/london-borough-council/sutton,London Borough of Sutton,23/12/2018,40265133,672.00 ,Absolute Care Services Ltd,10021,Peoples Services Directorate,Home Care,G334
http://opendatacommunities.org/id/london-borough-council/sutton,London Borough of Sutton,23/12/2018,40265134,656.73 ,Absolute Care Services Ltd,10021,Peoples Services Directorate,Home Care,G334
http://opendatacommunities.org/id/london-borough-council/sutton,London Borough of Sutton,23/12/2018,40265158,483.29 ,Absolute Care Services Ltd,10021,Peoples Services Directorate,Home Care,G334
http://opendatacommunities.org/id/london-borough-council/sutton,London Borough of Sutton,23/12/2018,40265167,521.33 ,Absolute Care Services Ltd,10021,Peoples Services Directorate,Home Care,G334
http://opendatacommunities.org/id/london-borough-council/sutton,London Borough of Sutton,23/12/2018,40265168,504.00 ,Absolute Care Services Ltd,10021,Peoples Services Directorate,Home Care,G334
http://opendatacommunities.org/id/london-borough-council/sutton,London Borough of Sutton,23/12/2018,40265169,496.00 ,Absolute Care Services Ltd,10021,Peoples Services Directorate,Home Care,G334
http://opendatacommunities.org/id/london-borough-council/sutton,London Borough of Sutton,23/12/2018,40265245,634.57 ,Absolute Care Services Ltd,10021,Peoples Services Directorate,Home Care,G334
http://opendatacommunities.org/id/london-borough-council/sutton,London Borough of Sutton,30/12/2018,40265260,478.16 ,Absolute Care Services Ltd,10021,Peoples Services Directorate,Home Care,G334
http://opendatacommunities.org/id/london-borough-council/sutton,London Borough of Sutton,30/12/2018,40265296,526.56 ,Absolute Care Services Ltd,10021,Peoples Services Directorate,Home Care,G334
http://opendatacommunities.org/id/london-borough-council/sutton,London Borough of Sutton,29/07/2018,40266705,426.56 ,Absolute Care Services Ltd,10021,Peoples Services Directorate,Home Care,G334
http://opendatacommunities.org/id/london-borough-council/sutton,London Borough of Sutton,29/07/2018,40266710,433.44 ,Absolute Care Services Ltd,10021,Peoples Services Directorate,Home Care,G334
http://opendatacommunities.org/id/london-borough-council/sutton,London Borough of Sutton,29/07/2018,40266718,485.04 ,Absolute Care Services Ltd,10021,Peoples Services Directorate,Home Care,G334
http://opendatacommunities.org/id/london-borough-council/sutton,London Borough of Sutton,09/01/2019,40266742,521.33 ,Absolute Care Services Ltd,10021,Peoples Services Directorate,Home Care,G334
http://opendatacommunities.org/id/london-borough-council/sutton,London Borough of Sutton,06/12/2018,40266744,504.78 ,Absolute Care Services Ltd,10021,Peoples Services Directorate,Home Care,G334
http://opendatacommunities.org/id/london-borough-council/sutton,London Borough of Sutton,13/12/2018,40266745,521.33 ,Absolute Care Services Ltd,10021,Peoples Services Directorate,Home Care,G334
http://opendatacommunities.org/id/london-borough-council/sutton,London Borough of Sutton,20/12/2018,40266747,488.23 ,Absolute Care Services Ltd,10021,Peoples Services Directorate,Home Care,G334
http://opendatacommunities.org/id/london-borough-council/sutton,London Borough of Sutton,27/12/2018,40266850,513.05 ,Absolute Care Services Ltd,10021,Peoples Services Directorate,Home Care,G334
http://opendatacommunities.org/id/london-borough-council/sutton,London Borough of Sutton,04/01/2019,40266851,455.13 ,Absolute Care Services Ltd,10021,Peoples Services Directorate,Home Care,G334
http://opendatacommunities.org/id/london-borough-council/sutton,London Borough of Sutton,30/12/2018,40267669,462.58 ,Absolute Care Services Ltd,10021,Peoples Services Directorate,Home Care,G334
http://opendatacommunities.org/id/london-borough-council/sutton,London Borough of Sutton,06/01/2019,40267670,490.19 ,Absolute Care Services Ltd,10021,Peoples Services Directorate,Home Care,G334
http://opendatacommunities.org/id/london-borough-council/sutton,London Borough of Sutton,30/12/2018,40267696,488.23 ,Absolute Care Services Ltd,10021,Peoples Services Directorate,Home Care,G334
http://opendatacommunities.org/id/london-borough-council/sutton,London Borough of Sutton,06/01/2019,40267697,521.33 ,Absolute Care Services Ltd,10021,Peoples Services Directorate,Home Care,G334
http://opendatacommunities.org/id/london-borough-council/sutton,London Borough of Sutton,30/12/2018,40267699,488.00 ,Absolute Care Services Ltd,10021,Peoples Services Directorate,Home Care,G334
http://opendatacommunities.org/id/london-borough-council/sutton,London Borough of Sutton,06/01/2019,40267700,504.00 ,Absolute Care Services Ltd,10021,Peoples Services Directorate,Home Care,G334
http://opendatacommunities.org/id/london-borough-council/sutton,London Borough of Sutton,30/12/2018,40267701,424.00 ,Absolute Care Services Ltd,10021,Peoples Services Directorate,Home Care,G334
http://opendatacommunities.org/id/london-borough-council/sutton,London Borough of Sutton,06/01/2019,40267702,488.00 ,Absolute Care Services Ltd,10021,Peoples Services Directorate,Home Care,G334
http://opendatacommunities.org/id/london-borough-council/sutton,London Borough of Sutton,06/01/2019,40267729,598.57 ,Absolute Care Services Ltd,10021,Peoples Services Directorate,Home Care,G334
http://opendatacommunities.org/id/london-borough-council/sutton,London Borough of Sutton,30/12/2018,40267881,672.00 ,Absolute Care Services Ltd,10021,Peoples Services Directorate,Home Care,G334
http://opendatacommunities.org/id/london-borough-council/sutton,London Borough of Sutton,06/01/2019,40267882,672.00 ,Absolute Care Services Ltd,10021,Peoples Services Directorate,Home Care,G334
http://opendatacommunities.org/id/london-borough-council/sutton,London Borough of Sutton,30/12/2018,40267883,656.73 ,Absolute Care Services Ltd,10021,Peoples Services Directorate,Home Care,G334
http://opendatacommunities.org/id/london-borough-council/sutton,London Borough of Sutton,06/01/2019,40267884,664.00 ,Absolute Care Services Ltd,10021,Peoples Services Directorate,Home Care,G334
http://opendatacommunities.org/id/london-borough-council/sutton,London Borough of Sutton,06/01/2019,40267893,478.16 ,Absolute Care Services Ltd,10021,Peoples Services Directorate,Home Care,G334
http://opendatacommunities.org/id/london-borough-council/sutton,London Borough of Sutton,31/12/2018,1264503,"2,220.00 ",Access Mobility Transport Ltd,27456,Peoples Services Directorate,Hired Peoples Transport (Children),E072
http://opendatacommunities.org/id/london-borough-council/sutton,London Borough of Sutton,31/12/2018,1264504,880.00 ,Access Mobility Transport Ltd,27456,Peoples Services Directorate,Hired Peoples Transport (Children),E072
http://opendatacommunities.org/id/london-borough-council/sutton,London Borough of Sutton,27/12/2018,40262391,"2,903.20 ",Acorn Lodge,15804,Peoples Services Directorate,Residential Care - Ext Provider,G310
http://opendatacommunities.org/id/london-borough-council/sutton,London Borough of Sutton,25/01/2019,40271347,"2,903.20 ",Acorn Lodge,15804,Peoples Services Directorate,Residential Care - Ext Provider,G310
http://opendatacommunities.org/id/london-borough-council/sutton,London Borough of Sutton,27/12/2018,40262750,"3,042.36 ",Acorn Residential Home,15828,Peoples Services Directorate,Residential Care - Ext Provider,G310
http://opendatacommunities.org/id/london-borough-council/sutton,London Borough of Sutton,25/01/2019,40271230,"3,042.36 ",Acorn Residential Home,15828,Peoples Services Directorate,Residential Care - Ext Provider,G310
http://opendatacommunities.org/id/london-borough-council/sutton,London Borough of Sutton,27/12/2018,40262693,"2,560.12 ",Addiction Recovery Centres Ltd,23357,Peoples Services Directorate,Interim Placements - Ext Provider,G317
http://opendatacommunities.org/id/london-borough-council/sutton,London Borough of Sutton,27/12/2018,40262836,"2,520.00 ",Addiction Recovery Centres Ltd,23357,Peoples Services Directorate,Interim Placements - Ext Provider,G317
http://opendatacommunities.org/id/london-borough-council/sutton,London Borough of Sutton,25/01/2019,40271172,"2,560.12 ",Addiction Recovery Centres Ltd,23357,Peoples Services Directorate,Interim Placements - Ext Provider,G317
http://opendatacommunities.org/id/london-borough-council/sutton,London Borough of Sutton,25/01/2019,40271312,"2,520.00 ",Addiction Recovery Centres Ltd,23357,Peoples Services Directorate,Interim Placements - Ext Provider,G317
http://opendatacommunities.org/id/london-borough-council/sutton,London Borough of Sutton,03/01/2019,1264572,"205,247.65 ",Adecco Uk Ltd,,Resources Directorate,Suspense/Holding Accounts,X550
http://opendatacommunities.org/id/london-borough-council/sutton,London Borough of Sutton,03/01/2019,1264573,"184,841.88 ",Adecco Uk Ltd,,Resources Directorate,Suspense/Holding Accounts,X550
http://opendatacommunities.org/id/london-borough-council/sutton,London Borough of Sutton,07/01/2019,1264871,"74,545.62 ",Adecco Uk Ltd,,Resources Directorate,Suspense/Holding Accounts,X550
http://opendatacommunities.org/id/london-borough-council/sutton,London Borough of Sutton,14/01/2019,1265187,"105,052.19 ",Adecco Uk Ltd,,Resources Directorate,Suspense/Holding Accounts,X550
http://opendatacommunities.org/id/london-borough-council/sutton,London Borough of Sutton,21/01/2019,1265410,"166,940.63 ",Adecco Uk Ltd,,Resources Directorate,Suspense/Holding Accounts,X550
http://opendatacommunities.org/id/london-borough-council/sutton,London Borough of Sutton,23/01/2019,1265973,"(17,508.70)",Adecco Uk Ltd,,Resources Directorate,Suspense/Holding Accounts,X550
http://opendatacommunities.org/id/london-borough-council/sutton,London Borough of Sutton,23/01/2019,1265977,"(10,055.63)",Adecco Uk Ltd,,Resources Directorate,Suspense/Holding Accounts,X550
http://opendatacommunities.org/id/london-borough-council/sutton,London Borough of Sutton,28/01/2019,1266209,"165,385.81 ",Adecco Uk Ltd,,Resources Directorate,Suspense/Holding Accounts,X550
http://opendatacommunities.org/id/london-borough-council/sutton,London Borough of Sutton,03/12/2018,40265617,476.45 ,Adelfi Homecare Ltd,33284,Peoples Services Directorate,Home Care,G334
http://opendatacommunities.org/id/london-borough-council/sutton,London Borough of Sutton,02/01/2019,40265638,513.98 ,Adelfi Homecare Ltd,33284,Peoples Services Directorate,Home Care,G334
http://opendatacommunities.org/id/london-borough-council/sutton,London Borough of Sutton,31/12/2018,6943305,755.39 ,Advanced Demand Side Management Ltd,26989,Resources Directorate,Water - Metered,D690
http://opendatacommunities.org/id/london-borough-council/sutton,London Borough of Sutton,10/01/2019,6943791,"19,492.99 ",Advanced Demand Side Management Ltd,26989,Resources Directorate,Water - Metered,D690
http://opendatacommunities.org/id/london-borough-council/sutton,London Borough of Sutton,04/12/2018,6941658,"15,833.33 ",Advocacy For All,24795,Peoples Services Directorate,Provider Contract Payments,F470
http://opendatacommunities.org/id/london-borough-council/sutton,London Borough of Sutton,08/01/2019,6943280,"4,166.66 ",Advocacy For All,24795,Peoples Services Directorate,Provider Contract Payments,F470
http://opendatacommunities.org/id/london-borough-council/sutton,London Borough of Sutton,08/01/2019,6943281,"15,833.33 ",Advocacy For All,24795,Peoples Services Directorate,Provider Contract Payments,F470
http://opendatacommunities.org/id/london-borough-council/sutton,London Borough of Sutton,07/11/2018,6943675,"4,166.66 ",Advocacy For All,24795,Peoples Services Directorate,Provider Contract Payments,F470
http://opendatacommunities.org/id/london-borough-council/sutton,London Borough of Sutton,19/12/2018,40264428,"3,981.33 ",Affinity Fostering Services Ltd,26535,Peoples Services Directorate,Foster Parents,G326
http://opendatacommunities.org/id/london-borough-council/sutton,London Borough of Sutton,29/01/2019,6944360,"1,000.00 ",Age UK Sutton,10092,"Environment, Housing & Regeneration Directorate",Other Equipment - Purchase,F015
http://opendatacommunities.org/id/london-borough-council/sutton,London Borough of Sutton,27/12/2018,40262725,"7,511.00 ",Aims Care Partnership (Leighton House Ltd),12628,Peoples Services Directorate,Residential Care - Ext Provider,G310
http://opendatacommunities.org/id/london-borough-council/sutton,London Borough of Sutton,25/01/2019,40271205,"7,511.00 ",Aims Care Partnership (Leighton House Ltd),12628,Peoples Services Directorate,Residential Care - Ext Provider,G310
http://opendatacommunities.org/id/london-borough-council/sutton,London Borough of Sutton,27/12/2018,40262748,"5,278.00 ",Aitch Care Homes,20446,Peoples Services Directorate,Residential Care - Ext Provider,G310
http://opendatacommunities.org/id/london-borough-council/sutton,London Borough of Sutton,27/12/2018,40262859,"8,400.16 ",Aitch Care Homes,20446,Peoples Services Directorate,Residential Care - Ext Provider,G310
http://opendatacommunities.org/id/london-borough-council/sutton,London Borough of Sutton,25/01/2019,40271228,"5,278.00 ",Aitch Care Homes,20446,Peoples Services Directorate,Residential Care - Ext Provider,G310
http://opendatacommunities.org/id/london-borough-council/sutton,London Borough of Sutton,25/01/2019,40271331,"8,400.16 ",Aitch Care Homes,20446,Peoples Services Directorate,Residential Care - Ext Provider,G310
http://opendatacommunities.org/id/london-borough-council/sutton,London Borough of Sutton,19/12/2018,6942720,752.40 ,Alan Lim Limited,26344,Chief Executive's Directorate,Training - Course Fees,A520
http://opendatacommunities.org/id/london-borough-council/sutton,London Borough of Sutton,01/01/2019,6943283,"2,589.50 ",Aligned Assets Ltd,30095,Resources Directorate,Fees - Computer Software,F384
http://opendatacommunities.org/id/london-borough-council/sutton,London Borough of Sutton,01/01/2019,6943283,"2,589.50 ",Aligned Assets Ltd,30095,Resources Directorate,Fees - Computer Software,F384
http://opendatacommunities.org/id/london-borough-council/sutton,London Borough of Sutton,21/11/2018,6944077,477.00 ,Alison Saunders,33240,Chief Executive's Directorate,Arts Programme,F306
http://opendatacommunities.org/id/london-borough-council/sutton,London Borough of Sutton,01/01/2019,1264987,"14,440.00 ",All Saints Benhilton C Of E,10115,Peoples Services Directorate,Top-up Funding,G064
http://opendatacommunities.org/id/london-borough-council/sutton,London Borough of Sutton,01/01/2019,1264988,"6,704.17 ",All Saints Carshalton Primary School,16772,Peoples Services Directorate,Top-up Funding,G064
http://opendatacommunities.org/id/london-borough-council/sutton,London Borough of Sutton,01/12/2018,6942776,"1,459.60 ",All Security Ltd,97190,"Environment, Housing & Regeneration Directorate",Agency Services,G431
http://opendatacommunities.org/id/london-borough-council/sutton,London Borough of Sutton,01/01/2019,6942974,"1,148.00 ",All Security Ltd,97190,"Environment, Housing & Regeneration Directorate",Agency Services,G431
http://opendatacommunities.org/id/london-borough-council/sutton,London Borough of Sutton,01/08/2018,6943798,"1,492.40 ",All Security Ltd,97190,"Environment, Housing & Regeneration Directorate",Agency Services,G431
http://opendatacommunities.org/id/london-borough-council/sutton,London Borough of Sutton,31/12/2018,40264521,736.00 ,All4U Fostering Ltd,30193,Peoples Services Directorate,Foster Parents,G326
http://opendatacommunities.org/id/london-borough-council/sutton,London Borough of Sutton,18/12/2018,6942898,"5,462.50 ",Allen Lane Ltd,18334,Resources Directorate,Agency Staff - Other,A301
http://opendatacommunities.org/id/london-borough-council/sutton,London Borough of Sutton,18/12/2018,6942899,"2,185.00 ",Allen Lane Ltd,18334,Resources Directorate,Agency Staff - Other,A301
http://opendatacommunities.org/id/london-borough-council/sutton,London Borough of Sutton,18/12/2018,6942934,"1,885.00 ",Allen Lane Ltd,18334,Resources Directorate,Agency Staff - Other,A301
http://opendatacommunities.org/id/london-borough-council/sutton,London Borough of Sutton,13/11/2018,6942994,"1,759.65 ",Allen Lane Ltd,18334,Resources Directorate,Agency Staff - Other,A301
http://opendatacommunities.org/id/london-borough-council/sutton,London Borough of Sutton,20/11/2018,6942995,"1,566.00 ",Allen Lane Ltd,18334,Resources Directorate,Agency Staff - Other,A301
http://opendatacommunities.org/id/london-borough-council/sutton,London Borough of Sutton,20/11/2018,6942996,"1,759.65 ",Allen Lane Ltd,18334,Resources Directorate,Agency Staff - Other,A301
http://opendatacommunities.org/id/london-borough-council/sutton,London Borough of Sutton,08/01/2019,6943278,"3,393.00 ",Allen Lane Ltd,18334,Resources Directorate,Agency Staff - Other,A301
http://opendatacommunities.org/id/london-borough-council/sutton,London Borough of Sutton,22/01/2019,6944068,"4,096.88 ",Allen Lane Ltd,18334,Resources Directorate,Agency Staff - Other,A301
http://opendatacommunities.org/id/london-borough-council/sutton,London Borough of Sutton,27/12/2018,40262931,"3,625.00 ",Alliance Care (Dale Homes) Ltd T/A Uplands Care Home,26835,Peoples Services Directorate,Nursing Care - Ext Provider,G311
http://opendatacommunities.org/id/london-borough-council/sutton,London Borough of Sutton,25/01/2019,40271011,"3,625.00 ",Alliance Care (Dale Homes) Ltd T/A Uplands Care Home,26835,Peoples Services Directorate,Nursing Care - Ext Provider,G311
http://opendatacommunities.org/id/london-borough-council/sutton,London Borough of Sutton,27/12/2018,40262700,"4,454.16 ",Allied Care (Mhs) Ltd,10145,Peoples Services Directorate,Residential Care - Ext Provider,G310
http://opendatacommunities.org/id/london-borough-council/sutton,London Borough of Sutton,25/01/2019,40271179,"4,454.16 ",Allied Care (Mhs) Ltd,10145,Peoples Services Directorate,Residential Care - Ext Provider,G310
http://opendatacommunities.org/id/london-borough-council/sutton,London Borough of Sutton,10/12/2018,6943939,665.00 ,Alljos Services Ltd,99815,"Environment, Housing & Regeneration Directorate",Grants -Made,Y610
http://opendatacommunities.org/id/london-borough-council/sutton,London Borough of Sutton,01/01/2019,6942932,"1,190.29 ",Allstar Business Solutions,24482,"Environment, Housing & Regeneration Directorate",Fuel Etc,E030
http://opendatacommunities.org/id/london-borough-council/sutton,London Borough of Sutton,27/12/2018,40262701,"4,400.00 ",Allswell Care Services Ltd,20761,Peoples Services Directorate,Residential Care - Ext Provider,G310
http://opendatacommunities.org/id/london-borough-council/sutton,London Borough of Sutton,27/12/2018,40262752,"6,370.00 ",Allswell Care Services Ltd,20761,Peoples Services Directorate,Residential Care - Ext Provider,G310
http://opendatacommunities.org/id/london-borough-council/sutton,London Borough of Sutton,27/12/2018,40262772,"3,480.00 ",Allswell Care Services Ltd,20761,Peoples Services Directorate,Residential Care - Ext Provider,G310
http://opendatacommunities.org/id/london-borough-council/sutton,London Borough of Sutton,25/01/2019,40271180,"4,400.00 ",Allswell Care Services Ltd,20761,Peoples Services Directorate,Residential Care - Ext Provider,G310
http://opendatacommunities.org/id/london-borough-council/sutton,London Borough of Sutton,25/01/2019,40271233,"6,370.00 ",Allswell Care Services Ltd,20761,Peoples Services Directorate,Residential Care - Ext Provider,G310
http://opendatacommunities.org/id/london-borough-council/sutton,London Borough of Sutton,25/01/2019,40271283,"3,480.00 ",Allswell Care Services Ltd,20761,Peoples Services Directorate,Residential Care - Ext Provider,G310
http://opendatacommunities.org/id/london-borough-council/sutton,London Borough of Sutton,24/01/2019,6944152,"8,250.00 ",Alzheimers Society Sutton Branch,10114,Chief Executive's Directorate,Provider Contract Payments,F470
http://opendatacommunities.org/id/london-borough-council/sutton,London Borough of Sutton,05/12/2018,40264496,"14,706.71 ",Amegreen Childrens Services,27145,Peoples Services Directorate,Residential Care-Children,G330
http://opendatacommunities.org/id/london-borough-council/sutton,London Borough of Sutton,31/12/2018,6943284,"12,726.00 ",Ameo Professional Services Ltd,27868,Chief Executive's Directorate,Contractual Consultant Fees,G430
http://opendatacommunities.org/id/london-borough-council/sutton,London Borough of Sutton,27/12/2018,40263047,"1,194.29 ",ANA Treatment Centres Ltd,10196,Peoples Services Directorate,Interim Placements - Ext Provider,G317
http://opendatacommunities.org/id/london-borough-council/sutton,London Borough of Sutton,25/01/2019,40271127,"3,040.00 ",ANA Treatment Centres Ltd,10196,Peoples Services Directorate,Interim Placements - Ext Provider,G317
http://opendatacommunities.org/id/london-borough-council/sutton,London Borough of Sutton,21/01/2019,1265797,576.18 ,Angela Ives,29706,Peoples Services Directorate,Non-Maintained Childrens' Nurseries - 3 & 4 yr olds,G405
http://opendatacommunities.org/id/london-borough-council/sutton,London Borough of Sutton,01/02/2019,6944412,"8,706.70 ",ANS Group Europe LLP,23713,"Environment, Housing & Regeneration Directorate",Other Services,F340
http://opendatacommunities.org/id/london-borough-council/sutton,London Borough of Sutton,14/01/2019,6943785,611.11 ,Aon UK Limited,26323,Resources Directorate,Insurance Premiums (Other),F330
http://opendatacommunities.org/id/london-borough-council/sutton,London Borough of Sutton,31/12/2018,6943059,"6,576.62 ",Apetito Ltd,10206,Chief Executive's Directorate,Provisions - General,F150
http://opendatacommunities.org/id/london-borough-council/sutton,London Borough of Sutton,03/01/2019,6943178,"2,662.90 ",APL Properties,26226,"Environment, Housing & Regeneration Directorate",Bed and Breakfast Accommodation,G400
http://opendatacommunities.org/id/london-borough-council/sutton,London Borough of Sutton,03/01/2019,6942989,"3,625.00 ",Approved Multi Services Ltd,97774,"Environment, Housing & Regeneration Directorate",Road Markings,D523
http://opendatacommunities.org/id/london-borough-council/sutton,London Borough of Sutton,02/01/2019,6944337,"9,529.93 ",Architype Ltd,25419,Peoples Services Directorate,External Fees  - Architects,Y100
http://opendatacommunities.org/id/london-borough-council/sutton,London Borough of Sutton,16/10/2018,6943053,"1,728.50 ",Archway Building Consultancy,30049,"Environment, Housing & Regeneration Directorate",External Fees  - Other,Y130
http://opendatacommunities.org/id/london-borough-council/sutton,London Borough of Sutton,31/08/2018,6943054,"2,682.30 ",Archway Building Consultancy,30049,"Environment, Housing & Regeneration Directorate",External Fees  - Other,Y130
http://opendatacommunities.org/id/london-borough-council/sutton,London Borough of Sutton,04/12/2018,40264440,"3,653.35 ",Ascent Fostering Agency Ltd,25280,Peoples Services Directorate,Foster Parents,G326
http://opendatacommunities.org/id/london-borough-council/sutton,London Borough of Sutton,04/12/2018,40264441,"3,963.35 ",Ascent Fostering Agency Ltd,25280,Peoples Services Directorate,Foster Parents,G326
http://opendatacommunities.org/id/london-borough-council/sutton,London Borough of Sutton,01/12/2018,40264762,850.33 ,Ashbrook House Ltd,23499,Peoples Services Directorate,Supported Living - Ext Provider,G306
http://opendatacommunities.org/id/london-borough-council/sutton,London Borough of Sutton,27/12/2018,40262844,"7,534.40 ",Ashcroft Care Services,22571,Peoples Services Directorate,Residential Care - Ext Provider,G310
http://opendatacommunities.org/id/london-borough-council/sutton,London Borough of Sutton,25/01/2019,40271318,"7,534.40 ",Ashcroft Care Services,22571,Peoples Services Directorate,Residential Care - Ext Provider,G310
http://opendatacommunities.org/id/london-borough-council/sutton,London Borough of Sutton,01/12/2018,40264761,"3,866.94 ",Ashlong House Ltd,23101,Peoples Services Directorate,Supported Living - Ext Provider,G306
http://opendatacommunities.org/id/london-borough-council/sutton,London Borough of Sutton,27/12/2018,40262764,"5,492.48 ",Aspens Charities,30002,Peoples Services Directorate,Residential Care - Ext Provider,G310
http://opendatacommunities.org/id/london-borough-council/sutton,London Borough of Sutton,25/01/2019,40271244,"5,492.48 ",Aspens Charities,30002,Peoples Services Directorate,Residential Care - Ext Provider,G310
http://opendatacommunities.org/id/london-borough-council/sutton,London Borough of Sutton,31/12/2018,40265579,"2,480.00 ",Aspirations Care Ltd,25173,Peoples Services Directorate,Home Care,G334
http://opendatacommunities.org/id/london-borough-council/sutton,London Borough of Sutton,31/12/2018,40265579,"8,407.20 ",Aspirations Care Ltd,25173,Peoples Services Directorate,Home Care,G334
http://opendatacommunities.org/id/london-borough-council/sutton,London Borough of Sutton,31/08/2018,6939310,930.00 ,Assetgrove Lettings Ltd,28820,"Environment, Housing & Regeneration Directorate",Temporary Protection - Homeless Persons,H300
http://opendatacommunities.org/id/london-borough-council/sutton,London Borough of Sutton,31/07/2018,6939799,"1,302.00 ",Assetgrove Lettings Ltd,28820,"Environment, Housing & Regeneration Directorate",Temporary Protection - Homeless Persons,H300
http://opendatacommunities.org/id/london-borough-council/sutton,London Borough of Sutton,31/07/2018,6939805,"1,236.90 ",Assetgrove Lettings Ltd,28820,"Environment, Housing & Regeneration Directorate",Temporary Protection - Homeless Persons,H300
http://opendatacommunities.org/id/london-borough-council/sutton,London Borough of Sutton,31/07/2018,6939807,961.00 ,Assetgrove Lettings Ltd,28820,"Environment, Housing & Regeneration Directorate",Temporary Protection - Homeless Persons,H300
http://opendatacommunities.org/id/london-borough-council/sutton,London Borough of Sutton,31/07/2018,6939811,"1,236.90 ",Assetgrove Lettings Ltd,28820,"Environment, Housing & Regeneration Directorate",Temporary Protection - Homeless Persons,H300
http://opendatacommunities.org/id/london-borough-council/sutton,London Borough of Sutton,30/11/2018,6941746,"54,520.90 ",Assetgrove Lettings Ltd,28820,"Environment, Housing & Regeneration Directorate",Temporary Protection - Homeless Persons,H300
http://opendatacommunities.org/id/london-borough-council/sutton,London Borough of Sutton,27/09/2018,6942672,"1,020.00 ",Assetgrove Lettings Ltd,28820,"Environment, Housing & Regeneration Directorate",Temporary Protection - Homeless Persons,H300
http://opendatacommunities.org/id/london-borough-council/sutton,London Borough of Sutton,31/12/2018,6943654,"50,480.10 ",Assetgrove Lettings Ltd,28820,"Environment, Housing & Regeneration Directorate",Bed and Breakfast Accommodation,G400
http://opendatacommunities.org/id/london-borough-council/sutton,London Borough of Sutton,20/12/2018,6942656,"2,834.60 ",Atkins Ltd,10307,"Environment, Housing & Regeneration Directorate",Surveys & Analysis,Y685
http://opendatacommunities.org/id/london-borough-council/sutton,London Borough of Sutton,27/12/2018,40262373,"4,580.72 ",Autism & Aspergers Care Services,10327,Peoples Services Directorate,Residential Care - Ext Provider,G310
http://opendatacommunities.org/id/london-borough-council/sutton,London Borough of Sutton,25/01/2019,40271353,"4,580.72 ",Autism & Aspergers Care Services,10327,Peoples Services Directorate,Residential Care - Ext Provider,G310
http://opendatacommunities.org/id/london-borough-council/sutton,London Borough of Sutton,27/12/2018,40263025,"2,805.00 ",Avante Ltd (Weybourne),24009,Peoples Services Directorate,Residential Care - Ext Provider,G310
http://opendatacommunities.org/id/london-borough-council/sutton,London Borough of Sutton,25/01/2019,40271107,"2,805.00 ",Avante Ltd (Weybourne),24009,Peoples Services Directorate,Residential Care - Ext Provider,G310
http://opendatacommunities.org/id/london-borough-council/sutton,London Borough of Sutton,01/01/2019,1264989,"13,101.67 ",Avenue Primary Acadamy,26025,Peoples Services Directorate,Top-up Funding,G064
http://opendatacommunities.org/id/london-borough-council/sutton,London Borough of Sutton,01/01/2019,1264989,"2,900.00 ",Avenue Primary Acadamy,26025,Peoples Services Directorate,Top-up Funding,G064
http://opendatacommunities.org/id/london-borough-council/sutton,London Borough of Sutton,01/01/2019,1264990,"49,350.41 ",Avenue Primary Acadamy,26025,Peoples Services Directorate,Place Funding,G063
http://opendatacommunities.org/id/london-borough-council/sutton,London Borough of Sutton,09/01/2019,6943379,550.00 ,Axcis Education Recruitment,21583,Peoples Services Directorate,One to One Care,G335
http://opendatacommunities.org/id/london-borough-council/sutton,London Borough of Sutton,09/01/2019,6943380,550.00 ,Axcis Education Recruitment,21583,Peoples Services Directorate,One to One Care,G335
http://opendatacommunities.org/id/london-borough-council/sutton,London Borough of Sutton,28/12/2018,6943811,566.51 ,Axiell Ltd,25933,Chief Executive's Directorate,IT Equipment - Repair and Maintenance,F382
http://opendatacommunities.org/id/london-borough-council/sutton,London Borough of Sutton,20/12/2018,6942644,540.00 ,Axiom Traffic Ltd,23141,"Environment, Housing & Regeneration Directorate",Roads & Sewers Etc-Main Contract,Y300
http://opendatacommunities.org/id/london-borough-council/sutton,London Borough of Sutton,21/01/2019,1265483,687.85 ,B Mallen T/A The Adventure Pre-School,10072,Peoples Services Directorate,Non-Maintained Childrens' Nurseries - 2 Year Olds,G404
http://opendatacommunities.org/id/london-borough-council/sutton,London Borough of Sutton,21/01/2019,1265484,994.50 ,B Mallen T/A The Adventure Pre-School,10072,Peoples Services Directorate,Non-Maintained Childrens' Nurseries - 3 & 4 yr olds,G405
http://opendatacommunities.org/id/london-borough-council/sutton,London Borough of Sutton,21/01/2019,1265485,"8,452.03 ",B Mallen T/A The Adventure Pre-School,10072,Peoples Services Directorate,Non-Maintained Childrens' Nurseries - 3 & 4 yr olds,G405
http://opendatacommunities.org/id/london-borough-council/sutton,London Borough of Sutton,21/01/2019,1265486,"3,907.93 ",B Mallen T/A The Adventure Pre-School,10072,Peoples Services Directorate,Non-Maintained Childrens' Nurseries - 3 & 4 yr olds,G405
http://opendatacommunities.org/id/london-borough-council/sutton,London Borough of Sutton,14/01/2018,6943610,585.00 ,Baby and Child Massage,30302,Peoples Services Directorate,Training - Course Fees,A520
http://opendatacommunities.org/id/london-borough-council/sutton,London Borough of Sutton,21/12/2018,6943050,"4,958.00 ",Baily Garner LLP,21501,"Environment, Housing & Regeneration Directorate",Building Works -Main Contractor,Y350
http://opendatacommunities.org/id/london-borough-council/sutton,London Borough of Sutton,21/12/2018,6943051,"4,940.00 ",Baily Garner LLP,21501,"Environment, Housing & Regeneration Directorate",Building Works -Main Contractor,Y350
http://opendatacommunities.org/id/london-borough-council/sutton,London Borough of Sutton,21/01/2019,1265488,"4,012.47 ",Bandon Hill Pre-School,10357,Peoples Services Directorate,Non-Maintained Childrens' Nurseries - 2 Year Olds,G404
http://opendatacommunities.org/id/london-borough-council/sutton,London Borough of Sutton,21/01/2019,1265489,"7,775.46 ",Bandon Hill Pre-School,10357,Peoples Services Directorate,Non-Maintained Childrens' Nurseries - 3 & 4 yr olds,G405
http://opendatacommunities.org/id/london-borough-council/sutton,London Borough of Sutton,21/01/2019,1265490,"1,312.74 ",Bandon Hill Pre-School,10357,Peoples Services Directorate,Non-Maintained Childrens' Nurseries - 3 & 4 yr olds,G405
http://opendatacommunities.org/id/london-borough-council/sutton,London Borough of Sutton,01/01/2019,1264991,"17,625.00 ",Bandon Hill Primary,10372,Peoples Services Directorate,Top-up Funding,G064
http://opendatacommunities.org/id/london-borough-council/sutton,London Borough of Sutton,01/01/2019,1264992,"5,341.67 ",Bandon Hill Primary,10372,Peoples Services Directorate,Top-up Funding,G064
http://opendatacommunities.org/id/london-borough-council/sutton,London Borough of Sutton,01/01/2019,1264992,"17,087.50 ",Bandon Hill Primary,10372,Peoples Services Directorate,Top-up Funding,G064
http://opendatacommunities.org/id/london-borough-council/sutton,London Borough of Sutton,01/01/2019,1264993,"146,610.83 ",Bandon Hill Primary,10372,Peoples Services Directorate,Place Funding,G063
http://opendatacommunities.org/id/london-borough-council/sutton,London Borough of Sutton,31/12/2018,40264394,"3,607.47 ",Banya,10375,Peoples Services Directorate,Foster Parents,G326
http://opendatacommunities.org/id/london-borough-council/sutton,London Borough of Sutton,31/12/2018,40264419,"3,607.47 ",Banya,10375,Peoples Services Directorate,Foster Parents,G326
http://opendatacommunities.org/id/london-borough-council/sutton,London Borough of Sutton,31/12/2018,40264481,"3,607.47 ",Banya,10375,Peoples Services Directorate,Foster Parents,G326
http://opendatacommunities.org/id/london-borough-council/sutton,London Borough of Sutton,27/12/2018,40262906,"2,332.00 ",Barclays Bank PLC IB Crt Fit  T/A Angel Lodge,27109,Peoples Services Directorate,Interim Placements - Ext Provider,G317
http://opendatacommunities.org/id/london-borough-council/sutton,London Borough of Sutton,25/01/2019,40270988,"2,332.00 ",Barclays Bank PLC IB Crt Fit  T/A Angel Lodge,27109,Peoples Services Directorate,Interim Placements - Ext Provider,G317
http://opendatacommunities.org/id/london-borough-council/sutton,London Borough of Sutton,04/12/2018,40264438,"3,559.11 ",Barnardo's,10370,Peoples Services Directorate,Foster Parents,G326
http://opendatacommunities.org/id/london-borough-council/sutton,London Borough of Sutton,20/12/2018,40266914,540.00 ,Barnardo's,10370,Peoples Services Directorate,Provider Contract Payments,F470
http://opendatacommunities.org/id/london-borough-council/sutton,London Borough of Sutton,20/12/2018,40266915,990.00 ,Barnardo's,10370,Peoples Services Directorate,Provider Contract Payments,F470
http://opendatacommunities.org/id/london-borough-council/sutton,London Borough of Sutton,20/12/2018,40266916,607.50 ,Barnardo's,10370,Peoples Services Directorate,Provider Contract Payments,F470
http://opendatacommunities.org/id/london-borough-council/sutton,London Borough of Sutton,20/12/2018,40266919,588.00 ,Barnardo's,10370,Peoples Services Directorate,Provider Contract Payments,F470
http://opendatacommunities.org/id/london-borough-council/sutton,London Borough of Sutton,20/12/2018,40266957,765.00 ,Barnardo's,10370,Peoples Services Directorate,Provider Contract Payments,F470
http://opendatacommunities.org/id/london-borough-council/sutton,London Borough of Sutton,20/12/2018,40266983,781.38 ,Barnardo's,10370,Peoples Services Directorate,Provider Contract Payments,F470
http://opendatacommunities.org/id/london-borough-council/sutton,London Borough of Sutton,01/12/2018,40264493,"3,324.36 ",Be My Family Fostering Agency,25179,Peoples Services Directorate,Foster Parents,G326
http://opendatacommunities.org/id/london-borough-council/sutton,London Borough of Sutton,01/01/2019,1264995,"4,925.00 ",Beddington Infants School,10445,Peoples Services Directorate,Top-up Funding,G064
http://opendatacommunities.org/id/london-borough-council/sutton,London Borough of Sutton,01/01/2019,1264996,"1,037.50 ",Beddington Park Primary (Academy),25879,Peoples Services Directorate,Top-up Funding,G064
http://opendatacommunities.org/id/london-borough-council/sutton,London Borough of Sutton,17/12/2018,6942869,"1,024.83 ",Bellville-Homes Ltd,26490,"Environment, Housing & Regeneration Directorate",Temporary Protection - Homeless Persons,H300
http://opendatacommunities.org/id/london-borough-council/sutton,London Borough of Sutton,16/01/2019,6943793,"1,024.83 ",Bellville-Homes Ltd,26490,"Environment, Housing & Regeneration Directorate",Temporary Protection - Homeless Persons,H300
http://opendatacommunities.org/id/london-borough-council/sutton,London Borough of Sutton,21/01/2019,1265626,"1,238.14 ",Belmont Village Playgroup,17807,Peoples Services Directorate,Non-Maintained Childrens' Nurseries - 2 Year Olds,G404
http://opendatacommunities.org/id/london-borough-council/sutton,London Borough of Sutton,21/01/2019,1265627,"3,857.44 ",Belmont Village Playgroup,17807,Peoples Services Directorate,Non-Maintained Childrens' Nurseries - 3 & 4 yr olds,G405
http://opendatacommunities.org/id/london-borough-council/sutton,London Borough of Sutton,21/01/2019,1265628,"1,575.29 ",Belmont Village Playgroup,17807,Peoples Services Directorate,Non-Maintained Childrens' Nurseries - 3 & 4 yr olds,G405
http://opendatacommunities.org/id/london-borough-council/sutton,London Borough of Sutton,01/01/2019,40268255,"17,050.00 ",Benecare Limited,33991,Peoples Services Directorate,Residential Care-Children,G330
http://opendatacommunities.org/id/london-borough-council/sutton,London Borough of Sutton,31/12/2018,6944260,"1,280.00 ",Benhill & Belmont GP Centre,15665,Chief Executive's Directorate,Provider Contract Payments,F470
http://opendatacommunities.org/id/london-borough-council/sutton,London Borough of Sutton,18/07/2018,40264471,"14,807.10 ",Benjamin UK Ltd,23244,Peoples Services Directorate,Residential Care-Children,G330
http://opendatacommunities.org/id/london-borough-council/sutton,London Borough of Sutton,18/07/2018,40264489,"15,300.67 ",Benjamin UK Ltd,23244,Peoples Services Directorate,Residential Care-Children,G330
http://opendatacommunities.org/id/london-borough-council/sutton,London Borough of Sutton,20/08/2017,40268247,"2,957.10 ",Benjamin UK Ltd,23244,Peoples Services Directorate,Residential Care-Children,G330
http://opendatacommunities.org/id/london-borough-council/sutton,London Borough of Sutton,20/09/2017,40268248,"3,055.67 ",Benjamin UK Ltd,23244,Peoples Services Directorate,Residential Care-Children,G330
http://opendatacommunities.org/id/london-borough-council/sutton,London Borough of Sutton,20/10/2017,40268249,"2,957.10 ",Benjamin UK Ltd,23244,Peoples Services Directorate,Residential Care-Children,G330
http://opendatacommunities.org/id/london-borough-council/sutton,London Borough of Sutton,20/11/2017,40268250,"3,055.67 ",Benjamin UK Ltd,23244,Peoples Services Directorate,Residential Care-Children,G330
http://opendatacommunities.org/id/london-borough-council/sutton,London Borough of Sutton,20/12/2017,40268251,"3,055.67 ",Benjamin UK Ltd,23244,Peoples Services Directorate,Residential Care-Children,G330
http://opendatacommunities.org/id/london-borough-council/sutton,London Borough of Sutton,20/06/2017,40268266,"1,182.84 ",Benjamin UK Ltd,23244,Peoples Services Directorate,Residential Care-Children,G330
http://opendatacommunities.org/id/london-borough-council/sutton,London Borough of Sutton,20/06/2017,40268267,"3,055.67 ",Benjamin UK Ltd,23244,Peoples Services Directorate,Residential Care-Children,G330
http://opendatacommunities.org/id/london-borough-council/sutton,London Borough of Sutton,20/07/2017,40268268,"3,055.67 ",Benjamin UK Ltd,23244,Peoples Services Directorate,Residential Care-Children,G330
http://opendatacommunities.org/id/london-borough-council/sutton,London Borough of Sutton,21/01/2019,1265684,605.88 ,Bernadine Willis,24139,Peoples Services Directorate,Non-Maintained Childrens' Nurseries - 3 & 4 yr olds,G405
http://opendatacommunities.org/id/london-borough-council/sutton,London Borough of Sutton,24/12/2018,40264097,800.00 ,Best at Home Domiciliary Care Services Ltd,30159,Peoples Services Directorate,Home Care,G334
http://opendatacommunities.org/id/london-borough-council/sutton,London Borough of Sutton,24/12/2018,40264098,450.50 ,Best at Home Domiciliary Care Services Ltd,30159,Peoples Services Directorate,Home Care,G334
http://opendatacommunities.org/id/london-borough-council/sutton,London Borough of Sutton,24/12/2018,40264106,439.00 ,Best at Home Domiciliary Care Services Ltd,30159,Peoples Services Directorate,Home Care,G334
http://opendatacommunities.org/id/london-borough-council/sutton,London Borough of Sutton,24/12/2018,40264107,442.00 ,Best at Home Domiciliary Care Services Ltd,30159,Peoples Services Directorate,Home Care,G334
http://opendatacommunities.org/id/london-borough-council/sutton,London Borough of Sutton,24/12/2018,40264110,614.00 ,Best at Home Domiciliary Care Services Ltd,30159,Peoples Services Directorate,Home Care,G334
http://opendatacommunities.org/id/london-borough-council/sutton,London Borough of Sutton,11/01/2019,40266661,800.00 ,Best at Home Domiciliary Care Services Ltd,30159,Peoples Services Directorate,Home Care,G334
http://opendatacommunities.org/id/london-borough-council/sutton,London Borough of Sutton,11/01/2019,40266662,450.50 ,Best at Home Domiciliary Care Services Ltd,30159,Peoples Services Directorate,Home Care,G334
http://opendatacommunities.org/id/london-borough-council/sutton,London Borough of Sutton,11/01/2019,40266673,614.00 ,Best at Home Domiciliary Care Services Ltd,30159,Peoples Services Directorate,Home Care,G334
http://opendatacommunities.org/id/london-borough-council/sutton,London Borough of Sutton,31/12/2018,6943575,665.00 ,Bestcourt UK Ltd,10441,"Environment, Housing & Regeneration Directorate",Bed and Breakfast Accommodation,G400
http://opendatacommunities.org/id/london-borough-council/sutton,London Borough of Sutton,17/12/2018,6942761,"2,437.50 ",Better Points Ltd,30236,Chief Executive's Directorate,Internal Fees - Project Management,Y180
http://opendatacommunities.org/id/london-borough-council/sutton,London Borough of Sutton,28/12/2018,6944301,737.50 ,Bevan Brittan LLP,28285,Peoples Services Directorate,Legal Fees,Y040
http://opendatacommunities.org/id/london-borough-council/sutton,London Borough of Sutton,07/01/2019,1265232,"17,465.00 ",Beyond Autism,17692,Peoples Services Directorate,Independent Schools,G325
http://opendatacommunities.org/id/london-borough-council/sutton,London Borough of Sutton,07/01/2019,1265233,"22,058.33 ",Beyond Autism,17692,Peoples Services Directorate,Independent Schools,G325
http://opendatacommunities.org/id/london-borough-council/sutton,London Borough of Sutton,07/01/2019,1265234,"30,116.66 ",Beyond Autism,17692,Peoples Services Directorate,Independent Schools,G325
http://opendatacommunities.org/id/london-borough-council/sutton,London Borough of Sutton,07/01/2019,1265235,"21,783.33 ",Beyond Autism,17692,Peoples Services Directorate,Independent Schools,G325
http://opendatacommunities.org/id/london-borough-council/sutton,London Borough of Sutton,17/12/2018,40266692,491.00 ,Beyond Community Care Services Ltd,29933,Peoples Services Directorate,Home Care,G334
http://opendatacommunities.org/id/london-borough-council/sutton,London Borough of Sutton,31/12/2018,40266756,491.00 ,Beyond Community Care Services Ltd,29933,Peoples Services Directorate,Home Care,G334
http://opendatacommunities.org/id/london-borough-council/sutton,London Borough of Sutton,31/12/2018,40266758,539.00 ,Beyond Community Care Services Ltd,29933,Peoples Services Directorate,Home Care,G334
http://opendatacommunities.org/id/london-borough-council/sutton,London Borough of Sutton,31/12/2018,40266762,476.00 ,Beyond Community Care Services Ltd,29933,Peoples Services Directorate,Home Care,G334
http://opendatacommunities.org/id/london-borough-council/sutton,London Borough of Sutton,31/12/2018,40266763,539.00 ,Beyond Community Care Services Ltd,29933,Peoples Services Directorate,Home Care,G334
http://opendatacommunities.org/id/london-borough-council/sutton,London Borough of Sutton,31/12/2018,40266764,637.00 ,Beyond Community Care Services Ltd,29933,Peoples Services Directorate,Home Care,G334
http://opendatacommunities.org/id/london-borough-council/sutton,London Borough of Sutton,31/12/2018,40266767,504.00 ,Beyond Community Care Services Ltd,29933,Peoples Services Directorate,Home Care,G334
http://opendatacommunities.org/id/london-borough-council/sutton,London Borough of Sutton,17/12/2018,40266770,491.00 ,Beyond Community Care Services Ltd,29933,Peoples Services Directorate,Home Care,G334
http://opendatacommunities.org/id/london-borough-council/sutton,London Borough of Sutton,17/12/2018,40266771,826.58 ,Beyond Community Care Services Ltd,29933,Peoples Services Directorate,Home Care,G334
http://opendatacommunities.org/id/london-borough-council/sutton,London Borough of Sutton,17/12/2018,40266773,539.00 ,Beyond Community Care Services Ltd,29933,Peoples Services Directorate,Home Care,G334
http://opendatacommunities.org/id/london-borough-council/sutton,London Borough of Sutton,17/12/2018,40266778,420.00 ,Beyond Community Care Services Ltd,29933,Peoples Services Directorate,Home Care,G334
http://opendatacommunities.org/id/london-borough-council/sutton,London Borough of Sutton,17/12/2018,40266779,539.00 ,Beyond Community Care Services Ltd,29933,Peoples Services Directorate,Home Care,G334
http://opendatacommunities.org/id/london-borough-council/sutton,London Borough of Sutton,17/12/2018,40266780,637.00 ,Beyond Community Care Services Ltd,29933,Peoples Services Directorate,Home Care,G334
http://opendatacommunities.org/id/london-borough-council/sutton,London Borough of Sutton,18/12/2018,40266782,539.00 ,Beyond Community Care Services Ltd,29933,Peoples Services Directorate,Home Care,G334
http://opendatacommunities.org/id/london-borough-council/sutton,London Borough of Sutton,18/12/2018,40266783,637.00 ,Beyond Community Care Services Ltd,29933,Peoples Services Directorate,Home Care,G334
http://opendatacommunities.org/id/london-borough-council/sutton,London Borough of Sutton,18/12/2018,40266788,504.00 ,Beyond Community Care Services Ltd,29933,Peoples Services Directorate,Home Care,G334
http://opendatacommunities.org/id/london-borough-council/sutton,London Borough of Sutton,31/12/2018,40266790,491.00 ,Beyond Community Care Services Ltd,29933,Peoples Services Directorate,Home Care,G334
http://opendatacommunities.org/id/london-borough-council/sutton,London Borough of Sutton,31/12/2018,40266793,539.00 ,Beyond Community Care Services Ltd,29933,Peoples Services Directorate,Home Care,G334
http://opendatacommunities.org/id/london-borough-council/sutton,London Borough of Sutton,17/12/2018,40266797,826.58 ,Beyond Community Care Services Ltd,29933,Peoples Services Directorate,Home Care,G334
http://opendatacommunities.org/id/london-borough-council/sutton,London Borough of Sutton,17/12/2018,40266799,539.00 ,Beyond Community Care Services Ltd,29933,Peoples Services Directorate,Home Care,G334
http://opendatacommunities.org/id/london-borough-council/sutton,London Borough of Sutton,17/12/2018,40266803,420.00 ,Beyond Community Care Services Ltd,29933,Peoples Services Directorate,Home Care,G334
http://opendatacommunities.org/id/london-borough-council/sutton,London Borough of Sutton,07/01/2019,40266816,491.00 ,Beyond Community Care Services Ltd,29933,Peoples Services Directorate,Home Care,G334
http://opendatacommunities.org/id/london-borough-council/sutton,London Borough of Sutton,07/01/2019,40266818,539.00 ,Beyond Community Care Services Ltd,29933,Peoples Services Directorate,Home Care,G334
http://opendatacommunities.org/id/london-borough-council/sutton,London Borough of Sutton,07/01/2019,40266822,504.00 ,Beyond Community Care Services Ltd,29933,Peoples Services Directorate,Home Care,G334
http://opendatacommunities.org/id/london-borough-council/sutton,London Borough of Sutton,07/01/2019,40266823,539.00 ,Beyond Community Care Services Ltd,29933,Peoples Services Directorate,Home Care,G334
http://opendatacommunities.org/id/london-borough-council/sutton,London Borough of Sutton,07/01/2019,40266824,637.00 ,Beyond Community Care Services Ltd,29933,Peoples Services Directorate,Home Care,G334
http://opendatacommunities.org/id/london-borough-council/sutton,London Borough of Sutton,07/01/2019,40266827,504.00 ,Beyond Community Care Services Ltd,29933,Peoples Services Directorate,Home Care,G334
http://opendatacommunities.org/id/london-borough-council/sutton,London Borough of Sutton,31/12/2018,40266830,420.00 ,Beyond Community Care Services Ltd,29933,Peoples Services Directorate,Home Care,G334
http://opendatacommunities.org/id/london-borough-council/sutton,London Borough of Sutton,31/12/2018,40266831,539.00 ,Beyond Community Care Services Ltd,29933,Peoples Services Directorate,Home Care,G334
http://opendatacommunities.org/id/london-borough-council/sutton,London Borough of Sutton,31/12/2018,40266832,637.00 ,Beyond Community Care Services Ltd,29933,Peoples Services Directorate,Home Care,G334
http://opendatacommunities.org/id/london-borough-council/sutton,London Borough of Sutton,31/12/2018,40266835,504.00 ,Beyond Community Care Services Ltd,29933,Peoples Services Directorate,Home Care,G334
http://opendatacommunities.org/id/london-borough-council/sutton,London Borough of Sutton,18/01/2019,40266856,491.00 ,Beyond Community Care Services Ltd,29933,Peoples Services Directorate,Home Care,G334
http://opendatacommunities.org/id/london-borough-council/sutton,London Borough of Sutton,17/12/2018,40266862,539.00 ,Beyond Community Care Services Ltd,29933,Peoples Services Directorate,Home Care,G334
http://opendatacommunities.org/id/london-borough-council/sutton,London Borough of Sutton,17/12/2018,40266863,637.00 ,Beyond Community Care Services Ltd,29933,Peoples Services Directorate,Home Care,G334
http://opendatacommunities.org/id/london-borough-council/sutton,London Borough of Sutton,18/12/2018,40266870,826.58 ,Beyond Community Care Services Ltd,29933,Peoples Services Directorate,Home Care,G334
http://opendatacommunities.org/id/london-borough-council/sutton,London Borough of Sutton,18/12/2018,40266872,539.00 ,Beyond Community Care Services Ltd,29933,Peoples Services Directorate,Home Care,G334
http://opendatacommunities.org/id/london-borough-council/sutton,London Borough of Sutton,18/12/2018,40266875,420.00 ,Beyond Community Care Services Ltd,29933,Peoples Services Directorate,Home Care,G334
http://opendatacommunities.org/id/london-borough-council/sutton,London Borough of Sutton,18/12/2018,40266876,539.00 ,Beyond Community Care Services Ltd,29933,Peoples Services Directorate,Home Care,G334
http://opendatacommunities.org/id/london-borough-council/sutton,London Borough of Sutton,18/12/2018,40266877,637.00 ,Beyond Community Care Services Ltd,29933,Peoples Services Directorate,Home Care,G334
http://opendatacommunities.org/id/london-borough-council/sutton,London Borough of Sutton,18/12/2018,40266882,504.00 ,Beyond Community Care Services Ltd,29933,Peoples Services Directorate,Home Care,G334
http://opendatacommunities.org/id/london-borough-council/sutton,London Borough of Sutton,18/12/2018,40266884,491.00 ,Beyond Community Care Services Ltd,29933,Peoples Services Directorate,Home Care,G334
http://opendatacommunities.org/id/london-borough-council/sutton,London Borough of Sutton,18/12/2018,40266885,826.58 ,Beyond Community Care Services Ltd,29933,Peoples Services Directorate,Home Care,G334
http://opendatacommunities.org/id/london-borough-council/sutton,London Borough of Sutton,18/12/2018,40266887,539.00 ,Beyond Community Care Services Ltd,29933,Peoples Services Directorate,Home Care,G334
http://opendatacommunities.org/id/london-borough-council/sutton,London Borough of Sutton,18/12/2018,40266891,420.00 ,Beyond Community Care Services Ltd,29933,Peoples Services Directorate,Home Care,G334
http://opendatacommunities.org/id/london-borough-council/sutton,London Borough of Sutton,31/12/2018,6943111,483.84 ,BGC European Holdings LP,26645,Non-Service Cost Centres Directorate,Fees - Consultants (Ad Hoc),F283
http://opendatacommunities.org/id/london-borough-council/sutton,London Borough of Sutton,21/01/2019,1265492,"7,270.56 ",Bizzy Bees Day Nursery,10483,Peoples Services Directorate,Non-Maintained Childrens' Nurseries - 3 & 4 yr olds,G405
http://opendatacommunities.org/id/london-borough-council/sutton,London Borough of Sutton,21/01/2019,1265493,"2,423.52 ",Bizzy Bees Day Nursery,10483,Peoples Services Directorate,Non-Maintained Childrens' Nurseries - 3 & 4 yr olds,G405
http://opendatacommunities.org/id/london-borough-council/sutton,London Borough of Sutton,10/01/2019,6943980,"3,281.53 ",Bloom Procurement Services Ltd,29692,Chief Executive's Directorate,Contractual Consultant Fees,G430
http://opendatacommunities.org/id/london-borough-council/sutton,London Borough of Sutton,10/01/2019,1265984,"11,004.45 ",Blossom House Lower School,10507,Peoples Services Directorate,Independent Schools,G325
http://opendatacommunities.org/id/london-borough-council/sutton,London Borough of Sutton,21/01/2019,1265733,908.82 ,Boadicea Rose (Billy Bears Playdays),26969,Peoples Services Directorate,Non-Maintained Childrens' Nurseries - 3 & 4 yr olds,G405
http://opendatacommunities.org/id/london-borough-council/sutton,London Borough of Sutton,14/12/2018,6943124,"375,800.79 ",Breyer Group Plc,97044,"Environment, Housing & Regeneration Directorate",Building Works -Main Contractor,Y350
http://opendatacommunities.org/id/london-borough-council/sutton,London Borough of Sutton,27/12/2018,40262684,"3,360.00 ",Bridge House Care Centre,10620,Peoples Services Directorate,Nursing Care - Ext Provider,G311
http://opendatacommunities.org/id/london-borough-council/sutton,London Borough of Sutton,27/12/2018,40262778,"5,496.43 ",Bridge House Care Centre,10620,Peoples Services Directorate,Nursing Care - Short Term Placements,G328
http://opendatacommunities.org/id/london-borough-council/sutton,London Borough of Sutton,27/12/2018,40262784,"3,200.00 ",Bridge House Care Centre,10620,Peoples Services Directorate,Nursing Care - Ext Provider,G311
http://opendatacommunities.org/id/london-borough-council/sutton,London Borough of Sutton,27/12/2018,40262911,"4,903.77 ",Bridge House Care Centre,10620,Peoples Services Directorate,Nursing Care - Ext Provider,G311
http://opendatacommunities.org/id/london-borough-council/sutton,London Borough of Sutton,27/12/2018,40262917,"3,420.00 ",Bridge House Care Centre,10620,Peoples Services Directorate,Nursing Care - Ext Provider,G311
http://opendatacommunities.org/id/london-borough-council/sutton,London Borough of Sutton,27/12/2018,40262918,"1,942.48 ",Bridge House Care Centre,10620,Peoples Services Directorate,Nursing Care - Ext Provider,G311
http://opendatacommunities.org/id/london-borough-council/sutton,London Borough of Sutton,27/12/2018,40262925,"3,600.00 ",Bridge House Care Centre,10620,Peoples Services Directorate,Nursing Care - Ext Provider,G311
http://opendatacommunities.org/id/london-borough-council/sutton,London Borough of Sutton,27/12/2018,40262973,"3,432.64 ",Bridge House Care Centre,10620,Peoples Services Directorate,Nursing Care - Ext Provider,G311
http://opendatacommunities.org/id/london-borough-council/sutton,London Borough of Sutton,27/12/2018,40263006,"4,658.58 ",Bridge House Care Centre,10620,Peoples Services Directorate,Nursing Care - Ext Provider,G311
http://opendatacommunities.org/id/london-borough-council/sutton,London Borough of Sutton,27/12/2018,40263011,"2,034.96 ",Bridge House Care Centre,10620,Peoples Services Directorate,Nursing Care - Ext Provider,G311
http://opendatacommunities.org/id/london-borough-council/sutton,London Borough of Sutton,27/12/2018,40263057,"3,432.64 ",Bridge House Care Centre,10620,Peoples Services Directorate,Nursing Care - Ext Provider,G311
http://opendatacommunities.org/id/london-borough-council/sutton,London Borough of Sutton,27/12/2018,40263060,"3,600.00 ",Bridge House Care Centre,10620,Peoples Services Directorate,Nursing Care - Ext Provider,G311
http://opendatacommunities.org/id/london-borough-council/sutton,London Borough of Sutton,27/12/2018,40263074,"2,033.92 ",Bridge House Care Centre,10620,Peoples Services Directorate,Nursing Care - Ext Provider,G311
http://opendatacommunities.org/id/london-borough-council/sutton,London Borough of Sutton,25/01/2019,40270979,"5,516.74 ",Bridge House Care Centre,10620,Peoples Services Directorate,Nursing Care - Ext Provider,G311
http://opendatacommunities.org/id/london-borough-council/sutton,London Borough of Sutton,25/01/2019,40270980,"4,500.00 ",Bridge House Care Centre,10620,Peoples Services Directorate,Nursing Care - Ext Provider,G311
http://opendatacommunities.org/id/london-borough-council/sutton,London Borough of Sutton,25/01/2019,40270992,"3,432.64 ",Bridge House Care Centre,10620,Peoples Services Directorate,Nursing Care - Ext Provider,G311
http://opendatacommunities.org/id/london-borough-council/sutton,London Borough of Sutton,25/01/2019,40270997,"3,420.00 ",Bridge House Care Centre,10620,Peoples Services Directorate,Nursing Care - Ext Provider,G311
http://opendatacommunities.org/id/london-borough-council/sutton,London Borough of Sutton,25/01/2019,40270998,"1,942.48 ",Bridge House Care Centre,10620,Peoples Services Directorate,Nursing Care - Ext Provider,G311
http://opendatacommunities.org/id/london-borough-council/sutton,London Borough of Sutton,25/01/2019,40271004,"3,600.00 ",Bridge House Care Centre,10620,Peoples Services Directorate,Nursing Care - Ext Provider,G311
http://opendatacommunities.org/id/london-borough-council/sutton,London Borough of Sutton,25/01/2019,40271053,"3,432.64 ",Bridge House Care Centre,10620,Peoples Services Directorate,Nursing Care - Ext Provider,G311
http://opendatacommunities.org/id/london-borough-council/sutton,London Borough of Sutton,25/01/2019,40271088,"3,432.64 ",Bridge House Care Centre,10620,Peoples Services Directorate,Nursing Care - Ext Provider,G311
http://opendatacommunities.org/id/london-borough-council/sutton,London Borough of Sutton,25/01/2019,40271093,"2,034.96 ",Bridge House Care Centre,10620,Peoples Services Directorate,Nursing Care - Ext Provider,G311
http://opendatacommunities.org/id/london-borough-council/sutton,London Borough of Sutton,25/01/2019,40271139,"3,432.64 ",Bridge House Care Centre,10620,Peoples Services Directorate,Nursing Care - Ext Provider,G311
http://opendatacommunities.org/id/london-borough-council/sutton,London Borough of Sutton,25/01/2019,40271142,"3,600.00 ",Bridge House Care Centre,10620,Peoples Services Directorate,Nursing Care - Ext Provider,G311
http://opendatacommunities.org/id/london-borough-council/sutton,London Borough of Sutton,25/01/2019,40271155,"2,033.92 ",Bridge House Care Centre,10620,Peoples Services Directorate,Nursing Care - Ext Provider,G311
http://opendatacommunities.org/id/london-borough-council/sutton,London Borough of Sutton,25/01/2019,40271163,"3,360.00 ",Bridge House Care Centre,10620,Peoples Services Directorate,Nursing Care - Ext Provider,G311
http://opendatacommunities.org/id/london-borough-council/sutton,London Borough of Sutton,25/01/2019,40271199,"3,432.64 ",Bridge House Care Centre,10620,Peoples Services Directorate,Nursing Care - Ext Provider,G311
http://opendatacommunities.org/id/london-borough-council/sutton,London Borough of Sutton,25/01/2019,40271289,"3,420.00 ",Bridge House Care Centre,10620,Peoples Services Directorate,Nursing Care - Short Term Placements,G328
http://opendatacommunities.org/id/london-borough-council/sutton,London Borough of Sutton,25/01/2019,40271295,"3,200.00 ",Bridge House Care Centre,10620,Peoples Services Directorate,Nursing Care - Ext Provider,G311
http://opendatacommunities.org/id/london-borough-council/sutton,London Borough of Sutton,25/01/2019,40271302,"4,290.80 ",Bridge House Care Centre,10620,Peoples Services Directorate,Nursing Care - Ext Provider,G311
http://opendatacommunities.org/id/london-borough-council/sutton,London Borough of Sutton,01/12/2018,6943273,861.19 ,Bright Horizons Family Solutions,23734,Peoples Services Directorate,Children Assessments,G329
http://opendatacommunities.org/id/london-borough-council/sutton,London Borough of Sutton,03/12/2018,40264387,"3,077.86 ",Brighter Futures Foster Care Ltd,27648,Peoples Services Directorate,Foster Parents,G326
http://opendatacommunities.org/id/london-borough-council/sutton,London Borough of Sutton,03/12/2018,40264388,"3,077.86 ",Brighter Futures Foster Care Ltd,27648,Peoples Services Directorate,Foster Parents,G326
http://opendatacommunities.org/id/london-borough-council/sutton,London Borough of Sutton,03/12/2018,40264397,"3,808.57 ",Brighter Futures Foster Care Ltd,27648,Peoples Services Directorate,Foster Parents,G326
http://opendatacommunities.org/id/london-borough-council/sutton,London Borough of Sutton,03/12/2018,40264504,"2,860.86 ",Brighter Futures Foster Care Ltd,27648,Peoples Services Directorate,Foster Parents,G326
http://opendatacommunities.org/id/london-borough-council/sutton,London Borough of Sutton,20/12/2018,6943400,557.63 ,British Gas,10641,"Environment, Housing & Regeneration Directorate",Gas - General,D610
http://opendatacommunities.org/id/london-borough-council/sutton,London Borough of Sutton,20/12/2018,6943210,557.63 ,British Gas Plc,10577,"Environment, Housing & Regeneration Directorate",Gas - General,D610
http://opendatacommunities.org/id/london-borough-council/sutton,London Borough of Sutton,27/12/2018,40262691,"2,710.40 ",British Home & Hospital For Incurables,10589,Peoples Services Directorate,Nursing Care - Ext Provider,G311
http://opendatacommunities.org/id/london-borough-council/sutton,London Borough of Sutton,27/12/2018,40262855,"2,439.36 ",British Home & Hospital For Incurables,10589,Peoples Services Directorate,Nursing Care - Ext Provider,G311
http://opendatacommunities.org/id/london-borough-council/sutton,London Borough of Sutton,25/01/2019,40271170,"2,710.40 ",British Home & Hospital For Incurables,10589,Peoples Services Directorate,Nursing Care - Ext Provider,G311
http://opendatacommunities.org/id/london-borough-council/sutton,London Borough of Sutton,25/01/2019,40271327,"2,439.36 ",British Home & Hospital For Incurables,10589,Peoples Services Directorate,Nursing Care - Ext Provider,G311
http://opendatacommunities.org/id/london-borough-council/sutton,London Borough of Sutton,27/12/2018,40262697,"3,380.00 ",Broadlands Nursing Home,10586,Peoples Services Directorate,Nursing Care - Ext Provider,G311
http://opendatacommunities.org/id/london-borough-council/sutton,London Borough of Sutton,27/12/2018,40262774,"2,945.00 ",Broadlands Nursing Home,10586,Peoples Services Directorate,Nursing Care - Ext Provider,G311
http://opendatacommunities.org/id/london-borough-council/sutton,London Borough of Sutton,27/12/2018,40262789,"3,432.64 ",Broadlands Nursing Home,10586,Peoples Services Directorate,Nursing Care - Ext Provider,G311
http://opendatacommunities.org/id/london-borough-council/sutton,London Borough of Sutton,27/12/2018,40262833,"5,092.87 ",Broadlands Nursing Home,10586,Peoples Services Directorate,Nursing Care - Ext Provider,G311
http://opendatacommunities.org/id/london-borough-council/sutton,London Borough of Sutton,27/12/2018,40262997,"3,277.16 ",Broadlands Nursing Home,10586,Peoples Services Directorate,Nursing Care - Ext Provider,G311
http://opendatacommunities.org/id/london-borough-council/sutton,London Borough of Sutton,27/12/2018,40263071,"3,380.00 ",Broadlands Nursing Home,10586,Peoples Services Directorate,Nursing Care - Ext Provider,G311
http://opendatacommunities.org/id/london-borough-council/sutton,London Borough of Sutton,25/01/2019,40271078,"3,277.16 ",Broadlands Nursing Home,10586,Peoples Services Directorate,Nursing Care - Ext Provider,G311
http://opendatacommunities.org/id/london-borough-council/sutton,London Borough of Sutton,25/01/2019,40271152,"3,380.00 ",Broadlands Nursing Home,10586,Peoples Services Directorate,Nursing Care - Ext Provider,G311
http://opendatacommunities.org/id/london-borough-council/sutton,London Borough of Sutton,25/01/2019,40271176,"3,380.00 ",Broadlands Nursing Home,10586,Peoples Services Directorate,Nursing Care - Ext Provider,G311
http://opendatacommunities.org/id/london-borough-council/sutton,London Borough of Sutton,25/01/2019,40271281,"3,752.64 ",Broadlands Nursing Home,10586,Peoples Services Directorate,Nursing Care - Ext Provider,G311
http://opendatacommunities.org/id/london-borough-council/sutton,London Borough of Sutton,25/01/2019,40271285,"2,945.00 ",Broadlands Nursing Home,10586,Peoples Services Directorate,Nursing Care - Ext Provider,G311
http://opendatacommunities.org/id/london-borough-council/sutton,London Borough of Sutton,25/01/2019,40271301,"3,432.64 ",Broadlands Nursing Home,10586,Peoples Services Directorate,Nursing Care - Ext Provider,G311
http://opendatacommunities.org/id/london-borough-council/sutton,London Borough of Sutton,07/01/2019,6943217,"1,960.00 ",Bromley & Croydon Women's Aid,26394,Peoples Services Directorate,C.C.A Rent & Utilities,H211
http://opendatacommunities.org/id/london-borough-council/sutton,London Borough of Sutton,16/11/2018,6943218,"2,520.00 ",Bromley & Croydon Women's Aid,26394,Peoples Services Directorate,C.C.A Rent & Utilities,H211
http://opendatacommunities.org/id/london-borough-council/sutton,London Borough of Sutton,30/11/2018,1264466,"3,278.00 ",Brunswick Cars 9761/1961276/Loc09,10611,Peoples Services Directorate,Hired Peoples Transport (Children),E072
http://opendatacommunities.org/id/london-borough-council/sutton,London Borough of Sutton,30/11/2018,1264467,"3,245.00 ",Brunswick Cars 9761/1961276/Loc09,10611,Peoples Services Directorate,Hired Peoples Transport (Children),E072
http://opendatacommunities.org/id/london-borough-council/sutton,London Borough of Sutton,30/11/2018,1264495,"6,744.00 ",Brunswick Cars 9761/1961276/Loc09,10611,Peoples Services Directorate,Hired Peoples Transport (Children),E072
http://opendatacommunities.org/id/london-borough-council/sutton,London Borough of Sutton,30/11/2018,1264496,"4,334.00 ",Brunswick Cars 9761/1961276/Loc09,10611,Peoples Services Directorate,Hired Peoples Transport (Children),E072
http://opendatacommunities.org/id/london-borough-council/sutton,London Borough of Sutton,30/11/2018,1265263,"6,314.00 ",Brunswick Cars 9761/1961276/Loc09,10611,Peoples Services Directorate,Hired Peoples Transport (Children),E072
http://opendatacommunities.org/id/london-borough-council/sutton,London Borough of Sutton,30/11/2018,1265264,"6,622.00 ",Brunswick Cars 9761/1961276/Loc09,10611,Peoples Services Directorate,Hired Peoples Transport (Children),E072
http://opendatacommunities.org/id/london-borough-council/sutton,London Borough of Sutton,30/11/2018,1265265,"4,410.00 ",Brunswick Cars 9761/1961276/Loc09,10611,Peoples Services Directorate,Hired Peoples Transport (Children),E072
http://opendatacommunities.org/id/london-borough-council/sutton,London Borough of Sutton,30/11/2018,1265266,"4,452.00 ",Brunswick Cars 9761/1961276/Loc09,10611,Peoples Services Directorate,Hired Peoples Transport (Children),E072
http://opendatacommunities.org/id/london-borough-council/sutton,London Borough of Sutton,30/11/2018,1265267,"4,542.00 ",Brunswick Cars 9761/1961276/Loc09,10611,Peoples Services Directorate,Hired Peoples Transport (Children),E072
http://opendatacommunities.org/id/london-borough-council/sutton,London Borough of Sutton,30/11/2018,1265268,"3,976.00 ",Brunswick Cars 9761/1961276/Loc09,10611,Peoples Services Directorate,Hired Peoples Transport (Children),E072
http://opendatacommunities.org/id/london-borough-council/sutton,London Borough of Sutton,30/11/2018,1265269,"3,080.00 ",Brunswick Cars 9761/1961276/Loc09,10611,Peoples Services Directorate,Hired Peoples Transport (Children),E072
http://opendatacommunities.org/id/london-borough-council/sutton,London Borough of Sutton,31/12/2018,1265898,"1,800.00 ",Brunswick Cars 9761/1961276/Loc09,10611,Peoples Services Directorate,Hired Peoples Transport (Children),E072
http://opendatacommunities.org/id/london-borough-council/sutton,London Borough of Sutton,31/12/2018,1265899,"1,652.00 ",Brunswick Cars 9761/1961276/Loc09,10611,Peoples Services Directorate,Hired Peoples Transport (Children),E072
http://opendatacommunities.org/id/london-borough-council/sutton,London Borough of Sutton,31/12/2018,1265900,"1,470.00 ",Brunswick Cars 9761/1961276/Loc09,10611,Peoples Services Directorate,Hired Peoples Transport (Children),E072
http://opendatacommunities.org/id/london-borough-council/sutton,London Borough of Sutton,31/12/2018,1265901,"1,635.00 ",Brunswick Cars 9761/1961276/Loc09,10611,Peoples Services Directorate,Hired Peoples Transport (Children),E072
http://opendatacommunities.org/id/london-borough-council/sutton,London Borough of Sutton,31/12/2018,1265902,"1,550.00 ",Brunswick Cars 9761/1961276/Loc09,10611,Peoples Services Directorate,Hired Peoples Transport (Children),E072
http://opendatacommunities.org/id/london-borough-council/sutton,London Borough of Sutton,31/12/2018,1265903,"1,960.00 ",Brunswick Cars 9761/1961276/Loc09,10611,Peoples Services Directorate,Hired Peoples Transport (Children),E072
http://opendatacommunities.org/id/london-borough-council/sutton,London Borough of Sutton,31/12/2018,1265904,"1,290.00 ",Brunswick Cars 9761/1961276/Loc09,10611,Peoples Services Directorate,Hired Peoples Transport (Children),E072
http://opendatacommunities.org/id/london-borough-council/sutton,London Borough of Sutton,31/12/2018,1265905,"2,717.00 ",Brunswick Cars 9761/1961276/Loc09,10611,Peoples Services Directorate,Hired Peoples Transport (Children),E072
http://opendatacommunities.org/id/london-borough-council/sutton,London Borough of Sutton,31/12/2018,1265906,"1,547.00 ",Brunswick Cars 9761/1961276/Loc09,10611,Peoples Services Directorate,Hired Peoples Transport (Children),E072
http://opendatacommunities.org/id/london-borough-council/sutton,London Borough of Sutton,31/12/2018,1265907,"4,214.00 ",Brunswick Cars 9761/1961276/Loc09,10611,Peoples Services Directorate,Hired Peoples Transport (Children),E072
http://opendatacommunities.org/id/london-borough-council/sutton,London Borough of Sutton,31/12/2018,1265908,"2,322.00 ",Brunswick Cars 9761/1961276/Loc09,10611,Peoples Services Directorate,Hired Peoples Transport (Children),E072
http://opendatacommunities.org/id/london-borough-council/sutton,London Borough of Sutton,31/12/2018,1265909,"3,060.00 ",Brunswick Cars 9761/1961276/Loc09,10611,Peoples Services Directorate,Hired Peoples Transport (Children),E072
http://opendatacommunities.org/id/london-borough-council/sutton,London Borough of Sutton,31/12/2018,1265910,"2,655.00 ",Brunswick Cars 9761/1961276/Loc09,10611,Peoples Services Directorate,Hired Peoples Transport (Children),E072
http://opendatacommunities.org/id/london-borough-council/sutton,London Borough of Sutton,31/12/2018,1265911,"3,635.00 ",Brunswick Cars 9761/1961276/Loc09,10611,Peoples Services Directorate,Hired Peoples Transport (Children),E072
http://opendatacommunities.org/id/london-borough-council/sutton,London Borough of Sutton,31/12/2018,1265912,"4,977.00 ",Brunswick Cars 9761/1961276/Loc09,10611,Peoples Services Directorate,Hired Peoples Transport (Children),E072
http://opendatacommunities.org/id/london-borough-council/sutton,London Borough of Sutton,31/12/2018,1265913,"3,136.00 ",Brunswick Cars 9761/1961276/Loc09,10611,Peoples Services Directorate,Hired Peoples Transport (Children),E072
http://opendatacommunities.org/id/london-borough-council/sutton,London Borough of Sutton,31/12/2018,1265914,"3,076.00 ",Brunswick Cars 9761/1961276/Loc09,10611,Peoples Services Directorate,Hired Peoples Transport (Children),E072
http://opendatacommunities.org/id/london-borough-council/sutton,London Borough of Sutton,31/12/2018,1265915,"2,086.00 ",Brunswick Cars 9761/1961276/Loc09,10611,Peoples Services Directorate,Hired Peoples Transport (Children),E072
http://opendatacommunities.org/id/london-borough-council/sutton,London Borough of Sutton,31/12/2018,1265916,"1,560.00 ",Brunswick Cars 9761/1961276/Loc09,10611,Peoples Services Directorate,Hired Peoples Transport (Children),E072
http://opendatacommunities.org/id/london-borough-council/sutton,London Borough of Sutton,31/12/2018,1265917,"2,618.00 ",Brunswick Cars 9761/1961276/Loc09,10611,Peoples Services Directorate,Hired Peoples Transport (Children),E072
http://opendatacommunities.org/id/london-borough-council/sutton,London Borough of Sutton,31/12/2018,1265918,"1,356.00 ",Brunswick Cars 9761/1961276/Loc09,10611,Peoples Services Directorate,Hired Peoples Transport (Children),E072
http://opendatacommunities.org/id/london-borough-council/sutton,London Borough of Sutton,31/12/2018,1265919,"3,122.00 ",Brunswick Cars 9761/1961276/Loc09,10611,Peoples Services Directorate,Hired Peoples Transport (Children),E072
http://opendatacommunities.org/id/london-borough-council/sutton,London Borough of Sutton,31/12/2018,1265920,"3,429.00 ",Brunswick Cars 9761/1961276/Loc09,10611,Peoples Services Directorate,Hired Peoples Transport (Children),E072
http://opendatacommunities.org/id/london-borough-council/sutton,London Borough of Sutton,31/12/2018,1265921,"3,270.00 ",Brunswick Cars 9761/1961276/Loc09,10611,Peoples Services Directorate,Hired Peoples Transport (Children),E072
http://opendatacommunities.org/id/london-borough-council/sutton,London Borough of Sutton,31/12/2018,1265922,"4,005.00 ",Brunswick Cars 9761/1961276/Loc09,10611,Peoples Services Directorate,Hired Peoples Transport (Children),E072
http://opendatacommunities.org/id/london-borough-council/sutton,London Borough of Sutton,31/12/2018,1265923,"2,475.00 ",Brunswick Cars 9761/1961276/Loc09,10611,Peoples Services Directorate,Hired Peoples Transport (Children),E072
http://opendatacommunities.org/id/london-borough-council/sutton,London Borough of Sutton,31/12/2018,1265924,"4,305.00 ",Brunswick Cars 9761/1961276/Loc09,10611,Peoples Services Directorate,Hired Peoples Transport (Children),E072
http://opendatacommunities.org/id/london-borough-council/sutton,London Borough of Sutton,31/12/2018,1265925,"4,260.00 ",Brunswick Cars 9761/1961276/Loc09,10611,Peoples Services Directorate,Hired Peoples Transport (Children),E072
http://opendatacommunities.org/id/london-borough-council/sutton,London Borough of Sutton,31/12/2018,1265926,"3,733.50 ",Brunswick Cars 9761/1961276/Loc09,10611,Peoples Services Directorate,Hired Peoples Transport (Children),E072
http://opendatacommunities.org/id/london-borough-council/sutton,London Borough of Sutton,31/12/2018,1265927,"3,265.00 ",Brunswick Cars 9761/1961276/Loc09,10611,Peoples Services Directorate,Hired Peoples Transport (Children),E072
http://opendatacommunities.org/id/london-borough-council/sutton,London Borough of Sutton,31/12/2018,1265928,"1,560.00 ",Brunswick Cars 9761/1961276/Loc09,10611,Peoples Services Directorate,Hired Peoples Transport (Children),E072
http://opendatacommunities.org/id/london-borough-council/sutton,London Borough of Sutton,31/12/2018,1265929,"4,165.00 ",Brunswick Cars 9761/1961276/Loc09,10611,Peoples Services Directorate,Hired Peoples Transport (Children),E072
http://opendatacommunities.org/id/london-borough-council/sutton,London Borough of Sutton,31/12/2018,1265930,"1,710.00 ",Brunswick Cars 9761/1961276/Loc09,10611,Peoples Services Directorate,Hired Peoples Transport (Children),E072
http://opendatacommunities.org/id/london-borough-council/sutton,London Borough of Sutton,31/12/2018,1265931,"2,595.00 ",Brunswick Cars 9761/1961276/Loc09,10611,Peoples Services Directorate,Hired Peoples Transport (Children),E072
http://opendatacommunities.org/id/london-borough-council/sutton,London Borough of Sutton,31/12/2018,1265932,570.00 ,Brunswick Cars 9761/1961276/Loc09,10611,Peoples Services Directorate,Hired Peoples Transport (Children),E072
http://opendatacommunities.org/id/london-borough-council/sutton,London Borough of Sutton,31/12/2018,1265933,"2,376.00 ",Brunswick Cars 9761/1961276/Loc09,10611,Peoples Services Directorate,Hired Peoples Transport (Children),E072
http://opendatacommunities.org/id/london-borough-council/sutton,London Borough of Sutton,31/12/2018,1265935,"2,190.00 ",Brunswick Cars 9761/1961276/Loc09,10611,Peoples Services Directorate,Hired Peoples Transport (Children),E072
http://opendatacommunities.org/id/london-borough-council/sutton,London Borough of Sutton,31/12/2018,1265936,"2,067.00 ",Brunswick Cars 9761/1961276/Loc09,10611,Peoples Services Directorate,Hired Peoples Transport (Children),E072
http://opendatacommunities.org/id/london-borough-council/sutton,London Borough of Sutton,31/12/2018,1265937,444.00 ,Brunswick Cars 9761/1961276/Loc09,10611,Peoples Services Directorate,Hired Peoples Transport (Children),E072
http://opendatacommunities.org/id/london-borough-council/sutton,London Borough of Sutton,31/12/2018,1265938,"3,096.00 ",Brunswick Cars 9761/1961276/Loc09,10611,Peoples Services Directorate,Hired Peoples Transport (Children),E072
http://opendatacommunities.org/id/london-borough-council/sutton,London Borough of Sutton,31/12/2018,1265939,"2,772.00 ",Brunswick Cars 9761/1961276/Loc09,10611,Peoples Services Directorate,Hired Peoples Transport (Children),E072
http://opendatacommunities.org/id/london-borough-council/sutton,London Borough of Sutton,31/12/2018,1265940,"1,736.00 ",Brunswick Cars 9761/1961276/Loc09,10611,Peoples Services Directorate,Hired Peoples Transport (Children),E072
http://opendatacommunities.org/id/london-borough-council/sutton,London Borough of Sutton,31/12/2018,1265941,"1,221.00 ",Brunswick Cars 9761/1961276/Loc09,10611,Peoples Services Directorate,Hired Peoples Transport (Children),E072
http://opendatacommunities.org/id/london-borough-council/sutton,London Borough of Sutton,31/12/2018,1265942,"1,845.00 ",Brunswick Cars 9761/1961276/Loc09,10611,Peoples Services Directorate,Hired Peoples Transport (Children),E072
http://opendatacommunities.org/id/london-borough-council/sutton,London Borough of Sutton,31/12/2018,1265943,"1,330.00 ",Brunswick Cars 9761/1961276/Loc09,10611,Peoples Services Directorate,Hired Peoples Transport (Children),E072
http://opendatacommunities.org/id/london-borough-council/sutton,London Borough of Sutton,31/12/2018,1265944,"2,280.00 ",Brunswick Cars 9761/1961276/Loc09,10611,Peoples Services Directorate,Hired Peoples Transport (Children),E072
http://opendatacommunities.org/id/london-borough-council/sutton,London Borough of Sutton,31/12/2018,1265945,"2,345.00 ",Brunswick Cars 9761/1961276/Loc09,10611,Peoples Services Directorate,Hired Peoples Transport (Children),E072
http://opendatacommunities.org/id/london-borough-council/sutton,London Borough of Sutton,31/12/2018,1265946,"1,770.00 ",Brunswick Cars 9761/1961276/Loc09,10611,Peoples Services Directorate,Hired Peoples Transport (Children),E072
http://opendatacommunities.org/id/london-borough-council/sutton,London Borough of Sutton,31/12/2018,1265949,"1,391.00 ",Brunswick Cars 9761/1961276/Loc09,10611,Peoples Services Directorate,Hired Peoples Transport (Children),E072
http://opendatacommunities.org/id/london-borough-council/sutton,London Borough of Sutton,31/12/2018,1265950,"3,165.00 ",Brunswick Cars 9761/1961276/Loc09,10611,Peoples Services Directorate,Hired Peoples Transport (Children),E072
http://opendatacommunities.org/id/london-borough-council/sutton,London Borough of Sutton,31/12/2018,1265951,"2,310.00 ",Brunswick Cars 9761/1961276/Loc09,10611,Peoples Services Directorate,Hired Peoples Transport (Children),E072
http://opendatacommunities.org/id/london-borough-council/sutton,London Borough of Sutton,31/12/2018,1265952,"4,005.00 ",Brunswick Cars 9761/1961276/Loc09,10611,Peoples Services Directorate,Hired Peoples Transport (Children),E072
http://opendatacommunities.org/id/london-borough-council/sutton,London Borough of Sutton,31/12/2018,1265953,"2,979.00 ",Brunswick Cars 9761/1961276/Loc09,10611,Peoples Services Directorate,Hired Peoples Transport (Children),E072
http://opendatacommunities.org/id/london-borough-council/sutton,London Borough of Sutton,31/12/2018,1265954,"2,805.00 ",Brunswick Cars 9761/1961276/Loc09,10611,Peoples Services Directorate,Hired Peoples Transport (Children),E072
http://opendatacommunities.org/id/london-borough-council/sutton,London Borough of Sutton,31/12/2018,1265955,455.00 ,Brunswick Cars 9761/1961276/Loc09,10611,Peoples Services Directorate,Hired Peoples Transport (Children),E072
http://opendatacommunities.org/id/london-borough-council/sutton,London Borough of Sutton,31/12/2018,1265956,"1,870.50 ",Brunswick Cars 9761/1961276/Loc09,10611,Peoples Services Directorate,Hired Peoples Transport (Children),E072
http://opendatacommunities.org/id/london-borough-council/sutton,London Borough of Sutton,31/12/2018,1265959,"4,740.00 ",Brunswick Cars 9761/1961276/Loc09,10611,Peoples Services Directorate,Hired Peoples Transport (Children),E072
http://opendatacommunities.org/id/london-borough-council/sutton,London Borough of Sutton,31/12/2018,1265960,"2,100.00 ",Brunswick Cars 9761/1961276/Loc09,10611,Peoples Services Directorate,Hired Peoples Transport (Children),E072
http://opendatacommunities.org/id/london-borough-council/sutton,London Borough of Sutton,31/12/2018,1265961,"1,200.00 ",Brunswick Cars 9761/1961276/Loc09,10611,Peoples Services Directorate,Hired Peoples Transport (Children),E072
http://opendatacommunities.org/id/london-borough-council/sutton,London Borough of Sutton,31/12/2018,1265962,"1,260.00 ",Brunswick Cars 9761/1961276/Loc09,10611,Peoples Services Directorate,Hired Peoples Transport (Children),E072
http://opendatacommunities.org/id/london-borough-council/sutton,London Borough of Sutton,31/12/2018,1265967,"1,650.00 ",Brunswick Cars 9761/1961276/Loc09,10611,Peoples Services Directorate,Hired Peoples Transport (Children),E072
http://opendatacommunities.org/id/london-borough-council/sutton,London Borough of Sutton,31/12/2018,1265968,"1,560.00 ",Brunswick Cars 9761/1961276/Loc09,10611,Peoples Services Directorate,Hired Peoples Transport (Children),E072
http://opendatacommunities.org/id/london-borough-council/sutton,London Borough of Sutton,27/12/2018,6943029,868.00 ,Buller Hotel,23493,"Environment, Housing & Regeneration Directorate",Bed and Breakfast Accommodation,G400
http://opendatacommunities.org/id/london-borough-council/sutton,London Borough of Sutton,27/12/2018,6943030,868.00 ,Buller Hotel,23493,"Environment, Housing & Regeneration Directorate",Bed and Breakfast Accommodation,G400
http://opendatacommunities.org/id/london-borough-council/sutton,London Borough of Sutton,27/12/2018,6943032,930.00 ,Buller Hotel,23493,"Environment, Housing & Regeneration Directorate",Bed and Breakfast Accommodation,G400
http://opendatacommunities.org/id/london-borough-council/sutton,London Borough of Sutton,27/12/2018,6943033,930.00 ,Buller Hotel,23493,"Environment, Housing & Regeneration Directorate",Bed and Breakfast Accommodation,G400
http://opendatacommunities.org/id/london-borough-council/sutton,London Borough of Sutton,27/12/2018,6943035,504.00 ,Buller Hotel,23493,"Environment, Housing & Regeneration Directorate",Bed and Breakfast Accommodation,G400
http://opendatacommunities.org/id/london-borough-council/sutton,London Borough of Sutton,27/12/2018,6943036,"1,041.60 ",Buller Hotel,23493,"Environment, Housing & Regeneration Directorate",Bed and Breakfast Accommodation,G400
http://opendatacommunities.org/id/london-borough-council/sutton,London Borough of Sutton,06/11/2018,6943771,868.00 ,Buller Hotel,23493,"Environment, Housing & Regeneration Directorate",Bed and Breakfast Accommodation,G400
http://opendatacommunities.org/id/london-borough-council/sutton,London Borough of Sutton,21/01/2019,1265495,687.85 ,Bumpsa Daisies Nurserys,10727,Peoples Services Directorate,Non-Maintained Childrens' Nurseries - 2 Year Olds,G404
http://opendatacommunities.org/id/london-borough-council/sutton,London Borough of Sutton,21/01/2019,1265496,"7,010.19 ",Bumpsa Daisies Nurserys,10727,Peoples Services Directorate,Non-Maintained Childrens' Nurseries - 3 & 4 yr olds,G405
http://opendatacommunities.org/id/london-borough-council/sutton,London Borough of Sutton,21/01/2019,1265497,"3,457.08 ",Bumpsa Daisies Nurserys,10727,Peoples Services Directorate,Non-Maintained Childrens' Nurseries - 3 & 4 yr olds,G405
http://opendatacommunities.org/id/london-borough-council/sutton,London Borough of Sutton,03/01/2019,6943116,580.26 ,Bunzl Catering Supplies,10706,Chief Executive's Directorate,Refreshments,F155
http://opendatacommunities.org/id/london-borough-council/sutton,London Borough of Sutton,27/12/2018,40263051,"3,436.00 ",Bupa Care Services,10175,Peoples Services Directorate,Nursing Care - Ext Provider,G311
http://opendatacommunities.org/id/london-borough-council/sutton,London Borough of Sutton,25/01/2019,40271131,"3,436.00 ",Bupa Care Services,10175,Peoples Services Directorate,Nursing Care - Ext Provider,G311
http://opendatacommunities.org/id/london-borough-council/sutton,London Borough of Sutton,23/01/2019,6944276,"23,230.44 ",Burlington Credit Ltd,33388,"Environment, Housing & Regeneration Directorate",Travellers Clearance Expenses,D513
http://opendatacommunities.org/id/london-borough-council/sutton,London Borough of Sutton,25/01/2019,6944277,"23,606.90 ",Burlington Credit Ltd,33388,"Environment, Housing & Regeneration Directorate",Travellers Clearance Expenses,D513
http://opendatacommunities.org/id/london-borough-council/sutton,London Borough of Sutton,21/01/2019,1265677,"11,946.13 ",Busy Bees Day Nurseries Ltd - Cheam,24079,Peoples Services Directorate,Non-Maintained Childrens' Nurseries - 3 & 4 yr olds,G405
http://opendatacommunities.org/id/london-borough-council/sutton,London Borough of Sutton,21/01/2019,1265678,"3,553.11 ",Busy Bees Day Nurseries Ltd - Cheam,24079,Peoples Services Directorate,Non-Maintained Childrens' Nurseries - 3 & 4 yr olds,G405
http://opendatacommunities.org/id/london-borough-council/sutton,London Borough of Sutton,21/01/2019,1265680,687.85 ,Busy Bees Day Nursery at Carshalton,24082,Peoples Services Directorate,Non-Maintained Childrens' Nurseries - 2 Year Olds,G404
http://opendatacommunities.org/id/london-borough-council/sutton,London Borough of Sutton,21/01/2019,1265681,"13,290.55 ",Busy Bees Day Nursery at Carshalton,24082,Peoples Services Directorate,Non-Maintained Childrens' Nurseries - 3 & 4 yr olds,G405
http://opendatacommunities.org/id/london-borough-council/sutton,London Borough of Sutton,21/01/2019,1265682,"7,874.46 ",Busy Bees Day Nursery at Carshalton,24082,Peoples Services Directorate,Non-Maintained Childrens' Nurseries - 3 & 4 yr olds,G405
http://opendatacommunities.org/id/london-borough-council/sutton,London Borough of Sutton,27/12/2018,40262812,"7,824.28 ",Butterfly's Care Homes Ltd,28860,Peoples Services Directorate,Residential Care - Ext Provider,G310
http://opendatacommunities.org/id/london-borough-council/sutton,London Borough of Sutton,25/01/2019,40271262,"7,824.28 ",Butterfly's Care Homes Ltd,28860,Peoples Services Directorate,Residential Care - Ext Provider,G310
http://opendatacommunities.org/id/london-borough-council/sutton,London Borough of Sutton,01/01/2019,40264432,"4,499.65 ",By The Bridge Ltd,25655,Peoples Services Directorate,Foster Parents,G326
http://opendatacommunities.org/id/london-borough-council/sutton,London Borough of Sutton,01/01/2019,40264433,"4,388.05 ",By The Bridge Ltd,25655,Peoples Services Directorate,Foster Parents,G326
http://opendatacommunities.org/id/london-borough-council/sutton,London Borough of Sutton,01/01/2019,40264447,"3,912.86 ",By The Bridge Ltd,25655,Peoples Services Directorate,Foster Parents,G326
http://opendatacommunities.org/id/london-borough-council/sutton,London Borough of Sutton,01/01/2019,40264448,"3,912.86 ",By The Bridge Ltd,25655,Peoples Services Directorate,Foster Parents,G326
http://opendatacommunities.org/id/london-borough-council/sutton,London Borough of Sutton,01/01/2019,40264449,"4,749.42 ",By The Bridge Ltd,25655,Peoples Services Directorate,Foster Parents,G326
http://opendatacommunities.org/id/london-borough-council/sutton,London Borough of Sutton,01/01/2019,40264450,"3,191.58 ",By The Bridge Ltd,25655,Peoples Services Directorate,Foster Parents,G326
http://opendatacommunities.org/id/london-borough-council/sutton,London Borough of Sutton,01/12/2018,40264519,"1,714.32 ",Caldecott Fostering Ltd,26730,Peoples Services Directorate,Foster Parents,G326
http://opendatacommunities.org/id/london-borough-council/sutton,London Borough of Sutton,17/01/2019,6943997,660.00 ,Calm Training Ltd,29698,Chief Executive's Directorate,Training - Course Fees,A520
http://opendatacommunities.org/id/london-borough-council/sutton,London Borough of Sutton,27/12/2018,40262687,"4,705.24 ",Cambian Asperger Syndrome Services Ltd,12082,Peoples Services Directorate,Residential Care - Ext Provider,G310
http://opendatacommunities.org/id/london-borough-council/sutton,London Borough of Sutton,27/12/2018,40262803,"3,821.84 ",Canterbury Oast Trust,10755,Peoples Services Directorate,Residential Care - Ext Provider,G310
http://opendatacommunities.org/id/london-borough-council/sutton,London Borough of Sutton,25/01/2019,40271254,"3,821.84 ",Canterbury Oast Trust,10755,Peoples Services Directorate,Residential Care - Ext Provider,G310
http://opendatacommunities.org/id/london-borough-council/sutton,London Borough of Sutton,20/01/2019,6943912,422.50 ,Capital Traffic Management Ltd,24034,"Environment, Housing & Regeneration Directorate",Roads & Sewers Etc-Main Contract,Y300
http://opendatacommunities.org/id/london-borough-council/sutton,London Borough of Sutton,20/01/2019,6943913,845.00 ,Capital Traffic Management Ltd,24034,"Environment, Housing & Regeneration Directorate","Surveys, Trial Holes Etc",Y200
http://opendatacommunities.org/id/london-borough-council/sutton,London Borough of Sutton,03/12/2018,40264429,"5,739.34 ",Capstone Foster Care (South East) Ltd,16360,Peoples Services Directorate,Foster Parents,G326
http://opendatacommunities.org/id/london-borough-council/sutton,London Borough of Sutton,03/12/2018,40264430,"3,432.32 ",Capstone Foster Care (South East) Ltd,16360,Peoples Services Directorate,Foster Parents,G326
http://opendatacommunities.org/id/london-borough-council/sutton,London Borough of Sutton,21/11/2018,6943937,"4,381.03 ",Care and Independence Ltd,99815,"Environment, Housing & Regeneration Directorate",Grants -Made,Y610
http://opendatacommunities.org/id/london-borough-council/sutton,London Borough of Sutton,27/12/2018,40262746,"2,900.04 ",Care Base(Redhill)Ltd t/a Acorn Court Care Home,24206,Peoples Services Directorate,Nursing Care - Ext Provider,G311
http://opendatacommunities.org/id/london-borough-council/sutton,London Borough of Sutton,25/01/2019,40271226,"2,900.04 ",Care Base(Redhill)Ltd t/a Acorn Court Care Home,24206,Peoples Services Directorate,Nursing Care - Ext Provider,G311
http://opendatacommunities.org/id/london-borough-council/sutton,London Borough of Sutton,01/01/2019,6942923,"5,585.08 ",Care Connections Ltd,10798,Peoples Services Directorate,Supported Living - Ext Provider,G306
http://opendatacommunities.org/id/london-borough-council/sutton,London Borough of Sutton,27/12/2018,40262705,"3,080.00 ",Care Direct Uk Ltd  (David House),27080,Peoples Services Directorate,Residential Care - Ext Provider,G310
http://opendatacommunities.org/id/london-borough-council/sutton,London Borough of Sutton,27/12/2018,40262819,"3,053.24 ",Care Direct Uk Ltd  (David House),27080,Peoples Services Directorate,Residential Care - Ext Provider,G310
http://opendatacommunities.org/id/london-borough-council/sutton,London Borough of Sutton,25/01/2019,40271184,"3,080.00 ",Care Direct Uk Ltd  (David House),27080,Peoples Services Directorate,Residential Care - Ext Provider,G310
http://opendatacommunities.org/id/london-borough-council/sutton,London Borough of Sutton,25/01/2019,40271269,"1,853.75 ",Care Direct Uk Ltd  (David House),27080,Peoples Services Directorate,Residential Care - Ext Provider,G310
http://opendatacommunities.org/id/london-borough-council/sutton,London Borough of Sutton,31/12/2018,6943175,"1,544.01 ",Care Monitoring 2000 Ltd,20716,Chief Executive's Directorate,Internal Fees - Project Management,Y180
http://opendatacommunities.org/id/london-borough-council/sutton,London Borough of Sutton,14/01/2019,40268116,590.00 ,Care More Ltd,33872,Peoples Services Directorate,Home Care,G334
http://opendatacommunities.org/id/london-borough-council/sutton,London Borough of Sutton,14/01/2019,40268129,641.00 ,Care More Ltd,33872,Peoples Services Directorate,Home Care,G334
http://opendatacommunities.org/id/london-borough-council/sutton,London Borough of Sutton,14/01/2019,40268131,"1,428.00 ",Care More Ltd,33872,Peoples Services Directorate,Home Care,G334
http://opendatacommunities.org/id/london-borough-council/sutton,London Borough of Sutton,14/01/2019,40268135,546.00 ,Care More Ltd,33872,Peoples Services Directorate,Home Care,G334
http://opendatacommunities.org/id/london-borough-council/sutton,London Borough of Sutton,14/01/2019,40268136,"1,092.00 ",Care More Ltd,33872,Peoples Services Directorate,Home Care,G334
http://opendatacommunities.org/id/london-borough-council/sutton,London Borough of Sutton,14/01/2019,40268137,522.00 ,Care More Ltd,33872,Peoples Services Directorate,Home Care,G334
http://opendatacommunities.org/id/london-borough-council/sutton,London Borough of Sutton,14/01/2019,40268138,853.00 ,Care More Ltd,33872,Peoples Services Directorate,Home Care,G334
http://opendatacommunities.org/id/london-borough-council/sutton,London Borough of Sutton,14/01/2019,40268158,"1,428.00 ",Care More Ltd,33872,Peoples Services Directorate,Home Care,G334
http://opendatacommunities.org/id/london-borough-council/sutton,London Borough of Sutton,14/01/2019,40268159,"1,398.00 ",Care More Ltd,33872,Peoples Services Directorate,Home Care,G334
http://opendatacommunities.org/id/london-borough-council/sutton,London Borough of Sutton,14/01/2019,40268160,570.00 ,Care More Ltd,33872,Peoples Services Directorate,Home Care,G334
http://opendatacommunities.org/id/london-borough-council/sutton,London Borough of Sutton,31/12/2018,40268608,578.00 ,Care More Ltd,33872,Peoples Services Directorate,Home Care,G334
http://opendatacommunities.org/id/london-borough-council/sutton,London Borough of Sutton,31/12/2018,40268611,"1,197.00 ",Care More Ltd,33872,Peoples Services Directorate,Home Care,G334
http://opendatacommunities.org/id/london-borough-council/sutton,London Borough of Sutton,31/12/2018,40268612,631.00 ,Care More Ltd,33872,Peoples Services Directorate,Home Care,G334
http://opendatacommunities.org/id/london-borough-council/sutton,London Borough of Sutton,31/12/2018,40268632,450.00 ,Care More Ltd,33872,Peoples Services Directorate,Home Care,G334
http://opendatacommunities.org/id/london-borough-council/sutton,London Borough of Sutton,31/12/2018,40268633,546.00 ,Care More Ltd,33872,Peoples Services Directorate,Home Care,G334
http://opendatacommunities.org/id/london-borough-council/sutton,London Borough of Sutton,31/12/2018,40268634,"1,092.00 ",Care More Ltd,33872,Peoples Services Directorate,Home Care,G334
http://opendatacommunities.org/id/london-borough-council/sutton,London Borough of Sutton,31/12/2018,40268635,498.00 ,Care More Ltd,33872,Peoples Services Directorate,Home Care,G334
http://opendatacommunities.org/id/london-borough-council/sutton,London Borough of Sutton,31/12/2018,40268649,641.00 ,Care More Ltd,33872,Peoples Services Directorate,Home Care,G334
http://opendatacommunities.org/id/london-borough-council/sutton,London Borough of Sutton,31/12/2018,40268651,"1,428.00 ",Care More Ltd,33872,Peoples Services Directorate,Home Care,G334
http://opendatacommunities.org/id/london-borough-council/sutton,London Borough of Sutton,31/12/2018,40268652,"1,428.00 ",Care More Ltd,33872,Peoples Services Directorate,Home Care,G334
http://opendatacommunities.org/id/london-borough-council/sutton,London Borough of Sutton,27/12/2018,40262389,"3,460.00 ",Care South,23298,Peoples Services Directorate,Residential Care - Ext Provider,G310
http://opendatacommunities.org/id/london-borough-council/sutton,London Borough of Sutton,25/01/2019,40271345,"3,336.43 ",Care South,23298,Peoples Services Directorate,Residential Care - Ext Provider,G310
http://opendatacommunities.org/id/london-borough-council/sutton,London Borough of Sutton,27/12/2018,40263028,"4,000.00 ",Care UK Homecare Ltd,10853,Peoples Services Directorate,Nursing Care - Ext Provider,G311
http://opendatacommunities.org/id/london-borough-council/sutton,London Borough of Sutton,25/01/2019,40271110,"4,000.00 ",Care UK Homecare Ltd,10853,Peoples Services Directorate,Nursing Care - Ext Provider,G311
http://opendatacommunities.org/id/london-borough-council/sutton,London Borough of Sutton,01/12/2018,40264079,"4,732.00 ",Care Unlimited Domcare Ltd,28906,Peoples Services Directorate,Supported Living - Ext Provider,G306
http://opendatacommunities.org/id/london-borough-council/sutton,London Borough of Sutton,01/12/2018,40265624,"4,060.00 ",Care Unlimited Domcare Ltd,28906,Peoples Services Directorate,Supported Living - Ext Provider,G306
http://opendatacommunities.org/id/london-borough-council/sutton,London Borough of Sutton,01/12/2018,40265625,"4,060.00 ",Care Unlimited Domcare Ltd,28906,Peoples Services Directorate,Supported Living - Ext Provider,G306
http://opendatacommunities.org/id/london-borough-council/sutton,London Borough of Sutton,01/12/2018,40265626,"4,060.00 ",Care Unlimited Domcare Ltd,28906,Peoples Services Directorate,Supported Living - Ext Provider,G306
http://opendatacommunities.org/id/london-borough-council/sutton,London Borough of Sutton,01/12/2018,40265627,"4,060.00 ",Care Unlimited Domcare Ltd,28906,Peoples Services Directorate,Supported Living - Ext Provider,G306
http://opendatacommunities.org/id/london-borough-council/sutton,London Borough of Sutton,01/12/2018,40265628,"4,060.00 ",Care Unlimited Domcare Ltd,28906,Peoples Services Directorate,Supported Living - Ext Provider,G306
http://opendatacommunities.org/id/london-borough-council/sutton,London Borough of Sutton,27/12/2018,40262801,"1,780.00 ",Care Unlimited Group Ltd,10774,Peoples Services Directorate,Residential Care - Ext Provider,G310
http://opendatacommunities.org/id/london-borough-council/sutton,London Borough of Sutton,27/12/2018,40262929,"2,550.00 ",Care Unlimited Group Ltd,10774,Peoples Services Directorate,Interim Placements - Ext Provider,G317
http://opendatacommunities.org/id/london-borough-council/sutton,London Borough of Sutton,25/01/2019,40271008,"2,550.00 ",Care Unlimited Group Ltd,10774,Peoples Services Directorate,Interim Placements - Ext Provider,G317
http://opendatacommunities.org/id/london-borough-council/sutton,London Borough of Sutton,25/01/2019,40271252,"1,780.00 ",Care Unlimited Group Ltd,10774,Peoples Services Directorate,Residential Care - Ext Provider,G310
http://opendatacommunities.org/id/london-borough-council/sutton,London Borough of Sutton,31/12/2018,6942909,580.50 ,Caremark (Sutton),25541,Peoples Services Directorate,Home Care,G334
http://opendatacommunities.org/id/london-borough-council/sutton,London Borough of Sutton,15/01/2019,6943966,621.00 ,Caremark (Sutton),25541,Peoples Services Directorate,Home Care,G334
http://opendatacommunities.org/id/london-borough-council/sutton,London Borough of Sutton,30/01/2019,6944398,621.00 ,Caremark (Sutton),25541,Peoples Services Directorate,Home Care,G334
http://opendatacommunities.org/id/london-borough-council/sutton,London Borough of Sutton,10/12/2018,40262402,"2,070.00 ",Caremark (Sutton),25541,Peoples Services Directorate,Home Care,G334
http://opendatacommunities.org/id/london-borough-council/sutton,London Borough of Sutton,07/12/2018,40262403,"2,088.00 ",Caremark (Sutton),25541,Peoples Services Directorate,Home Care,G334
http://opendatacommunities.org/id/london-borough-council/sutton,London Borough of Sutton,21/01/2019,40270645,"1,971.00 ",Caremark (Sutton),25541,Peoples Services Directorate,Home Care,G334
http://opendatacommunities.org/id/london-borough-council/sutton,London Borough of Sutton,21/01/2019,40270650,"1,909.20 ",Caremark (Sutton),25541,Peoples Services Directorate,Home Care,G334
http://opendatacommunities.org/id/london-borough-council/sutton,London Borough of Sutton,21/01/2019,40270754,"1,962.00 ",Caremark (Sutton),25541,Peoples Services Directorate,Home Care,G334
http://opendatacommunities.org/id/london-borough-council/sutton,London Borough of Sutton,21/01/2019,40270773,"2,088.00 ",Caremark (Sutton),25541,Peoples Services Directorate,Home Care,G334
http://opendatacommunities.org/id/london-borough-council/sutton,London Borough of Sutton,21/01/2019,40270774,"1,764.00 ",Caremark (Sutton),25541,Peoples Services Directorate,Home Care,G334
http://opendatacommunities.org/id/london-borough-council/sutton,London Borough of Sutton,27/12/2018,40262703,"5,270.48 ",Caretech Community Services Ltd,10791,Peoples Services Directorate,Residential Care - Ext Provider,G310
http://opendatacommunities.org/id/london-borough-council/sutton,London Borough of Sutton,27/12/2018,40262728,"5,270.48 ",Caretech Community Services Ltd,10791,Peoples Services Directorate,Residential Care - Ext Provider,G310
http://opendatacommunities.org/id/london-borough-council/sutton,London Borough of Sutton,27/12/2018,40262742,"5,270.48 ",Caretech Community Services Ltd,10791,Peoples Services Directorate,Residential Care - Ext Provider,G310
http://opendatacommunities.org/id/london-borough-council/sutton,London Borough of Sutton,27/12/2018,40263004,"5,405.88 ",Caretech Community Services Ltd,10791,Peoples Services Directorate,Residential Care - Ext Provider,G310
http://opendatacommunities.org/id/london-borough-council/sutton,London Borough of Sutton,01/11/2018,40265582,"2,025.00 ",Caretech Community Services Ltd,10791,Peoples Services Directorate,One to One Care,G335
http://opendatacommunities.org/id/london-borough-council/sutton,London Borough of Sutton,01/12/2018,40265618,"2,092.50 ",Caretech Community Services Ltd,10791,Peoples Services Directorate,One to One Care,G335
http://opendatacommunities.org/id/london-borough-council/sutton,London Borough of Sutton,25/01/2019,40271085,"5,405.88 ",Caretech Community Services Ltd,10791,Peoples Services Directorate,Residential Care - Ext Provider,G310
http://opendatacommunities.org/id/london-borough-council/sutton,London Borough of Sutton,25/01/2019,40271182,"5,270.48 ",Caretech Community Services Ltd,10791,Peoples Services Directorate,Residential Care - Ext Provider,G310
http://opendatacommunities.org/id/london-borough-council/sutton,London Borough of Sutton,25/01/2019,40271208,"5,270.48 ",Caretech Community Services Ltd,10791,Peoples Services Directorate,Residential Care - Ext Provider,G310
http://opendatacommunities.org/id/london-borough-council/sutton,London Borough of Sutton,25/01/2019,40271221,"5,270.48 ",Caretech Community Services Ltd,10791,Peoples Services Directorate,Residential Care - Ext Provider,G310
http://opendatacommunities.org/id/london-borough-council/sutton,London Borough of Sutton,30/12/2018,6944378,"8,880.29 ",Carew Academy,25284,Peoples Services Directorate,Equipment It,Y523
http://opendatacommunities.org/id/london-borough-council/sutton,London Borough of Sutton,30/12/2018,6944378,"4,774.10 ",Carew Academy,25284,Peoples Services Directorate,Furniture & Fittings,Y500
http://opendatacommunities.org/id/london-borough-council/sutton,London Borough of Sutton,27/12/2018,40262706,"2,682.68 ",Carlene House,10763,Peoples Services Directorate,Residential Care - Ext Provider,G310
http://opendatacommunities.org/id/london-borough-council/sutton,London Borough of Sutton,27/12/2018,40262717,"2,625.28 ",Carlene House,10763,Peoples Services Directorate,Residential Care - Ext Provider,G310
http://opendatacommunities.org/id/london-borough-council/sutton,London Borough of Sutton,27/12/2018,40262806,"4,440.00 ",Carlene House,10763,Peoples Services Directorate,Residential Care - Ext Provider,G310
http://opendatacommunities.org/id/london-borough-council/sutton,London Borough of Sutton,27/12/2018,40262816,"2,740.64 ",Carlene House,10763,Peoples Services Directorate,Residential Care - Ext Provider,G310
http://opendatacommunities.org/id/london-borough-council/sutton,London Borough of Sutton,27/12/2018,40262830,"2,630.60 ",Carlene House,10763,Peoples Services Directorate,Residential Care - Ext Provider,G310
http://opendatacommunities.org/id/london-borough-council/sutton,London Borough of Sutton,27/12/2018,40262839,"2,654.68 ",Carlene House,10763,Peoples Services Directorate,Residential Care - Ext Provider,G310
http://opendatacommunities.org/id/london-borough-council/sutton,London Borough of Sutton,27/12/2018,40262932,"2,625.28 ",Carlene House,10763,Peoples Services Directorate,Residential Care - Ext Provider,G310
http://opendatacommunities.org/id/london-borough-council/sutton,London Borough of Sutton,10/12/2018,40265558,"3,940.00 ",Carlene House,10763,Peoples Services Directorate,Supported Living - Ext Provider,G306
http://opendatacommunities.org/id/london-borough-council/sutton,London Borough of Sutton,10/12/2018,40265565,"1,675.00 ",Carlene House,10763,Peoples Services Directorate,Supported Living - Ext Provider,G306
http://opendatacommunities.org/id/london-borough-council/sutton,London Borough of Sutton,07/01/2019,40265632,"1,107.01 ",Carlene House,10763,Peoples Services Directorate,Day Care,G337
http://opendatacommunities.org/id/london-borough-council/sutton,London Borough of Sutton,10/12/2018,40265641,"1,071.30 ",Carlene House,10763,Peoples Services Directorate,Day Care,G337
http://opendatacommunities.org/id/london-borough-council/sutton,London Borough of Sutton,10/12/2018,40265642,"1,071.30 ",Carlene House,10763,Peoples Services Directorate,Day Care,G337
http://opendatacommunities.org/id/london-borough-council/sutton,London Borough of Sutton,10/12/2018,40265643,"1,071.30 ",Carlene House,10763,Peoples Services Directorate,Day Care,G337
http://opendatacommunities.org/id/london-borough-council/sutton,London Borough of Sutton,10/12/2018,40265644,"1,071.30 ",Carlene House,10763,Peoples Services Directorate,Day Care,G337
http://opendatacommunities.org/id/london-borough-council/sutton,London Borough of Sutton,10/12/2018,40265645,"1,071.30 ",Carlene House,10763,Peoples Services Directorate,Day Care,G337
http://opendatacommunities.org/id/london-borough-council/sutton,London Borough of Sutton,10/12/2018,40265646,"1,071.30 ",Carlene House,10763,Peoples Services Directorate,Day Care,G337
http://opendatacommunities.org/id/london-borough-council/sutton,London Borough of Sutton,07/01/2019,40265647,"1,107.01 ",Carlene House,10763,Peoples Services Directorate,Day Care,G337
http://opendatacommunities.org/id/london-borough-council/sutton,London Borough of Sutton,07/01/2019,40265648,"1,107.01 ",Carlene House,10763,Peoples Services Directorate,Day Care,G337
http://opendatacommunities.org/id/london-borough-council/sutton,London Borough of Sutton,07/01/2019,40265649,"1,107.01 ",Carlene House,10763,Peoples Services Directorate,Day Care,G337
http://opendatacommunities.org/id/london-borough-council/sutton,London Borough of Sutton,07/01/2019,40265650,"1,107.01 ",Carlene House,10763,Peoples Services Directorate,Day Care,G337
http://opendatacommunities.org/id/london-borough-council/sutton,London Borough of Sutton,07/01/2019,40265651,"1,107.01 ",Carlene House,10763,Peoples Services Directorate,Day Care,G337
http://opendatacommunities.org/id/london-borough-council/sutton,London Borough of Sutton,25/01/2019,40271012,"2,625.28 ",Carlene House,10763,Peoples Services Directorate,Residential Care - Ext Provider,G310
http://opendatacommunities.org/id/london-borough-council/sutton,London Borough of Sutton,25/01/2019,40271185,"2,682.68 ",Carlene House,10763,Peoples Services Directorate,Residential Care - Ext Provider,G310
http://opendatacommunities.org/id/london-borough-council/sutton,London Borough of Sutton,25/01/2019,40271196,"2,625.28 ",Carlene House,10763,Peoples Services Directorate,Residential Care - Ext Provider,G310
http://opendatacommunities.org/id/london-borough-council/sutton,London Borough of Sutton,25/01/2019,40271256,"4,440.00 ",Carlene House,10763,Peoples Services Directorate,Residential Care - Ext Provider,G310
http://opendatacommunities.org/id/london-borough-council/sutton,London Borough of Sutton,25/01/2019,40271266,"2,740.64 ",Carlene House,10763,Peoples Services Directorate,Residential Care - Ext Provider,G310
http://opendatacommunities.org/id/london-borough-council/sutton,London Borough of Sutton,25/01/2019,40271280,"2,630.60 ",Carlene House,10763,Peoples Services Directorate,Residential Care - Ext Provider,G310
http://opendatacommunities.org/id/london-borough-council/sutton,London Borough of Sutton,25/01/2019,40271313,"2,654.68 ",Carlene House,10763,Peoples Services Directorate,Residential Care - Ext Provider,G310
http://opendatacommunities.org/id/london-borough-council/sutton,London Borough of Sutton,21/01/2019,1265712,908.82 ,Carly-Jo Etherington-Stanbrook,25990,Peoples Services Directorate,Non-Maintained Childrens' Nurseries - 3 & 4 yr olds,G405
http://opendatacommunities.org/id/london-borough-council/sutton,London Borough of Sutton,21/01/2019,1265772,504.90 ,Carole Martin,28288,Peoples Services Directorate,Non-Maintained Childrens' Nurseries - 3 & 4 yr olds,G405
http://opendatacommunities.org/id/london-borough-council/sutton,London Borough of Sutton,18/01/2019,6944148,508.80 ,Carshalton Athletic FC,18898,Chief Executive's Directorate,Refreshments,F155
http://opendatacommunities.org/id/london-borough-council/sutton,London Borough of Sutton,01/01/2019,1264998,"6,125.00 ",Carshalton Boys Sports College (Academy),23984,Peoples Services Directorate,Top-up Funding,G064
http://opendatacommunities.org/id/london-borough-council/sutton,London Borough of Sutton,31/12/2018,40267030,740.63 ,Carshalton News,10752,Chief Executive's Directorate,Books,F006
http://opendatacommunities.org/id/london-borough-council/sutton,London Borough of Sutton,21/01/2019,1265767,"1,375.71 ",Caterpillars Day Nursery,28020,Peoples Services Directorate,Non-Maintained Childrens' Nurseries - 2 Year Olds,G404
http://opendatacommunities.org/id/london-borough-council/sutton,London Borough of Sutton,21/01/2019,1265768,"1,071.00 ",Caterpillars Day Nursery,28020,Peoples Services Directorate,Non-Maintained Childrens' Nurseries - 3 & 4 yr olds,G405
http://opendatacommunities.org/id/london-borough-council/sutton,London Borough of Sutton,21/01/2019,1265769,"6,058.80 ",Caterpillars Day Nursery,28020,Peoples Services Directorate,Non-Maintained Childrens' Nurseries - 3 & 4 yr olds,G405
http://opendatacommunities.org/id/london-borough-council/sutton,London Borough of Sutton,12/01/2019,6943501,"1,055.95 ",Caysh Enterprise Cic,28016,Peoples Services Directorate,Approved Lodgings,H323
http://opendatacommunities.org/id/london-borough-council/sutton,London Borough of Sutton,31/12/2018,1266251,"29,666.67 ",Caysh Housing Project,23133,Peoples Services Directorate,Approved Lodgings,H323
http://opendatacommunities.org/id/london-borough-council/sutton,London Borough of Sutton,03/01/2019,6943083,"1,484.34 ",Caysh Housing Project,23133,Peoples Services Directorate,Approved Lodgings,H323
http://opendatacommunities.org/id/london-borough-council/sutton,London Borough of Sutton,03/01/2019,6943084,"1,236.59 ",Caysh Housing Project,23133,Peoples Services Directorate,Approved Lodgings,H323
http://opendatacommunities.org/id/london-borough-council/sutton,London Borough of Sutton,03/01/2019,6943088,"1,292.70 ",Caysh Housing Project,23133,Peoples Services Directorate,Approved Lodgings,H323
http://opendatacommunities.org/id/london-borough-council/sutton,London Borough of Sutton,03/01/2019,6943089,"1,425.69 ",Caysh Housing Project,23133,Peoples Services Directorate,Approved Lodgings,H323
http://opendatacommunities.org/id/london-borough-council/sutton,London Borough of Sutton,03/01/2019,6943090,"1,385.39 ",Caysh Housing Project,23133,Peoples Services Directorate,Approved Lodgings,H323
http://opendatacommunities.org/id/london-borough-council/sutton,London Borough of Sutton,03/01/2018,6943091,"1,236.59 ",Caysh Housing Project,23133,Peoples Services Directorate,Approved Lodgings,H323
http://opendatacommunities.org/id/london-borough-council/sutton,London Borough of Sutton,03/01/2019,6943095,"1,425.69 ",Caysh Housing Project,23133,Peoples Services Directorate,Approved Lodgings,H323
http://opendatacommunities.org/id/london-borough-council/sutton,London Borough of Sutton,03/01/2019,6943096,"1,385.35 ",Caysh Housing Project,23133,Peoples Services Directorate,Approved Lodgings,H323
http://opendatacommunities.org/id/london-borough-council/sutton,London Borough of Sutton,03/01/2019,6943171,"4,914.43 ",Caysh Housing Project,23133,Peoples Services Directorate,Approved Lodgings,H323
http://opendatacommunities.org/id/london-borough-council/sutton,London Borough of Sutton,03/01/2019,6943172,"2,683.74 ",Caysh Housing Project,23133,Peoples Services Directorate,Approved Lodgings,H323
http://opendatacommunities.org/id/london-borough-council/sutton,London Borough of Sutton,29/11/2018,6941644,"7,500.00 ",CBRE Ltd,33372,"Environment, Housing & Regeneration Directorate",Feasibility Studies,Y192
http://opendatacommunities.org/id/london-borough-council/sutton,London Borough of Sutton,20/12/2018,6943082,"1,180.22 ",Central & North West London Nhs Foundation Trust,28976,Chief Executive's Directorate,Provider Contract Payments,F470
http://opendatacommunities.org/id/london-borough-council/sutton,London Borough of Sutton,20/12/2018,6943127,"1,167.90 ",Central & North West London Nhs Foundation Trust,28976,Chief Executive's Directorate,Provider Contract Payments,F470
http://opendatacommunities.org/id/london-borough-council/sutton,London Borough of Sutton,16/01/2019,6944248,"1,432.47 ",Central & North West London Nhs Foundation Trust,28976,Chief Executive's Directorate,Provider Contract Payments,F470
http://opendatacommunities.org/id/london-borough-council/sutton,London Borough of Sutton,16/01/2019,6944307,"1,332.78 ",Central & North West London Nhs Foundation Trust,28976,Chief Executive's Directorate,Provider Contract Payments,F470
http://opendatacommunities.org/id/london-borough-council/sutton,London Borough of Sutton,17/01/2019,6944086,"3,579.66 ",Central London Community Healthcare NHS Trust,29865,Chief Executive's Directorate,Provider Contract Payments,F470
http://opendatacommunities.org/id/london-borough-council/sutton,London Borough of Sutton,01/12/2018,40264386,"5,679.51 ",Channels & Choices Theraputic Fostering Ltd,25665,Peoples Services Directorate,Foster Parents,G326
http://opendatacommunities.org/id/london-borough-council/sutton,London Borough of Sutton,01/12/2018,40264503,"5,679.51 ",Channels & Choices Theraputic Fostering Ltd,25665,Peoples Services Directorate,Foster Parents,G326
http://opendatacommunities.org/id/london-borough-council/sutton,London Borough of Sutton,25/01/2019,40271247,"4,397.14 ",Charlton Park Care Home T/A Four Seasons (No 7) Ltd.,30290,Peoples Services Directorate,Nursing Care - Ext Provider,G311
http://opendatacommunities.org/id/london-borough-council/sutton,London Borough of Sutton,21/01/2019,1265503,687.85 ,Cheam Baptist Church Pre-School,10924,Peoples Services Directorate,Non-Maintained Childrens' Nurseries - 2 Year Olds,G404
http://opendatacommunities.org/id/london-borough-council/sutton,London Borough of Sutton,21/01/2019,1265505,"7,039.00 ",Cheam Baptist Church Pre-School,10924,Peoples Services Directorate,Non-Maintained Childrens' Nurseries - 3 & 4 yr olds,G405
http://opendatacommunities.org/id/london-borough-council/sutton,London Borough of Sutton,21/01/2019,1265506,"1,440.45 ",Cheam Baptist Church Pre-School,10924,Peoples Services Directorate,Non-Maintained Childrens' Nurseries - 3 & 4 yr olds,G405
http://opendatacommunities.org/id/london-borough-council/sutton,London Borough of Sutton,15/12/2018,6943544,"50,000.00 ",Cheam Common Infants School -ACADEMY,30167,Peoples Services Directorate,Building Works -Main Contractor,Y350
http://opendatacommunities.org/id/london-borough-council/sutton,London Borough of Sutton,01/01/2019,1265000,"7,275.00 ",Cheam Common Junior Academy,28932,Peoples Services Directorate,Top-up Funding,G064
http://opendatacommunities.org/id/london-borough-council/sutton,London Borough of Sutton,08/01/2019,6943356,"1,380.00 ",Cheam Family Practice,10918,Chief Executive's Directorate,Provider Contract Payments,F470
http://opendatacommunities.org/id/london-borough-council/sutton,London Borough of Sutton,01/01/2019,1265002,"31,887.50 ",Cheam High School (Academy),23996,Peoples Services Directorate,Top-up Funding,G064
http://opendatacommunities.org/id/london-borough-council/sutton,London Borough of Sutton,01/01/2019,1265002,"4,712.50 ",Cheam High School (Academy),23996,Peoples Services Directorate,Top-up Funding,G064
http://opendatacommunities.org/id/london-borough-council/sutton,London Borough of Sutton,01/01/2019,1265003,"25,444.25 ",Cheam High School (Academy),23996,Peoples Services Directorate,Place Funding,G063
http://opendatacommunities.org/id/london-borough-council/sutton,London Borough of Sutton,01/01/2019,1265004,"13,325.00 ",Cheam Park Farm Primary School (LEO Academy Trust),23882,Peoples Services Directorate,Top-up Funding,G064
http://opendatacommunities.org/id/london-borough-council/sutton,London Borough of Sutton,31/12/2018,1265291,"1,386.00 ",Cheam Station Cars,15604,Peoples Services Directorate,Hired Peoples Transport (Children),E072
http://opendatacommunities.org/id/london-borough-council/sutton,London Borough of Sutton,31/12/2018,1265292,"1,790.00 ",Cheam Station Cars,15604,Peoples Services Directorate,Hired Peoples Transport (Children),E072
http://opendatacommunities.org/id/london-borough-council/sutton,London Borough of Sutton,31/12/2018,1265293,"1,422.00 ",Cheam Station Cars,15604,Peoples Services Directorate,Hired Peoples Transport (Children),E072
http://opendatacommunities.org/id/london-borough-council/sutton,London Borough of Sutton,31/12/2018,1265294,722.00 ,Cheam Station Cars,15604,Peoples Services Directorate,Hired Peoples Transport (Children),E072
http://opendatacommunities.org/id/london-borough-council/sutton,London Borough of Sutton,31/12/2018,1265295,898.00 ,Cheam Station Cars,15604,Peoples Services Directorate,Hired Peoples Transport (Children),E072
http://opendatacommunities.org/id/london-borough-council/sutton,London Borough of Sutton,31/12/2018,1265296,"1,620.00 ",Cheam Station Cars,15604,Peoples Services Directorate,Hired Peoples Transport (Children),E072
http://opendatacommunities.org/id/london-borough-council/sutton,London Borough of Sutton,31/12/2018,1265297,"2,160.00 ",Cheam Station Cars,15604,Peoples Services Directorate,Hired Peoples Transport (Children),E072
http://opendatacommunities.org/id/london-borough-council/sutton,London Borough of Sutton,31/12/2018,1265298,"2,390.00 ",Cheam Station Cars,15604,Peoples Services Directorate,Hired Peoples Transport (Children),E072
http://opendatacommunities.org/id/london-borough-council/sutton,London Borough of Sutton,31/12/2018,1265299,"1,104.00 ",Cheam Station Cars,15604,Peoples Services Directorate,Hired Peoples Transport (Children),E072
http://opendatacommunities.org/id/london-borough-council/sutton,London Borough of Sutton,31/12/2018,1265300,"1,430.00 ",Cheam Station Cars,15604,Peoples Services Directorate,Hired Peoples Transport (Children),E072
http://opendatacommunities.org/id/london-borough-council/sutton,London Borough of Sutton,31/12/2018,1265301,"2,550.00 ",Cheam Station Cars,15604,Peoples Services Directorate,Hired Peoples Transport (Children),E072
http://opendatacommunities.org/id/london-borough-council/sutton,London Borough of Sutton,31/12/2018,1265302,700.00 ,Cheam Station Cars,15604,Peoples Services Directorate,Hired Peoples Transport (Children),E072
http://opendatacommunities.org/id/london-borough-council/sutton,London Borough of Sutton,31/12/2018,1265303,550.00 ,Cheam Station Cars,15604,Peoples Services Directorate,Hired Peoples Transport (Children),E072
http://opendatacommunities.org/id/london-borough-council/sutton,London Borough of Sutton,31/12/2018,1265304,490.00 ,Cheam Station Cars,15604,Peoples Services Directorate,Hired Peoples Transport (Children),E072
http://opendatacommunities.org/id/london-borough-council/sutton,London Borough of Sutton,31/12/2018,1265305,448.00 ,Cheam Station Cars,15604,Peoples Services Directorate,Hired Peoples Transport (Children),E072
http://opendatacommunities.org/id/london-borough-council/sutton,London Borough of Sutton,31/12/2018,1265306,"2,250.00 ",Cheam Station Cars,15604,Peoples Services Directorate,Hired Peoples Transport (Children),E072
http://opendatacommunities.org/id/london-borough-council/sutton,London Borough of Sutton,31/12/2018,1265307,864.00 ,Cheam Station Cars,15604,Peoples Services Directorate,Hired Peoples Transport (Children),E072
http://opendatacommunities.org/id/london-borough-council/sutton,London Borough of Sutton,31/12/2018,1265308,"2,100.00 ",Cheam Station Cars,15604,Peoples Services Directorate,Hired Peoples Transport (Children),E072
http://opendatacommunities.org/id/london-borough-council/sutton,London Borough of Sutton,31/12/2018,1265309,"2,072.00 ",Cheam Station Cars,15604,Peoples Services Directorate,Hired Peoples Transport (Children),E072
http://opendatacommunities.org/id/london-borough-council/sutton,London Borough of Sutton,31/12/2018,1265310,650.00 ,Cheam Station Cars,15604,Peoples Services Directorate,Hired Peoples Transport (Children),E072
http://opendatacommunities.org/id/london-borough-council/sutton,London Borough of Sutton,31/12/2018,1265311,"1,200.00 ",Cheam Station Cars,15604,Peoples Services Directorate,Hired Peoples Transport (Children),E072
http://opendatacommunities.org/id/london-borough-council/sutton,London Borough of Sutton,31/12/2018,1265312,"2,340.00 ",Cheam Station Cars,15604,Peoples Services Directorate,Hired Peoples Transport (Children),E072
http://opendatacommunities.org/id/london-borough-council/sutton,London Borough of Sutton,31/12/2018,1265313,"2,550.00 ",Cheam Station Cars,15604,Peoples Services Directorate,Hired Peoples Transport (Children),E072
http://opendatacommunities.org/id/london-borough-council/sutton,London Borough of Sutton,31/12/2018,1265314,"2,128.00 ",Cheam Station Cars,15604,Peoples Services Directorate,Hired Peoples Transport (Children),E072
http://opendatacommunities.org/id/london-borough-council/sutton,London Borough of Sutton,31/12/2018,1265315,650.00 ,Cheam Station Cars,15604,Peoples Services Directorate,Hired Peoples Transport (Children),E072
http://opendatacommunities.org/id/london-borough-council/sutton,London Borough of Sutton,31/12/2018,1265316,900.00 ,Cheam Station Cars,15604,Peoples Services Directorate,Hired Peoples Transport (Children),E072
http://opendatacommunities.org/id/london-borough-council/sutton,London Borough of Sutton,31/12/2018,1265317,988.00 ,Cheam Station Cars,15604,Peoples Services Directorate,Hired Peoples Transport (Children),E072
http://opendatacommunities.org/id/london-borough-council/sutton,London Borough of Sutton,31/12/2018,1265318,"1,296.00 ",Cheam Station Cars,15604,Peoples Services Directorate,Hired Peoples Transport (Children),E072
http://opendatacommunities.org/id/london-borough-council/sutton,London Borough of Sutton,31/12/2018,1265319,650.00 ,Cheam Station Cars,15604,Peoples Services Directorate,Hired Peoples Transport (Children),E072
http://opendatacommunities.org/id/london-borough-council/sutton,London Borough of Sutton,31/12/2018,1265320,"2,131.00 ",Cheam Station Cars,15604,Peoples Services Directorate,Hired Peoples Transport (Children),E072
http://opendatacommunities.org/id/london-borough-council/sutton,London Borough of Sutton,31/12/2018,1265320,480.00 ,Cheam Station Cars,15604,Peoples Services Directorate,Hired Peoples Transport (Children),E072
http://opendatacommunities.org/id/london-borough-council/sutton,London Borough of Sutton,27/12/2018,40262721,"3,400.00 ",Chegworth Nursing Home Bayswift Ltd,10908,Peoples Services Directorate,Nursing Care - Ext Provider,G311
http://opendatacommunities.org/id/london-borough-council/sutton,London Borough of Sutton,27/12/2018,40262826,"3,400.00 ",Chegworth Nursing Home Bayswift Ltd,10908,Peoples Services Directorate,Nursing Care - Ext Provider,G311
http://opendatacommunities.org/id/london-borough-council/sutton,London Borough of Sutton,27/12/2018,40262870,"3,800.00 ",Chegworth Nursing Home Bayswift Ltd,10908,Peoples Services Directorate,Nursing Care - Ext Provider,G311
http://opendatacommunities.org/id/london-borough-council/sutton,London Borough of Sutton,27/12/2018,40262900,"3,200.00 ",Chegworth Nursing Home Bayswift Ltd,10908,Peoples Services Directorate,Nursing Care - Ext Provider,G311
http://opendatacommunities.org/id/london-borough-council/sutton,London Borough of Sutton,27/12/2018,40262941,"3,400.00 ",Chegworth Nursing Home Bayswift Ltd,10908,Peoples Services Directorate,Nursing Care - Ext Provider,G311
http://opendatacommunities.org/id/london-borough-council/sutton,London Borough of Sutton,27/12/2018,40262950,"3,420.00 ",Chegworth Nursing Home Bayswift Ltd,10908,Peoples Services Directorate,Nursing Care - Ext Provider,G311
http://opendatacommunities.org/id/london-borough-council/sutton,London Borough of Sutton,27/12/2018,40263000,"11,343.14 ",Chegworth Nursing Home Bayswift Ltd,10908,Peoples Services Directorate,Nursing Care - Short Term Placements,G328
http://opendatacommunities.org/id/london-borough-council/sutton,London Borough of Sutton,27/12/2018,40263010,"9,771.43 ",Chegworth Nursing Home Bayswift Ltd,10908,Peoples Services Directorate,Nursing Care - Ext Provider,G311
http://opendatacommunities.org/id/london-borough-council/sutton,London Borough of Sutton,27/12/2018,40263018,"3,200.00 ",Chegworth Nursing Home Bayswift Ltd,10908,Peoples Services Directorate,Nursing Care - Ext Provider,G311
http://opendatacommunities.org/id/london-borough-council/sutton,London Borough of Sutton,27/12/2018,40263038,"7,328.57 ",Chegworth Nursing Home Bayswift Ltd,10908,Peoples Services Directorate,Nursing Care - Ext Provider,G311
http://opendatacommunities.org/id/london-borough-council/sutton,London Borough of Sutton,25/01/2019,40270947,"3,800.00 ",Chegworth Nursing Home Bayswift Ltd,10908,Peoples Services Directorate,Nursing Care - Ext Provider,G311
http://opendatacommunities.org/id/london-borough-council/sutton,London Borough of Sutton,25/01/2019,40270981,"3,200.00 ",Chegworth Nursing Home Bayswift Ltd,10908,Peoples Services Directorate,Nursing Care - Ext Provider,G311
http://opendatacommunities.org/id/london-borough-council/sutton,London Borough of Sutton,25/01/2019,40271020,"3,400.00 ",Chegworth Nursing Home Bayswift Ltd,10908,Peoples Services Directorate,Nursing Care - Ext Provider,G311
http://opendatacommunities.org/id/london-borough-council/sutton,London Borough of Sutton,25/01/2019,40271030,"3,420.00 ",Chegworth Nursing Home Bayswift Ltd,10908,Peoples Services Directorate,Nursing Care - Ext Provider,G311
http://opendatacommunities.org/id/london-borough-council/sutton,London Borough of Sutton,25/01/2019,40271081,"4,292.00 ",Chegworth Nursing Home Bayswift Ltd,10908,Peoples Services Directorate,Nursing Care - Short Term Placements,G328
http://opendatacommunities.org/id/london-borough-council/sutton,London Borough of Sutton,25/01/2019,40271092,"3,420.00 ",Chegworth Nursing Home Bayswift Ltd,10908,Peoples Services Directorate,Nursing Care - Ext Provider,G311
http://opendatacommunities.org/id/london-borough-council/sutton,London Borough of Sutton,25/01/2019,40271100,"3,200.00 ",Chegworth Nursing Home Bayswift Ltd,10908,Peoples Services Directorate,Nursing Care - Ext Provider,G311
http://opendatacommunities.org/id/london-borough-council/sutton,London Borough of Sutton,25/01/2019,40271118,"3,420.00 ",Chegworth Nursing Home Bayswift Ltd,10908,Peoples Services Directorate,Nursing Care - Ext Provider,G311
http://opendatacommunities.org/id/london-borough-council/sutton,London Borough of Sutton,25/01/2019,40271150,"13,313.57 ",Chegworth Nursing Home Bayswift Ltd,10908,Peoples Services Directorate,Nursing Care - Ext Provider,G311
http://opendatacommunities.org/id/london-borough-council/sutton,London Borough of Sutton,25/01/2019,40271201,"3,400.00 ",Chegworth Nursing Home Bayswift Ltd,10908,Peoples Services Directorate,Nursing Care - Ext Provider,G311
http://opendatacommunities.org/id/london-borough-council/sutton,London Borough of Sutton,25/01/2019,40271276,"3,400.00 ",Chegworth Nursing Home Bayswift Ltd,10908,Peoples Services Directorate,Nursing Care - Ext Provider,G311
http://opendatacommunities.org/id/london-borough-council/sutton,London Borough of Sutton,21/12/2018,6942928,"109,688.36 ",Chelsea and Westminster NHS ft,28891,Chief Executive's Directorate,Provider Contract Payments,F470
http://opendatacommunities.org/id/london-borough-council/sutton,London Borough of Sutton,01/01/2019,6942929,"9,513.61 ",Chelsea and Westminster NHS ft,28891,Chief Executive's Directorate,Provider Contract Payments,F470
http://opendatacommunities.org/id/london-borough-council/sutton,London Borough of Sutton,01/01/2019,6942931,"7,102.79 ",Chelsea and Westminster NHS ft,28891,Chief Executive's Directorate,Provider Contract Payments,F470
http://opendatacommunities.org/id/london-borough-council/sutton,London Borough of Sutton,01/02/2019,6944309,"7,102.79 ",Chelsea and Westminster NHS ft,28891,Chief Executive's Directorate,Provider Contract Payments,F470
http://opendatacommunities.org/id/london-borough-council/sutton,London Borough of Sutton,01/02/2019,6944323,"9,513.61 ",Chelsea and Westminster NHS ft,28891,Chief Executive's Directorate,Provider Contract Payments,F470
http://opendatacommunities.org/id/london-borough-council/sutton,London Borough of Sutton,01/01/2019,6942924,"13,725.00 ",Chelsea Studios Ltd,32128,"Environment, Housing & Regeneration Directorate",Bed and Breakfast Accommodation,G400
http://opendatacommunities.org/id/london-borough-council/sutton,London Borough of Sutton,22/01/2019,6943992,"13,725.00 ",Chelsea Studios Ltd,32128,"Environment, Housing & Regeneration Directorate",Bed and Breakfast Accommodation,G400
http://opendatacommunities.org/id/london-borough-council/sutton,London Borough of Sutton,23/12/2018,40264829,441.00 ,Chenash Homecare Specialists And Care Agency,25667,Peoples Services Directorate,Home Care,G334
http://opendatacommunities.org/id/london-borough-council/sutton,London Borough of Sutton,30/12/2018,40264862,441.00 ,Chenash Homecare Specialists And Care Agency,25667,Peoples Services Directorate,Home Care,G334
http://opendatacommunities.org/id/london-borough-council/sutton,London Borough of Sutton,06/01/2019,40270636,441.00 ,Chenash Homecare Specialists And Care Agency,25667,Peoples Services Directorate,Home Care,G334
http://opendatacommunities.org/id/london-borough-council/sutton,London Borough of Sutton,13/01/2019,40270637,441.00 ,Chenash Homecare Specialists And Care Agency,25667,Peoples Services Directorate,Home Care,G334
http://opendatacommunities.org/id/london-borough-council/sutton,London Borough of Sutton,27/12/2018,40262688,"2,725.00 ",Cherry Lodge,10934,Peoples Services Directorate,Residential Care - Ext Provider,G310
http://opendatacommunities.org/id/london-borough-council/sutton,London Borough of Sutton,27/12/2018,40262713,"3,360.00 ",Cherry Lodge,10934,Peoples Services Directorate,Residential Care - Ext Provider,G310
http://opendatacommunities.org/id/london-borough-council/sutton,London Borough of Sutton,25/01/2019,40271166,"2,725.00 ",Cherry Lodge,10934,Peoples Services Directorate,Residential Care - Ext Provider,G310
http://opendatacommunities.org/id/london-borough-council/sutton,London Borough of Sutton,25/01/2019,40271192,"3,360.00 ",Cherry Lodge,10934,Peoples Services Directorate,Residential Care - Ext Provider,G310
http://opendatacommunities.org/id/london-borough-council/sutton,London Borough of Sutton,27/12/2018,40262967,"2,880.00 ",CHHG Ltd T/A Belmont House,29991,Peoples Services Directorate,Residential Care - Ext Provider,G310
http://opendatacommunities.org/id/london-borough-council/sutton,London Borough of Sutton,25/01/2019,40271047,"2,880.00 ",CHHG Ltd T/A Belmont House,29991,Peoples Services Directorate,Residential Care - Ext Provider,G310
http://opendatacommunities.org/id/london-borough-council/sutton,London Borough of Sutton,17/12/2018,40264466,968.94 ,Children First Fostering Agency,21215,Peoples Services Directorate,Foster Parents,G326
http://opendatacommunities.org/id/london-borough-council/sutton,London Borough of Sutton,09/01/2019,40268253,"3,104.29 ",Children of All Nations,19625,Peoples Services Directorate,Foster Parents,G326
http://opendatacommunities.org/id/london-borough-council/sutton,London Borough of Sutton,09/01/2019,40268254,"4,565.06 ",Children of All Nations,19625,Peoples Services Directorate,Foster Parents,G326
http://opendatacommunities.org/id/london-borough-council/sutton,London Borough of Sutton,05/12/2018,40264443,"3,558.80 ",Children of Colour,16870,Peoples Services Directorate,Foster Parents,G326
http://opendatacommunities.org/id/london-borough-council/sutton,London Borough of Sutton,05/12/2018,40264444,"3,472.00 ",Children of Colour,16870,Peoples Services Directorate,Foster Parents,G326
http://opendatacommunities.org/id/london-borough-council/sutton,London Borough of Sutton,05/12/2018,40264477,"3,385.20 ",Children of Colour,16870,Peoples Services Directorate,Foster Parents,G326
http://opendatacommunities.org/id/london-borough-council/sutton,London Borough of Sutton,21/01/2019,1265508,"3,231.36 ",Chiltern Day Nursery,10941,Peoples Services Directorate,Non-Maintained Childrens' Nurseries - 3 & 4 yr olds,G405
http://opendatacommunities.org/id/london-borough-council/sutton,London Borough of Sutton,21/01/2019,1265509,908.82 ,Chiltern Day Nursery,10941,Peoples Services Directorate,Non-Maintained Childrens' Nurseries - 3 & 4 yr olds,G405
http://opendatacommunities.org/id/london-borough-council/sutton,London Borough of Sutton,06/12/2018,6941844,750.00 ,Chinara Enterprises Ltd,29870,Chief Executive's Directorate,Training - Course Fees,A520
http://opendatacommunities.org/id/london-borough-council/sutton,London Borough of Sutton,21/12/2018,1264936,"2,833.32 ",Chipstead Valey Primary Trust T/A Chipstead Valley Primary School,26265,Peoples Services Directorate,Top-up Funding,G064
http://opendatacommunities.org/id/london-borough-council/sutton,London Borough of Sutton,21/12/2018,1264937,"4,283.32 ",Chipstead Valey Primary Trust T/A Chipstead Valley Primary School,26265,Peoples Services Directorate,Top-up Funding,G064
http://opendatacommunities.org/id/london-borough-council/sutton,London Borough of Sutton,27/12/2018,40262886,"7,682.20 ",Choice Care Group (Surrey) Ltd,22029,Peoples Services Directorate,Residential Care - Ext Provider,G310
http://opendatacommunities.org/id/london-borough-council/sutton,London Borough of Sutton,27/12/2018,40262910,"7,511.00 ",Choice Care Group (Surrey) Ltd,22029,Peoples Services Directorate,Residential Care - Ext Provider,G310
http://opendatacommunities.org/id/london-borough-council/sutton,London Borough of Sutton,27/12/2018,40263042,"7,240.00 ",Choice Care Group (Surrey) Ltd,22029,Peoples Services Directorate,Residential Care - Ext Provider,G310
http://opendatacommunities.org/id/london-borough-council/sutton,London Borough of Sutton,25/01/2019,40270965,"7,682.20 ",Choice Care Group (Surrey) Ltd,22029,Peoples Services Directorate,Residential Care - Ext Provider,G310
http://opendatacommunities.org/id/london-borough-council/sutton,London Borough of Sutton,25/01/2019,40270991,"7,511.00 ",Choice Care Group (Surrey) Ltd,22029,Peoples Services Directorate,Residential Care - Ext Provider,G310
http://opendatacommunities.org/id/london-borough-council/sutton,London Borough of Sutton,25/01/2019,40271122,"7,240.00 ",Choice Care Group (Surrey) Ltd,22029,Peoples Services Directorate,Residential Care - Ext Provider,G310
http://opendatacommunities.org/id/london-borough-council/sutton,London Borough of Sutton,27/12/2018,40262940,"5,509.00 ",Choice Support,12929,Peoples Services Directorate,Residential Care - Ext Provider,G310
http://opendatacommunities.org/id/london-borough-council/sutton,London Borough of Sutton,07/01/2019,40264792,"1,688.53 ",Choice Support,12929,Peoples Services Directorate,Supported Living - Ext Provider,G306
http://opendatacommunities.org/id/london-borough-council/sutton,London Borough of Sutton,07/01/2019,40264792,"2,420.13 ",Choice Support,12929,Peoples Services Directorate,Supported Living - Ext Provider,G306
http://opendatacommunities.org/id/london-borough-council/sutton,London Borough of Sutton,07/01/2019,40264793,"1,192.53 ",Choice Support,12929,Peoples Services Directorate,Supported Living - Ext Provider,G306
http://opendatacommunities.org/id/london-borough-council/sutton,London Borough of Sutton,07/01/2019,40264793,"2,946.24 ",Choice Support,12929,Peoples Services Directorate,Supported Living - Ext Provider,G306
http://opendatacommunities.org/id/london-borough-council/sutton,London Borough of Sutton,07/01/2019,40264794,"1,697.83 ",Choice Support,12929,Peoples Services Directorate,Supported Living - Ext Provider,G306
http://opendatacommunities.org/id/london-borough-council/sutton,London Borough of Sutton,07/01/2019,40264794,"2,665.65 ",Choice Support,12929,Peoples Services Directorate,Supported Living - Ext Provider,G306
http://opendatacommunities.org/id/london-borough-council/sutton,London Borough of Sutton,07/01/2019,40264795,"1,697.83 ",Choice Support,12929,Peoples Services Directorate,Supported Living - Ext Provider,G306
http://opendatacommunities.org/id/london-borough-council/sutton,London Borough of Sutton,07/01/2019,40264795,"2,490.27 ",Choice Support,12929,Peoples Services Directorate,Supported Living - Ext Provider,G306
http://opendatacommunities.org/id/london-borough-council/sutton,London Borough of Sutton,07/01/2019,40264796,"1,697.83 ",Choice Support,12929,Peoples Services Directorate,Supported Living - Ext Provider,G306
http://opendatacommunities.org/id/london-borough-council/sutton,London Borough of Sutton,07/01/2019,40264796,"3,261.91 ",Choice Support,12929,Peoples Services Directorate,Supported Living - Ext Provider,G306
http://opendatacommunities.org/id/london-borough-council/sutton,London Borough of Sutton,07/01/2019,40264797,574.87 ,Choice Support,12929,Peoples Services Directorate,Supported Living - Ext Provider,G306
http://opendatacommunities.org/id/london-borough-council/sutton,London Borough of Sutton,07/01/2019,40264797,"3,675.09 ",Choice Support,12929,Peoples Services Directorate,Supported Living - Ext Provider,G306
http://opendatacommunities.org/id/london-borough-council/sutton,London Borough of Sutton,07/01/2019,40264799,"1,697.83 ",Choice Support,12929,Peoples Services Directorate,Supported Living - Ext Provider,G306
http://opendatacommunities.org/id/london-borough-council/sutton,London Borough of Sutton,07/01/2019,40264799,"2,490.27 ",Choice Support,12929,Peoples Services Directorate,Supported Living - Ext Provider,G306
http://opendatacommunities.org/id/london-borough-council/sutton,London Borough of Sutton,07/01/2019,40264800,"1,697.83 ",Choice Support,12929,Peoples Services Directorate,Supported Living - Ext Provider,G306
http://opendatacommunities.org/id/london-borough-council/sutton,London Borough of Sutton,07/01/2019,40264800,"2,735.79 ",Choice Support,12929,Peoples Services Directorate,Supported Living - Ext Provider,G306
http://opendatacommunities.org/id/london-borough-council/sutton,London Borough of Sutton,07/01/2019,40264801,"1,651.99 ",Choice Support,12929,Peoples Services Directorate,Supported Living - Ext Provider,G306
http://opendatacommunities.org/id/london-borough-council/sutton,London Borough of Sutton,07/01/2019,40264801,477.62 ,Choice Support,12929,Peoples Services Directorate,Supported Living - Ext Provider,G306
http://opendatacommunities.org/id/london-borough-council/sutton,London Borough of Sutton,07/01/2019,40264801,"2,349.98 ",Choice Support,12929,Peoples Services Directorate,Supported Living - Ext Provider,G306
http://opendatacommunities.org/id/london-borough-council/sutton,London Borough of Sutton,07/01/2019,40264802,"1,616.92 ",Choice Support,12929,Peoples Services Directorate,Supported Living - Ext Provider,G306
http://opendatacommunities.org/id/london-borough-council/sutton,London Borough of Sutton,07/01/2019,40264802,477.62 ,Choice Support,12929,Peoples Services Directorate,Supported Living - Ext Provider,G306
http://opendatacommunities.org/id/london-borough-council/sutton,London Borough of Sutton,07/01/2019,40264802,"2,285.45 ",Choice Support,12929,Peoples Services Directorate,Supported Living - Ext Provider,G306
http://opendatacommunities.org/id/london-borough-council/sutton,London Borough of Sutton,07/01/2019,40264803,446.13 ,Choice Support,12929,Peoples Services Directorate,Supported Living - Ext Provider,G306
http://opendatacommunities.org/id/london-borough-council/sutton,London Borough of Sutton,07/01/2019,40264803,"5,165.04 ",Choice Support,12929,Peoples Services Directorate,Supported Living - Ext Provider,G306
http://opendatacommunities.org/id/london-borough-council/sutton,London Borough of Sutton,07/01/2019,40264804,949.93 ,Choice Support,12929,Peoples Services Directorate,Supported Living - Ext Provider,G306
http://opendatacommunities.org/id/london-borough-council/sutton,London Borough of Sutton,07/01/2019,40264804,"6,281.75 ",Choice Support,12929,Peoples Services Directorate,Supported Living - Ext Provider,G306
http://opendatacommunities.org/id/london-borough-council/sutton,London Borough of Sutton,07/01/2019,40264806,"1,052.23 ",Choice Support,12929,Peoples Services Directorate,Supported Living - Ext Provider,G306
http://opendatacommunities.org/id/london-borough-council/sutton,London Borough of Sutton,07/01/2019,40264806,"1,999.23 ",Choice Support,12929,Peoples Services Directorate,Supported Living - Ext Provider,G306
http://opendatacommunities.org/id/london-borough-council/sutton,London Borough of Sutton,07/01/2019,40264807,"1,688.53 ",Choice Support,12929,Peoples Services Directorate,Supported Living - Ext Provider,G306
http://opendatacommunities.org/id/london-borough-council/sutton,London Borough of Sutton,07/01/2019,40264807,"4,068.62 ",Choice Support,12929,Peoples Services Directorate,Supported Living - Ext Provider,G306
http://opendatacommunities.org/id/london-borough-council/sutton,London Borough of Sutton,07/01/2019,40264808,"4,068.62 ",Choice Support,12929,Peoples Services Directorate,Supported Living - Ext Provider,G306
http://opendatacommunities.org/id/london-borough-council/sutton,London Borough of Sutton,07/01/2019,40264808,860.07 ,Choice Support,12929,Peoples Services Directorate,Supported Living - Ext Provider,G306
http://opendatacommunities.org/id/london-borough-council/sutton,London Borough of Sutton,07/01/2019,40264809,"1,688.53 ",Choice Support,12929,Peoples Services Directorate,Supported Living - Ext Provider,G306
http://opendatacommunities.org/id/london-borough-council/sutton,London Borough of Sutton,07/01/2019,40264809,"3,928.32 ",Choice Support,12929,Peoples Services Directorate,Supported Living - Ext Provider,G306
http://opendatacommunities.org/id/london-borough-council/sutton,London Borough of Sutton,07/01/2019,40264810,"1,697.83 ",Choice Support,12929,Peoples Services Directorate,Supported Living - Ext Provider,G306
http://opendatacommunities.org/id/london-borough-council/sutton,London Borough of Sutton,07/01/2019,40264810,"3,156.69 ",Choice Support,12929,Peoples Services Directorate,Supported Living - Ext Provider,G306
http://opendatacommunities.org/id/london-borough-council/sutton,London Borough of Sutton,07/01/2019,40264811,"1,688.53 ",Choice Support,12929,Peoples Services Directorate,Supported Living - Ext Provider,G306
http://opendatacommunities.org/id/london-borough-council/sutton,London Borough of Sutton,07/01/2019,40264811,"3,402.21 ",Choice Support,12929,Peoples Services Directorate,Supported Living - Ext Provider,G306
http://opendatacommunities.org/id/london-borough-council/sutton,London Borough of Sutton,07/01/2019,40264812,"1,993.61 ",Choice Support,12929,Peoples Services Directorate,Supported Living - Ext Provider,G306
http://opendatacommunities.org/id/london-borough-council/sutton,London Borough of Sutton,07/01/2019,40264812,477.62 ,Choice Support,12929,Peoples Services Directorate,Supported Living - Ext Provider,G306
http://opendatacommunities.org/id/london-borough-council/sutton,London Borough of Sutton,07/01/2019,40264812,"1,999.23 ",Choice Support,12929,Peoples Services Directorate,Supported Living - Ext Provider,G306
http://opendatacommunities.org/id/london-borough-council/sutton,London Borough of Sutton,07/01/2019,40264814,"1,746.27 ",Choice Support,12929,Peoples Services Directorate,Supported Living - Ext Provider,G306
http://opendatacommunities.org/id/london-borough-council/sutton,London Borough of Sutton,07/01/2019,40264814,456.98 ,Choice Support,12929,Peoples Services Directorate,Supported Living - Ext Provider,G306
http://opendatacommunities.org/id/london-borough-council/sutton,London Borough of Sutton,07/01/2019,40264814,"2,006.81 ",Choice Support,12929,Peoples Services Directorate,Supported Living - Ext Provider,G306
http://opendatacommunities.org/id/london-borough-council/sutton,London Borough of Sutton,07/01/2019,40264815,"1,688.53 ",Choice Support,12929,Peoples Services Directorate,Supported Living - Ext Provider,G306
http://opendatacommunities.org/id/london-borough-council/sutton,London Borough of Sutton,07/01/2019,40264815,"3,402.21 ",Choice Support,12929,Peoples Services Directorate,Supported Living - Ext Provider,G306
http://opendatacommunities.org/id/london-borough-council/sutton,London Borough of Sutton,07/01/2019,40264816,"2,400.46 ",Choice Support,12929,Peoples Services Directorate,Supported Living - Ext Provider,G306
http://opendatacommunities.org/id/london-borough-council/sutton,London Borough of Sutton,07/01/2019,40264816,"1,402.97 ",Choice Support,12929,Peoples Services Directorate,Supported Living - Ext Provider,G306
http://opendatacommunities.org/id/london-borough-council/sutton,London Borough of Sutton,07/01/2019,40264816,477.62 ,Choice Support,12929,Peoples Services Directorate,Supported Living - Ext Provider,G306
http://opendatacommunities.org/id/london-borough-council/sutton,London Borough of Sutton,07/01/2019,40264817,"1,688.53 ",Choice Support,12929,Peoples Services Directorate,Supported Living - Ext Provider,G306
http://opendatacommunities.org/id/london-borough-council/sutton,London Borough of Sutton,07/01/2019,40264817,"11,805.69 ",Choice Support,12929,Peoples Services Directorate,Supported Living - Ext Provider,G306
http://opendatacommunities.org/id/london-borough-council/sutton,London Borough of Sutton,07/01/2019,40264818,"1,431.05 ",Choice Support,12929,Peoples Services Directorate,Supported Living - Ext Provider,G306
http://opendatacommunities.org/id/london-borough-council/sutton,London Borough of Sutton,07/01/2019,40264818,"2,791.90 ",Choice Support,12929,Peoples Services Directorate,Supported Living - Ext Provider,G306
http://opendatacommunities.org/id/london-borough-council/sutton,London Borough of Sutton,07/01/2019,40264818,860.07 ,Choice Support,12929,Peoples Services Directorate,Supported Living - Ext Provider,G306
http://opendatacommunities.org/id/london-borough-council/sutton,London Borough of Sutton,07/01/2019,40264819,"1,881.43 ",Choice Support,12929,Peoples Services Directorate,Supported Living - Ext Provider,G306
http://opendatacommunities.org/id/london-borough-council/sutton,London Borough of Sutton,07/01/2019,40264819,477.62 ,Choice Support,12929,Peoples Services Directorate,Supported Living - Ext Provider,G306
http://opendatacommunities.org/id/london-borough-council/sutton,London Borough of Sutton,07/01/2019,40264819,"2,112.43 ",Choice Support,12929,Peoples Services Directorate,Supported Living - Ext Provider,G306
http://opendatacommunities.org/id/london-borough-council/sutton,London Borough of Sutton,07/01/2019,40264820,"1,697.83 ",Choice Support,12929,Peoples Services Directorate,Supported Living - Ext Provider,G306
http://opendatacommunities.org/id/london-borough-council/sutton,London Borough of Sutton,07/01/2019,40264820,"2,665.65 ",Choice Support,12929,Peoples Services Directorate,Supported Living - Ext Provider,G306
http://opendatacommunities.org/id/london-borough-council/sutton,London Borough of Sutton,07/01/2019,40264823,"1,688.53 ",Choice Support,12929,Peoples Services Directorate,Supported Living - Ext Provider,G306
http://opendatacommunities.org/id/london-borough-council/sutton,London Borough of Sutton,07/01/2019,40264823,"3,998.47 ",Choice Support,12929,Peoples Services Directorate,Supported Living - Ext Provider,G306
http://opendatacommunities.org/id/london-borough-council/sutton,London Borough of Sutton,07/01/2019,40264824,"1,626.04 ",Choice Support,12929,Peoples Services Directorate,Supported Living - Ext Provider,G306
http://opendatacommunities.org/id/london-borough-council/sutton,London Borough of Sutton,07/01/2019,40264824,477.62 ,Choice Support,12929,Peoples Services Directorate,Supported Living - Ext Provider,G306
http://opendatacommunities.org/id/london-borough-council/sutton,London Borough of Sutton,07/01/2019,40264824,"2,314.90 ",Choice Support,12929,Peoples Services Directorate,Supported Living - Ext Provider,G306
http://opendatacommunities.org/id/london-borough-council/sutton,London Borough of Sutton,07/01/2019,40264825,"1,697.83 ",Choice Support,12929,Peoples Services Directorate,Supported Living - Ext Provider,G306
http://opendatacommunities.org/id/london-borough-council/sutton,London Borough of Sutton,07/01/2019,40264825,"3,156.69 ",Choice Support,12929,Peoples Services Directorate,Supported Living - Ext Provider,G306
http://opendatacommunities.org/id/london-borough-council/sutton,London Borough of Sutton,07/01/2019,40264826,"1,599.38 ",Choice Support,12929,Peoples Services Directorate,Supported Living - Ext Provider,G306
http://opendatacommunities.org/id/london-borough-council/sutton,London Borough of Sutton,07/01/2019,40264826,"2,069.38 ",Choice Support,12929,Peoples Services Directorate,Supported Living - Ext Provider,G306
http://opendatacommunities.org/id/london-borough-council/sutton,London Borough of Sutton,07/01/2019,40264826,477.62 ,Choice Support,12929,Peoples Services Directorate,Supported Living - Ext Provider,G306
http://opendatacommunities.org/id/london-borough-council/sutton,London Borough of Sutton,24/01/2019,40270908,"1,688.52 ",Choice Support,12929,Peoples Services Directorate,Supported Living - Ext Provider,G306
http://opendatacommunities.org/id/london-borough-council/sutton,London Borough of Sutton,24/01/2019,40270908,"2,420.12 ",Choice Support,12929,Peoples Services Directorate,Supported Living - Ext Provider,G306
http://opendatacommunities.org/id/london-borough-council/sutton,London Borough of Sutton,24/01/2019,40270909,"1,192.52 ",Choice Support,12929,Peoples Services Directorate,Supported Living - Ext Provider,G306
http://opendatacommunities.org/id/london-borough-council/sutton,London Borough of Sutton,24/01/2019,40270909,"2,946.24 ",Choice Support,12929,Peoples Services Directorate,Supported Living - Ext Provider,G306
http://opendatacommunities.org/id/london-borough-council/sutton,London Borough of Sutton,24/01/2019,40270910,"1,697.82 ",Choice Support,12929,Peoples Services Directorate,Supported Living - Ext Provider,G306
http://opendatacommunities.org/id/london-borough-council/sutton,London Borough of Sutton,24/01/2019,40270910,"2,665.64 ",Choice Support,12929,Peoples Services Directorate,Supported Living - Ext Provider,G306
http://opendatacommunities.org/id/london-borough-council/sutton,London Borough of Sutton,24/01/2019,40270911,"1,697.82 ",Choice Support,12929,Peoples Services Directorate,Supported Living - Ext Provider,G306
http://opendatacommunities.org/id/london-borough-council/sutton,London Borough of Sutton,24/01/2019,40270911,"2,490.28 ",Choice Support,12929,Peoples Services Directorate,Supported Living - Ext Provider,G306
http://opendatacommunities.org/id/london-borough-council/sutton,London Borough of Sutton,24/01/2019,40270912,"1,697.82 ",Choice Support,12929,Peoples Services Directorate,Supported Living - Ext Provider,G306
http://opendatacommunities.org/id/london-borough-council/sutton,London Borough of Sutton,24/01/2019,40270912,"3,261.91 ",Choice Support,12929,Peoples Services Directorate,Supported Living - Ext Provider,G306
http://opendatacommunities.org/id/london-borough-council/sutton,London Borough of Sutton,24/01/2019,40270913,574.88 ,Choice Support,12929,Peoples Services Directorate,Supported Living - Ext Provider,G306
http://opendatacommunities.org/id/london-borough-council/sutton,London Borough of Sutton,24/01/2019,40270913,"3,675.10 ",Choice Support,12929,Peoples Services Directorate,Supported Living - Ext Provider,G306
http://opendatacommunities.org/id/london-borough-council/sutton,London Borough of Sutton,24/01/2019,40270915,"1,697.82 ",Choice Support,12929,Peoples Services Directorate,Supported Living - Ext Provider,G306
http://opendatacommunities.org/id/london-borough-council/sutton,London Borough of Sutton,24/01/2019,40270915,"2,490.28 ",Choice Support,12929,Peoples Services Directorate,Supported Living - Ext Provider,G306
http://opendatacommunities.org/id/london-borough-council/sutton,London Borough of Sutton,24/01/2019,40270916,"1,697.82 ",Choice Support,12929,Peoples Services Directorate,Supported Living - Ext Provider,G306
http://opendatacommunities.org/id/london-borough-council/sutton,London Borough of Sutton,24/01/2019,40270916,"2,735.80 ",Choice Support,12929,Peoples Services Directorate,Supported Living - Ext Provider,G306
http://opendatacommunities.org/id/london-borough-council/sutton,London Borough of Sutton,24/01/2019,40270917,"1,651.99 ",Choice Support,12929,Peoples Services Directorate,Supported Living - Ext Provider,G306
http://opendatacommunities.org/id/london-borough-council/sutton,London Borough of Sutton,24/01/2019,40270917,477.62 ,Choice Support,12929,Peoples Services Directorate,Supported Living - Ext Provider,G306
http://opendatacommunities.org/id/london-borough-council/sutton,London Borough of Sutton,24/01/2019,40270917,"2,349.97 ",Choice Support,12929,Peoples Services Directorate,Supported Living - Ext Provider,G306
http://opendatacommunities.org/id/london-borough-council/sutton,London Borough of Sutton,24/01/2019,40270918,"1,616.91 ",Choice Support,12929,Peoples Services Directorate,Supported Living - Ext Provider,G306
http://opendatacommunities.org/id/london-borough-council/sutton,London Borough of Sutton,24/01/2019,40270918,477.62 ,Choice Support,12929,Peoples Services Directorate,Supported Living - Ext Provider,G306
http://opendatacommunities.org/id/london-borough-council/sutton,London Borough of Sutton,24/01/2019,40270918,"2,285.46 ",Choice Support,12929,Peoples Services Directorate,Supported Living - Ext Provider,G306
http://opendatacommunities.org/id/london-borough-council/sutton,London Borough of Sutton,24/01/2019,40270919,446.14 ,Choice Support,12929,Peoples Services Directorate,Supported Living - Ext Provider,G306
http://opendatacommunities.org/id/london-borough-council/sutton,London Borough of Sutton,24/01/2019,40270919,"5,165.05 ",Choice Support,12929,Peoples Services Directorate,Supported Living - Ext Provider,G306
http://opendatacommunities.org/id/london-borough-council/sutton,London Borough of Sutton,24/01/2019,40270920,949.93 ,Choice Support,12929,Peoples Services Directorate,Supported Living - Ext Provider,G306
http://opendatacommunities.org/id/london-borough-council/sutton,London Borough of Sutton,24/01/2019,40270920,"6,281.75 ",Choice Support,12929,Peoples Services Directorate,Supported Living - Ext Provider,G306
http://opendatacommunities.org/id/london-borough-council/sutton,London Borough of Sutton,24/01/2019,40270922,"1,052.23 ",Choice Support,12929,Peoples Services Directorate,Supported Living - Ext Provider,G306
http://opendatacommunities.org/id/london-borough-council/sutton,London Borough of Sutton,24/01/2019,40270922,"1,999.24 ",Choice Support,12929,Peoples Services Directorate,Supported Living - Ext Provider,G306
http://opendatacommunities.org/id/london-borough-council/sutton,London Borough of Sutton,24/01/2019,40270923,"1,688.52 ",Choice Support,12929,Peoples Services Directorate,Supported Living - Ext Provider,G306
http://opendatacommunities.org/id/london-borough-council/sutton,London Borough of Sutton,24/01/2019,40270923,"4,068.61 ",Choice Support,12929,Peoples Services Directorate,Supported Living - Ext Provider,G306
http://opendatacommunities.org/id/london-borough-council/sutton,London Borough of Sutton,24/01/2019,40270924,"4,068.61 ",Choice Support,12929,Peoples Services Directorate,Supported Living - Ext Provider,G306
http://opendatacommunities.org/id/london-borough-council/sutton,London Borough of Sutton,24/01/2019,40270924,860.08 ,Choice Support,12929,Peoples Services Directorate,Supported Living - Ext Provider,G306
http://opendatacommunities.org/id/london-borough-council/sutton,London Borough of Sutton,24/01/2019,40270925,"1,688.52 ",Choice Support,12929,Peoples Services Directorate,Supported Living - Ext Provider,G306
http://opendatacommunities.org/id/london-borough-council/sutton,London Borough of Sutton,24/01/2019,40270925,"3,928.32 ",Choice Support,12929,Peoples Services Directorate,Supported Living - Ext Provider,G306
http://opendatacommunities.org/id/london-borough-council/sutton,London Borough of Sutton,24/01/2019,40270926,"1,697.82 ",Choice Support,12929,Peoples Services Directorate,Supported Living - Ext Provider,G306
http://opendatacommunities.org/id/london-borough-council/sutton,London Borough of Sutton,24/01/2019,40270926,"3,156.68 ",Choice Support,12929,Peoples Services Directorate,Supported Living - Ext Provider,G306
http://opendatacommunities.org/id/london-borough-council/sutton,London Borough of Sutton,24/01/2019,40270927,"1,688.52 ",Choice Support,12929,Peoples Services Directorate,Supported Living - Ext Provider,G306
http://opendatacommunities.org/id/london-borough-council/sutton,London Borough of Sutton,24/01/2019,40270927,"3,402.20 ",Choice Support,12929,Peoples Services Directorate,Supported Living - Ext Provider,G306
http://opendatacommunities.org/id/london-borough-council/sutton,London Borough of Sutton,24/01/2019,40270928,"1,993.61 ",Choice Support,12929,Peoples Services Directorate,Supported Living - Ext Provider,G306
http://opendatacommunities.org/id/london-borough-council/sutton,London Borough of Sutton,24/01/2019,40270928,477.62 ,Choice Support,12929,Peoples Services Directorate,Supported Living - Ext Provider,G306
http://opendatacommunities.org/id/london-borough-council/sutton,London Borough of Sutton,24/01/2019,40270928,"1,999.24 ",Choice Support,12929,Peoples Services Directorate,Supported Living - Ext Provider,G306
http://opendatacommunities.org/id/london-borough-council/sutton,London Borough of Sutton,24/01/2019,40270930,"1,746.28 ",Choice Support,12929,Peoples Services Directorate,Supported Living - Ext Provider,G306
http://opendatacommunities.org/id/london-borough-council/sutton,London Borough of Sutton,24/01/2019,40270930,456.99 ,Choice Support,12929,Peoples Services Directorate,Supported Living - Ext Provider,G306
http://opendatacommunities.org/id/london-borough-council/sutton,London Borough of Sutton,24/01/2019,40270930,"2,006.80 ",Choice Support,12929,Peoples Services Directorate,Supported Living - Ext Provider,G306
http://opendatacommunities.org/id/london-borough-council/sutton,London Borough of Sutton,24/01/2019,40270931,"1,688.52 ",Choice Support,12929,Peoples Services Directorate,Supported Living - Ext Provider,G306
http://opendatacommunities.org/id/london-borough-council/sutton,London Borough of Sutton,24/01/2019,40270931,"3,402.20 ",Choice Support,12929,Peoples Services Directorate,Supported Living - Ext Provider,G306
http://opendatacommunities.org/id/london-borough-council/sutton,London Borough of Sutton,24/01/2019,40270932,"2,400.47 ",Choice Support,12929,Peoples Services Directorate,Supported Living - Ext Provider,G306
http://opendatacommunities.org/id/london-borough-council/sutton,London Borough of Sutton,24/01/2019,40270932,"1,402.97 ",Choice Support,12929,Peoples Services Directorate,Supported Living - Ext Provider,G306
http://opendatacommunities.org/id/london-borough-council/sutton,London Borough of Sutton,24/01/2019,40270932,477.62 ,Choice Support,12929,Peoples Services Directorate,Supported Living - Ext Provider,G306
http://opendatacommunities.org/id/london-borough-council/sutton,London Borough of Sutton,24/01/2019,40270933,"1,688.52 ",Choice Support,12929,Peoples Services Directorate,Supported Living - Ext Provider,G306
http://opendatacommunities.org/id/london-borough-council/sutton,London Borough of Sutton,24/01/2019,40270933,"2,951.42 ",Choice Support,12929,Peoples Services Directorate,Supported Living - Ext Provider,G306
http://opendatacommunities.org/id/london-borough-council/sutton,London Borough of Sutton,24/01/2019,40270934,"1,431.05 ",Choice Support,12929,Peoples Services Directorate,Supported Living - Ext Provider,G306
http://opendatacommunities.org/id/london-borough-council/sutton,London Borough of Sutton,24/01/2019,40270934,"2,791.91 ",Choice Support,12929,Peoples Services Directorate,Supported Living - Ext Provider,G306
http://opendatacommunities.org/id/london-borough-council/sutton,London Borough of Sutton,24/01/2019,40270934,860.08 ,Choice Support,12929,Peoples Services Directorate,Supported Living - Ext Provider,G306
http://opendatacommunities.org/id/london-borough-council/sutton,London Borough of Sutton,24/01/2019,40270935,"1,881.44 ",Choice Support,12929,Peoples Services Directorate,Supported Living - Ext Provider,G306
http://opendatacommunities.org/id/london-borough-council/sutton,London Borough of Sutton,24/01/2019,40270935,477.62 ,Choice Support,12929,Peoples Services Directorate,Supported Living - Ext Provider,G306
http://opendatacommunities.org/id/london-borough-council/sutton,London Borough of Sutton,24/01/2019,40270935,"2,112.43 ",Choice Support,12929,Peoples Services Directorate,Supported Living - Ext Provider,G306
http://opendatacommunities.org/id/london-borough-council/sutton,London Borough of Sutton,24/01/2019,40270936,"1,697.82 ",Choice Support,12929,Peoples Services Directorate,Supported Living - Ext Provider,G306
http://opendatacommunities.org/id/london-borough-council/sutton,London Borough of Sutton,24/01/2019,40270936,"2,665.64 ",Choice Support,12929,Peoples Services Directorate,Supported Living - Ext Provider,G306
http://opendatacommunities.org/id/london-borough-council/sutton,London Borough of Sutton,24/01/2019,40270939,"1,688.52 ",Choice Support,12929,Peoples Services Directorate,Supported Living - Ext Provider,G306
http://opendatacommunities.org/id/london-borough-council/sutton,London Borough of Sutton,24/01/2019,40270939,"3,998.47 ",Choice Support,12929,Peoples Services Directorate,Supported Living - Ext Provider,G306
http://opendatacommunities.org/id/london-borough-council/sutton,London Borough of Sutton,24/01/2019,40270940,"1,626.04 ",Choice Support,12929,Peoples Services Directorate,Supported Living - Ext Provider,G306
http://opendatacommunities.org/id/london-borough-council/sutton,London Borough of Sutton,24/01/2019,40270940,477.62 ,Choice Support,12929,Peoples Services Directorate,Supported Living - Ext Provider,G306
http://opendatacommunities.org/id/london-borough-council/sutton,London Borough of Sutton,24/01/2019,40270940,"2,314.91 ",Choice Support,12929,Peoples Services Directorate,Supported Living - Ext Provider,G306
http://opendatacommunities.org/id/london-borough-council/sutton,London Borough of Sutton,24/01/2019,40270941,"1,697.82 ",Choice Support,12929,Peoples Services Directorate,Supported Living - Ext Provider,G306
http://opendatacommunities.org/id/london-borough-council/sutton,London Borough of Sutton,24/01/2019,40270941,"3,156.68 ",Choice Support,12929,Peoples Services Directorate,Supported Living - Ext Provider,G306
http://opendatacommunities.org/id/london-borough-council/sutton,London Borough of Sutton,24/01/2019,40270942,"1,599.38 ",Choice Support,12929,Peoples Services Directorate,Supported Living - Ext Provider,G306
http://opendatacommunities.org/id/london-borough-council/sutton,London Borough of Sutton,24/01/2019,40270942,"2,069.39 ",Choice Support,12929,Peoples Services Directorate,Supported Living - Ext Provider,G306
http://opendatacommunities.org/id/london-borough-council/sutton,London Borough of Sutton,24/01/2019,40270942,477.62 ,Choice Support,12929,Peoples Services Directorate,Supported Living - Ext Provider,G306
http://opendatacommunities.org/id/london-borough-council/sutton,London Borough of Sutton,25/01/2019,40271019,"5,509.00 ",Choice Support,12929,Peoples Services Directorate,Residential Care - Ext Provider,G310
http://opendatacommunities.org/id/london-borough-council/sutton,London Borough of Sutton,21/01/2019,1265499,"1,375.71 ",Christchurch Fledgelings Pre-School,10896,Peoples Services Directorate,Non-Maintained Childrens' Nurseries - 2 Year Olds,G404
http://opendatacommunities.org/id/london-borough-council/sutton,London Borough of Sutton,21/01/2019,1265500,"3,574.69 ",Christchurch Fledgelings Pre-School,10896,Peoples Services Directorate,Non-Maintained Childrens' Nurseries - 3 & 4 yr olds,G405
http://opendatacommunities.org/id/london-borough-council/sutton,London Borough of Sutton,21/01/2019,1265501,908.82 ,Christchurch Fledgelings Pre-School,10896,Peoples Services Directorate,Non-Maintained Childrens' Nurseries - 3 & 4 yr olds,G405
http://opendatacommunities.org/id/london-borough-council/sutton,London Borough of Sutton,21/01/2019,1265726,691.42 ,Christina Snowsill,26437,Peoples Services Directorate,Non-Maintained Childrens' Nurseries - 3 & 4 yr olds,G405
http://opendatacommunities.org/id/london-borough-council/sutton,London Borough of Sutton,23/01/2019,6944315,500.00 ,REDACTED - PERSONAL DATA,99803,Chief Executive's Directorate,General Office Expenses,F235
http://opendatacommunities.org/id/london-borough-council/sutton,London Borough of Sutton,02/01/2019,6942999,"15,045.81 ",Chroma Vision Limited,20351,"Environment, Housing & Regeneration Directorate",IT Equipment - Repair and Maintenance,F382
http://opendatacommunities.org/id/london-borough-council/sutton,London Borough of Sutton,08/01/2019,6943225,"9,568.11 ",Chroma Vision Limited,20351,Peoples Services Directorate,Building Works -Main Contractor,Y350
http://opendatacommunities.org/id/london-borough-council/sutton,London Borough of Sutton,14/01/2019,6943634,"1,543.63 ",Chroma Vision Limited,20351,"Environment, Housing & Regeneration Directorate",CCTV Rapid Deployment Cameras,F341
http://opendatacommunities.org/id/london-borough-council/sutton,London Borough of Sutton,22/01/2019,6944067,"4,500.00 ",Chroma Vision Limited,20351,"Environment, Housing & Regeneration Directorate",Roads & Sewers Etc-Main Contract,Y300
http://opendatacommunities.org/id/london-borough-council/sutton,London Borough of Sutton,09/01/2019,6944370,"2,200.00 ",CIPFA,10892,Chief Executive's Directorate,Training - Course Fees,A520
http://opendatacommunities.org/id/london-borough-council/sutton,London Borough of Sutton,01/01/2019,1264994,"20,285.14 ",Cirrus Primary Academy Trust t/a Barrow Hedges Primary School Academy,30237,Peoples Services Directorate,Top-up Funding,G064
http://opendatacommunities.org/id/london-borough-council/sutton,London Borough of Sutton,03/01/2019,6943015,873.96 ,City Suburban Tree Surgeons,24817,"Environment, Housing & Regeneration Directorate",Highway Trees - Maintenance,D560
http://opendatacommunities.org/id/london-borough-council/sutton,London Borough of Sutton,01/01/2019,6943651,"13,317.00 ",Cityglen Ltd T/A Hytyme ltd,24115,"Environment, Housing & Regeneration Directorate",Bed and Breakfast Accommodation,G400
http://opendatacommunities.org/id/london-borough-council/sutton,London Borough of Sutton,22/01/2019,6944030,"13,500.00 ",Civica UK Ltd,10978,Resources Directorate,IT Licences,F385
http://opendatacommunities.org/id/london-borough-council/sutton,London Borough of Sutton,22/01/2019,6944032,"11,250.00 ",Civica UK Ltd,10978,Resources Directorate,IT Licences,F385
http://opendatacommunities.org/id/london-borough-council/sutton,London Borough of Sutton,22/01/2019,6944033,"5,062.50 ",Civica UK Ltd,10978,Resources Directorate,IT Licences,F385
http://opendatacommunities.org/id/london-borough-council/sutton,London Borough of Sutton,22/01/2019,6944034,"17,454.68 ",Civica UK Ltd,10978,Resources Directorate,IT Licences,F385
http://opendatacommunities.org/id/london-borough-council/sutton,London Borough of Sutton,27/12/2018,40262758,"3,032.64 ",Claremont Care Svs Ltd,18724,Peoples Services Directorate,Nursing Care - Ext Provider,G311
http://opendatacommunities.org/id/london-borough-council/sutton,London Borough of Sutton,27/12/2018,40262793,"4,000.00 ",Claremont Care Svs Ltd,18724,Peoples Services Directorate,Nursing Care - Ext Provider,G311
http://opendatacommunities.org/id/london-borough-council/sutton,London Borough of Sutton,27/12/2018,40262857,"7,921.26 ",Claremont Care Svs Ltd,18724,Peoples Services Directorate,Nursing Care - Ext Provider,G311
http://opendatacommunities.org/id/london-borough-council/sutton,London Borough of Sutton,27/12/2018,40262868,"2,443.75 ",Claremont Care Svs Ltd,18724,Peoples Services Directorate,Nursing Care - Ext Provider,G311
http://opendatacommunities.org/id/london-borough-council/sutton,London Borough of Sutton,27/12/2018,40262872,"4,200.00 ",Claremont Care Svs Ltd,18724,Peoples Services Directorate,Nursing Care - Ext Provider,G311
http://opendatacommunities.org/id/london-borough-council/sutton,London Borough of Sutton,27/12/2018,40262897,"4,374.00 ",Claremont Care Svs Ltd,18724,Peoples Services Directorate,Nursing Care - Ext Provider,G311
http://opendatacommunities.org/id/london-borough-council/sutton,London Borough of Sutton,27/12/2018,40263027,"3,200.00 ",Claremont Care Svs Ltd,18724,Peoples Services Directorate,Interim Placements - Ext Provider,G317
http://opendatacommunities.org/id/london-borough-council/sutton,London Borough of Sutton,25/01/2019,40270949,"4,200.00 ",Claremont Care Svs Ltd,18724,Peoples Services Directorate,Nursing Care - Ext Provider,G311
http://opendatacommunities.org/id/london-borough-council/sutton,London Borough of Sutton,25/01/2019,40270976,"4,374.00 ",Claremont Care Svs Ltd,18724,Peoples Services Directorate,Nursing Care - Ext Provider,G311
http://opendatacommunities.org/id/london-borough-council/sutton,London Borough of Sutton,25/01/2019,40271009,"4,492.86 ",Claremont Care Svs Ltd,18724,Peoples Services Directorate,Nursing Care - Ext Provider,G311
http://opendatacommunities.org/id/london-borough-council/sutton,London Borough of Sutton,25/01/2019,40271109,"3,200.00 ",Claremont Care Svs Ltd,18724,Peoples Services Directorate,Interim Placements - Ext Provider,G317
http://opendatacommunities.org/id/london-borough-council/sutton,London Borough of Sutton,25/01/2019,40271238,"2,166.17 ",Claremont Care Svs Ltd,18724,Peoples Services Directorate,Nursing Care - Ext Provider,G311
http://opendatacommunities.org/id/london-borough-council/sutton,London Borough of Sutton,25/01/2019,40271306,"4,000.00 ",Claremont Care Svs Ltd,18724,Peoples Services Directorate,Nursing Care - Ext Provider,G311
http://opendatacommunities.org/id/london-borough-council/sutton,London Borough of Sutton,25/01/2019,40271328,"4,032.64 ",Claremont Care Svs Ltd,18724,Peoples Services Directorate,Nursing Care - Ext Provider,G311
http://opendatacommunities.org/id/london-borough-council/sutton,London Borough of Sutton,10/01/2019,1264842,678.23 ,Clarion Housing Association Ltd,32192,Peoples Services Directorate,Approved Lodgings,H323
http://opendatacommunities.org/id/london-borough-council/sutton,London Borough of Sutton,27/11/2018,6943000,"4,800.00 ",Cleaner Greener Safer Happier Ltd,29981,"Environment, Housing & Regeneration Directorate",Fees - Consultants (Ad Hoc),F283
http://opendatacommunities.org/id/london-borough-council/sutton,London Borough of Sutton,10/12/2018,6943001,"6,300.00 ",Cleaner Greener Safer Happier Ltd,29981,"Environment, Housing & Regeneration Directorate",Fees - Consultants (Ad Hoc),F283
http://opendatacommunities.org/id/london-borough-council/sutton,London Borough of Sutton,27/11/2018,6943002,"3,000.00 ",Cleaner Greener Safer Happier Ltd,29981,"Environment, Housing & Regeneration Directorate",Fees - Consultants (Ad Hoc),F283
http://opendatacommunities.org/id/london-borough-council/sutton,London Borough of Sutton,07/01/2019,6943216,"3,360.00 ",Cleaner Greener Safer Happier Ltd,29981,"Environment, Housing & Regeneration Directorate",Fees - Consultants (Ad Hoc),F283
http://opendatacommunities.org/id/london-borough-council/sutton,London Borough of Sutton,21/01/2019,6943810,950.00 ,Cleaner Greener Safer Happier Ltd,29981,"Environment, Housing & Regeneration Directorate",Fees - Consultants (Ad Hoc),F283
http://opendatacommunities.org/id/london-borough-council/sutton,London Borough of Sutton,28/11/2018,40262400,720.00 ,Clovecare Ltd,33431,Peoples Services Directorate,Home Care,G334
http://opendatacommunities.org/id/london-borough-council/sutton,London Borough of Sutton,22/11/2018,40262410,653.00 ,Clovecare Ltd,33431,Peoples Services Directorate,Home Care,G334
http://opendatacommunities.org/id/london-borough-council/sutton,London Borough of Sutton,13/12/2018,40262461,803.00 ,Clovecare Ltd,33431,Peoples Services Directorate,Home Care,G334
http://opendatacommunities.org/id/london-borough-council/sutton,London Borough of Sutton,24/12/2018,40265202,803.00 ,Clovecare Ltd,33431,Peoples Services Directorate,Home Care,G334
http://opendatacommunities.org/id/london-borough-council/sutton,London Borough of Sutton,04/01/2019,40266699,912.00 ,Clovecare Ltd,33431,Peoples Services Directorate,Home Care,G334
http://opendatacommunities.org/id/london-borough-council/sutton,London Borough of Sutton,18/12/2018,40266845,803.00 ,Clovecare Ltd,33431,Peoples Services Directorate,Home Care,G334
http://opendatacommunities.org/id/london-borough-council/sutton,London Borough of Sutton,27/12/2018,40262727,"2,000.00 ",Cloyda Limited,20402,Peoples Services Directorate,Residential Care - Ext Provider,G310
http://opendatacommunities.org/id/london-borough-council/sutton,London Borough of Sutton,27/12/2018,40262763,"2,600.00 ",Cloyda Limited,20402,Peoples Services Directorate,Residential Care - Ext Provider,G310
http://opendatacommunities.org/id/london-borough-council/sutton,London Borough of Sutton,25/01/2019,40271206,"2,000.00 ",Cloyda Limited,20402,Peoples Services Directorate,Residential Care - Ext Provider,G310
http://opendatacommunities.org/id/london-borough-council/sutton,London Borough of Sutton,25/01/2019,40271243,"2,600.00 ",Cloyda Limited,20402,Peoples Services Directorate,Residential Care - Ext Provider,G310
http://opendatacommunities.org/id/london-borough-council/sutton,London Borough of Sutton,27/12/2018,40262689,"5,416.92 ",Cmg Homes Ltd,11026,Peoples Services Directorate,Residential Care - Ext Provider,G310
http://opendatacommunities.org/id/london-borough-council/sutton,London Borough of Sutton,27/12/2018,40262936,"7,036.00 ",Cmg Homes Ltd,11026,Peoples Services Directorate,Residential Care - Ext Provider,G310
http://opendatacommunities.org/id/london-borough-council/sutton,London Borough of Sutton,27/12/2018,40262981,"7,000.00 ",Cmg Homes Ltd,11026,Peoples Services Directorate,Residential Care - Ext Provider,G310
http://opendatacommunities.org/id/london-borough-council/sutton,London Borough of Sutton,07/01/2019,40264798,"3,162.00 ",Cmg Homes Ltd,11026,Peoples Services Directorate,Supported Living - Ext Provider,G306
http://opendatacommunities.org/id/london-borough-council/sutton,London Borough of Sutton,07/01/2019,40264805,"3,662.43 ",Cmg Homes Ltd,11026,Peoples Services Directorate,Supported Living - Ext Provider,G306
http://opendatacommunities.org/id/london-borough-council/sutton,London Borough of Sutton,07/01/2019,40264813,"4,592.43 ",Cmg Homes Ltd,11026,Peoples Services Directorate,Supported Living - Ext Provider,G306
http://opendatacommunities.org/id/london-borough-council/sutton,London Borough of Sutton,07/01/2019,40264827,"3,644.94 ",Cmg Homes Ltd,11026,Peoples Services Directorate,Supported Living - Ext Provider,G306
http://opendatacommunities.org/id/london-borough-council/sutton,London Borough of Sutton,24/01/2019,40270914,"3,162.00 ",Cmg Homes Ltd,11026,Peoples Services Directorate,Supported Living - Ext Provider,G306
http://opendatacommunities.org/id/london-borough-council/sutton,London Borough of Sutton,24/01/2019,40270921,"3,662.43 ",Cmg Homes Ltd,11026,Peoples Services Directorate,Supported Living - Ext Provider,G306
http://opendatacommunities.org/id/london-borough-council/sutton,London Borough of Sutton,24/01/2019,40270929,"4,592.43 ",Cmg Homes Ltd,11026,Peoples Services Directorate,Supported Living - Ext Provider,G306
http://opendatacommunities.org/id/london-borough-council/sutton,London Borough of Sutton,24/01/2019,40270943,"3,644.93 ",Cmg Homes Ltd,11026,Peoples Services Directorate,Supported Living - Ext Provider,G306
http://opendatacommunities.org/id/london-borough-council/sutton,London Borough of Sutton,25/01/2019,40271016,"7,036.00 ",Cmg Homes Ltd,11026,Peoples Services Directorate,Residential Care - Ext Provider,G310
http://opendatacommunities.org/id/london-borough-council/sutton,London Borough of Sutton,25/01/2019,40271062,"7,000.00 ",Cmg Homes Ltd,11026,Peoples Services Directorate,Residential Care - Ext Provider,G310
http://opendatacommunities.org/id/london-borough-council/sutton,London Borough of Sutton,25/01/2019,40271167,"5,416.92 ",Cmg Homes Ltd,11026,Peoples Services Directorate,Residential Care - Ext Provider,G310
http://opendatacommunities.org/id/london-borough-council/sutton,London Borough of Sutton,31/12/2018,6942982,"3,085.94 ",Cobalt Telephone Technologies,15645,"Environment, Housing & Regeneration Directorate",Credit Card Commission,F460
http://opendatacommunities.org/id/london-borough-council/sutton,London Borough of Sutton,07/01/2019,40264821,"3,764.29 ",Cognithan Ltd,29938,Peoples Services Directorate,Supported Living - Ext Provider,G306
http://opendatacommunities.org/id/london-borough-council/sutton,London Borough of Sutton,24/01/2019,40270937,"3,764.28 ",Cognithan Ltd,29938,Peoples Services Directorate,Supported Living - Ext Provider,G306
http://opendatacommunities.org/id/london-borough-council/sutton,London Borough of Sutton,01/12/2018,6944147,"217,483.33 ",Cognus Ltd,26829,Peoples Services Directorate,Contractual Consultant Fees,G430
http://opendatacommunities.org/id/london-borough-council/sutton,London Borough of Sutton,01/12/2018,6944147,"160,958.33 ",Cognus Ltd,26829,Peoples Services Directorate,Contractual Consultant Fees,G430
http://opendatacommunities.org/id/london-borough-council/sutton,London Borough of Sutton,01/01/2019,6944153,"217,483.33 ",Cognus Ltd,26829,Peoples Services Directorate,Contractual Consultant Fees,G430
http://opendatacommunities.org/id/london-borough-council/sutton,London Borough of Sutton,01/01/2019,6944153,"160,958.33 ",Cognus Ltd,26829,Peoples Services Directorate,Contractual Consultant Fees,G430
http://opendatacommunities.org/id/london-borough-council/sutton,London Borough of Sutton,24/01/2019,6944220,"8,775.00 ",Cognus Ltd,26829,Peoples Services Directorate,LAC - Education,F269
http://opendatacommunities.org/id/london-borough-council/sutton,London Borough of Sutton,18/12/2018,1264934,"14,557.58 ",Coleg Elidyr Camphill Communities,28764,Peoples Services Directorate,Independent Schools,G325
http://opendatacommunities.org/id/london-borough-council/sutton,London Borough of Sutton,27/12/2018,40262376,"2,424.44 ",Colleycare Ltd (St Andrews Care Home-B & M Care),33310,Peoples Services Directorate,Residential Care - Ext Provider,G310
http://opendatacommunities.org/id/london-borough-council/sutton,London Borough of Sutton,25/01/2019,40271361,"2,424.44 ",Colleycare Ltd (St Andrews Care Home-B & M Care),33310,Peoples Services Directorate,Residential Care - Ext Provider,G310
http://opendatacommunities.org/id/london-borough-council/sutton,London Borough of Sutton,20/07/2018,6944004,"1,691.00 ",Come and Play Childcare Ltd,26926,Peoples Services Directorate,Day Nurseries,G320
http://opendatacommunities.org/id/london-borough-council/sutton,London Borough of Sutton,24/12/2018,40263888,472.50 ,Community Home Care Provider,11097,Peoples Services Directorate,Home Care,G334
http://opendatacommunities.org/id/london-borough-council/sutton,London Borough of Sutton,24/12/2018,40263890,497.25 ,Community Home Care Provider,11097,Peoples Services Directorate,Home Care,G334
http://opendatacommunities.org/id/london-borough-council/sutton,London Borough of Sutton,24/12/2018,40263895,784.50 ,Community Home Care Provider,11097,Peoples Services Directorate,Home Care,G334
http://opendatacommunities.org/id/london-borough-council/sutton,London Borough of Sutton,24/12/2018,40263899,439.50 ,Community Home Care Provider,11097,Peoples Services Directorate,Home Care,G334
http://opendatacommunities.org/id/london-borough-council/sutton,London Borough of Sutton,24/12/2018,40263900,510.00 ,Community Home Care Provider,11097,Peoples Services Directorate,Home Care,G334
http://opendatacommunities.org/id/london-borough-council/sutton,London Borough of Sutton,24/12/2018,40263901,525.00 ,Community Home Care Provider,11097,Peoples Services Directorate,Home Care,G334
http://opendatacommunities.org/id/london-borough-council/sutton,London Borough of Sutton,31/12/2018,40265190,739.50 ,Community Home Care Provider,11097,Peoples Services Directorate,Home Care,G334
http://opendatacommunities.org/id/london-borough-council/sutton,London Borough of Sutton,31/12/2018,40265214,525.00 ,Community Home Care Provider,11097,Peoples Services Directorate,Home Care,G334
http://opendatacommunities.org/id/london-borough-council/sutton,London Borough of Sutton,31/12/2018,40265390,472.50 ,Community Home Care Provider,11097,Peoples Services Directorate,Home Care,G334
http://opendatacommunities.org/id/london-borough-council/sutton,London Borough of Sutton,31/12/2018,40265392,439.50 ,Community Home Care Provider,11097,Peoples Services Directorate,Home Care,G334
http://opendatacommunities.org/id/london-borough-council/sutton,London Borough of Sutton,07/01/2019,40266727,465.00 ,Community Home Care Provider,11097,Peoples Services Directorate,Home Care,G334
http://opendatacommunities.org/id/london-borough-council/sutton,London Borough of Sutton,07/01/2019,40266729,427.50 ,Community Home Care Provider,11097,Peoples Services Directorate,Home Care,G334
http://opendatacommunities.org/id/london-borough-council/sutton,London Borough of Sutton,07/01/2019,40266735,784.50 ,Community Home Care Provider,11097,Peoples Services Directorate,Home Care,G334
http://opendatacommunities.org/id/london-borough-council/sutton,London Borough of Sutton,07/01/2019,40266738,439.50 ,Community Home Care Provider,11097,Peoples Services Directorate,Home Care,G334
http://opendatacommunities.org/id/london-borough-council/sutton,London Borough of Sutton,07/01/2019,40266739,420.00 ,Community Home Care Provider,11097,Peoples Services Directorate,Home Care,G334
http://opendatacommunities.org/id/london-borough-council/sutton,London Borough of Sutton,07/01/2019,40266740,585.00 ,Community Home Care Provider,11097,Peoples Services Directorate,Home Care,G334
http://opendatacommunities.org/id/london-borough-council/sutton,London Borough of Sutton,21/01/2019,40270647,765.00 ,Community Home Care Provider,11097,Peoples Services Directorate,Home Care,G334
http://opendatacommunities.org/id/london-borough-council/sutton,London Borough of Sutton,14/01/2019,40270758,469.50 ,Community Home Care Provider,11097,Peoples Services Directorate,Home Care,G334
http://opendatacommunities.org/id/london-borough-council/sutton,London Borough of Sutton,14/01/2019,40270760,497.25 ,Community Home Care Provider,11097,Peoples Services Directorate,Home Care,G334
http://opendatacommunities.org/id/london-borough-council/sutton,London Borough of Sutton,14/01/2019,40270766,765.00 ,Community Home Care Provider,11097,Peoples Services Directorate,Home Care,G334
http://opendatacommunities.org/id/london-borough-council/sutton,London Borough of Sutton,14/01/2019,40270769,439.50 ,Community Home Care Provider,11097,Peoples Services Directorate,Home Care,G334
http://opendatacommunities.org/id/london-borough-council/sutton,London Borough of Sutton,14/01/2019,40270770,525.00 ,Community Home Care Provider,11097,Peoples Services Directorate,Home Care,G334
http://opendatacommunities.org/id/london-borough-council/sutton,London Borough of Sutton,21/01/2019,40270778,484.50 ,Community Home Care Provider,11097,Peoples Services Directorate,Home Care,G334
http://opendatacommunities.org/id/london-borough-council/sutton,London Borough of Sutton,21/01/2019,40270780,497.25 ,Community Home Care Provider,11097,Peoples Services Directorate,Home Care,G334
http://opendatacommunities.org/id/london-borough-council/sutton,London Borough of Sutton,21/01/2019,40270787,439.50 ,Community Home Care Provider,11097,Peoples Services Directorate,Home Care,G334
http://opendatacommunities.org/id/london-borough-council/sutton,London Borough of Sutton,21/01/2019,40270788,525.00 ,Community Home Care Provider,11097,Peoples Services Directorate,Home Care,G334
http://opendatacommunities.org/id/london-borough-council/sutton,London Borough of Sutton,01/12/2018,40264398,"3,454.02 ",Compass Fostering London Ltd,25848,Peoples Services Directorate,Foster Parents,G326
http://opendatacommunities.org/id/london-borough-council/sutton,London Borough of Sutton,01/12/2018,40264401,"3,172.23 ",Compass Fostering London Ltd,25848,Peoples Services Directorate,Foster Parents,G326
http://opendatacommunities.org/id/london-borough-council/sutton,London Borough of Sutton,01/12/2018,40264485,"3,250.35 ",Compass Fostering South East Limited,32193,Peoples Services Directorate,Foster Parents,G326
http://opendatacommunities.org/id/london-borough-council/sutton,London Borough of Sutton,01/12/2018,40264439,"3,454.02 ",Compass Fostering South Ltd,27957,Peoples Services Directorate,Foster Parents,G326
http://opendatacommunities.org/id/london-borough-council/sutton,London Borough of Sutton,04/01/2019,6943138,989.52 ,Connect Search and Selection Group Ltd,33870,"Environment, Housing & Regeneration Directorate",Agency Staff - Other,A301
http://opendatacommunities.org/id/london-borough-council/sutton,London Borough of Sutton,11/01/2019,6943460,"1,284.64 ",Connect Search and Selection Group Ltd,33870,"Environment, Housing & Regeneration Directorate",Agency Staff - Other,A301
http://opendatacommunities.org/id/london-borough-council/sutton,London Borough of Sutton,18/01/2019,6943806,"1,249.92 ",Connect Search and Selection Group Ltd,33870,"Environment, Housing & Regeneration Directorate",Agency Staff - Other,A301
http://opendatacommunities.org/id/london-borough-council/sutton,London Borough of Sutton,27/12/2018,6942859,"1,204.36 ",Contract Security Services,23827,Chief Executive's Directorate,General Office Expenses,F235
http://opendatacommunities.org/id/london-borough-council/sutton,London Borough of Sutton,09/01/2019,6944184,"1,113.40 ",Contract Security Services,23827,Chief Executive's Directorate,General Office Expenses,F235
http://opendatacommunities.org/id/london-borough-council/sutton,London Borough of Sutton,21/01/2019,1265691,"2,063.56 ",Co-operative Childcare,24665,Peoples Services Directorate,Non-Maintained Childrens' Nurseries - 2 Year Olds,G404
http://opendatacommunities.org/id/london-borough-council/sutton,London Borough of Sutton,21/01/2019,1265692,"16,055.82 ",Co-operative Childcare,24665,Peoples Services Directorate,Non-Maintained Childrens' Nurseries - 3 & 4 yr olds,G405
http://opendatacommunities.org/id/london-borough-council/sutton,London Borough of Sutton,21/01/2019,1265693,"4,544.10 ",Co-operative Childcare,24665,Peoples Services Directorate,Non-Maintained Childrens' Nurseries - 3 & 4 yr olds,G405
http://opendatacommunities.org/id/london-borough-council/sutton,London Borough of Sutton,30/01/2019,6944407,"22,000.00 ",Copley Clark Solicitors,99827,"Environment, Housing & Regeneration Directorate",Purchase Price,Y010
http://opendatacommunities.org/id/london-borough-council/sutton,London Borough of Sutton,28/12/2018,6943407,"3,165.00 ",Core Assets Children's Services Ltd,27511,Peoples Services Directorate,Provider Contract Payments,F470
http://opendatacommunities.org/id/london-borough-council/sutton,London Borough of Sutton,28/12/2018,40266947,504.00 ,Core Assets Children's Services Ltd,27511,Peoples Services Directorate,Provider Contract Payments,F470
http://opendatacommunities.org/id/london-borough-council/sutton,London Borough of Sutton,19/12/2018,6942614,700.00 ,Core Assets Expert Services LTD T/A Carter Brown,29709,Chief Executive's Directorate,Training - Course Fees,A520
http://opendatacommunities.org/id/london-borough-council/sutton,London Borough of Sutton,28/11/2018,40264490,"2,657.16 ",Cornerways Childrens Services Ltd,18435,Peoples Services Directorate,Residential Care-Children,G330
http://opendatacommunities.org/id/london-borough-council/sutton,London Borough of Sutton,01/10/2018,6943547,"14,089.95 ",Cranstoun,11184,Chief Executive's Directorate,Provider Contract Payments,F470
http://opendatacommunities.org/id/london-borough-council/sutton,London Borough of Sutton,01/01/2019,6943656,"166,565.17 ",Cranstoun,11184,Chief Executive's Directorate,Provider Contract Payments,F470
http://opendatacommunities.org/id/london-borough-council/sutton,London Borough of Sutton,15/12/2018,6943010,"1,550.00 ",Crest Manor Ltd,25469,Peoples Services Directorate,C.C.A Rent & Utilities,H211
http://opendatacommunities.org/id/london-borough-council/sutton,London Borough of Sutton,15/12/2018,6943012,"1,995.00 ",Crest Manor Ltd,25469,Peoples Services Directorate,Approved Lodgings,H323
http://opendatacommunities.org/id/london-borough-council/sutton,London Borough of Sutton,15/12/2018,6943013,"1,594.23 ",Crest Manor Ltd,25469,Peoples Services Directorate,Approved Lodgings,H323
http://opendatacommunities.org/id/london-borough-council/sutton,London Borough of Sutton,15/12/2018,6943014,"1,695.00 ",Crest Manor Ltd,25469,Peoples Services Directorate,Approved Lodgings,H323
http://opendatacommunities.org/id/london-borough-council/sutton,London Borough of Sutton,08/10/2018,1265987,"1,300.00 ",Cricket Green School,24359,Peoples Services Directorate,Special Educational Needs,G331
http://opendatacommunities.org/id/london-borough-council/sutton,London Borough of Sutton,08/10/2018,1265988,650.00 ,Cricket Green School,24359,Peoples Services Directorate,Special Educational Needs,G331
http://opendatacommunities.org/id/london-borough-council/sutton,London Borough of Sutton,08/10/2018,1265989,650.00 ,Cricket Green School,24359,Peoples Services Directorate,Special Educational Needs,G331
http://opendatacommunities.org/id/london-borough-council/sutton,London Borough of Sutton,27/12/2018,40262722,"3,400.00 ",CRNH Ltd T/A St Judes Nursing Home,14297,Peoples Services Directorate,Nursing Care - Ext Provider,G311
http://opendatacommunities.org/id/london-borough-council/sutton,London Borough of Sutton,27/12/2018,40262814,"3,700.00 ",CRNH Ltd T/A St Judes Nursing Home,14297,Peoples Services Directorate,Nursing Care - Ext Provider,G311
http://opendatacommunities.org/id/london-borough-council/sutton,London Borough of Sutton,27/12/2018,40262846,"3,984.00 ",CRNH Ltd T/A St Judes Nursing Home,14297,Peoples Services Directorate,Nursing Care - Ext Provider,G311
http://opendatacommunities.org/id/london-borough-council/sutton,London Borough of Sutton,27/12/2018,40263024,"3,400.00 ",CRNH Ltd T/A St Judes Nursing Home,14297,Peoples Services Directorate,Nursing Care - Ext Provider,G311
http://opendatacommunities.org/id/london-borough-council/sutton,London Borough of Sutton,27/12/2018,40263044,"3,799.04 ",CRNH Ltd T/A St Judes Nursing Home,14297,Peoples Services Directorate,Nursing Care - Ext Provider,G311
http://opendatacommunities.org/id/london-borough-council/sutton,London Borough of Sutton,25/01/2019,40271106,"3,400.00 ",CRNH Ltd T/A St Judes Nursing Home,14297,Peoples Services Directorate,Nursing Care - Ext Provider,G311
http://opendatacommunities.org/id/london-borough-council/sutton,London Borough of Sutton,25/01/2019,40271124,"3,799.04 ",CRNH Ltd T/A St Judes Nursing Home,14297,Peoples Services Directorate,Nursing Care - Ext Provider,G311
http://opendatacommunities.org/id/london-borough-council/sutton,London Borough of Sutton,25/01/2019,40271202,"3,400.00 ",CRNH Ltd T/A St Judes Nursing Home,14297,Peoples Services Directorate,Nursing Care - Ext Provider,G311
http://opendatacommunities.org/id/london-borough-council/sutton,London Borough of Sutton,25/01/2019,40271264,"3,700.00 ",CRNH Ltd T/A St Judes Nursing Home,14297,Peoples Services Directorate,Nursing Care - Ext Provider,G311
http://opendatacommunities.org/id/london-borough-council/sutton,London Borough of Sutton,25/01/2019,40271320,"3,984.00 ",CRNH Ltd T/A St Judes Nursing Home,14297,Peoples Services Directorate,Nursing Care - Ext Provider,G311
http://opendatacommunities.org/id/london-borough-council/sutton,London Borough of Sutton,27/12/2018,40262677,"4,168.24 ",Crossways Community,11187,Peoples Services Directorate,Residential Care - Ext Provider,G310
